Body,Body Name,Date Paid,Transaction Number,Amount,Supplier Name,Supplier ID,Supplier post code (first 4 digits),Directorate,Service Area,General Ledger code Description,BVACOP class,Revenue/ Capital Spend
http://statistics.data.gov.uk/id/local-authority/00HY,Wiltshire Council,16.09.2014,1901349091,400.00,HMCTS ,125542,-,Community Services,COP APPLICATION FEES,Miscellaneous Costs,Supplies and Services,REVENUE
http://statistics.data.gov.uk/id/local-authority/00HY,Wiltshire Council,03.09.2014,1901337152,2657.01,Claremont Residential Home ,114807,.,Community Services,BCF-Intermediate Cr,Adult Nursing Placements - transitional beds,Third Party Payments,REVENUE
http://statistics.data.gov.uk/id/local-authority/00HY,Wiltshire Council,03.09.2014,1901337153,2057.04,Claremont Residential Home ,114807,.,Community Services,BCF-Intermediate Cr,Adult Nursing Placements - transitional beds,Third Party Payments,REVENUE
http://statistics.data.gov.uk/id/local-authority/00HY,Wiltshire Council,29.09.2014,1901353276,3599.82,Claremont Residential Home ,114807,.,Community Services,STARR Scheme,Adult Nursing Placements - transitional beds,Third Party Payments,REVENUE
http://statistics.data.gov.uk/id/local-authority/00HY,Wiltshire Council,24/09/2014,5106561946,1984.88,Claremont Residential Home ,114807,.,Community Services,North Locality OP,Adult Residential Placements - Spot Purchase,Third Party Payments,REVENUE
http://statistics.data.gov.uk/id/local-authority/00HY,Wiltshire Council,24/09/2014,5106561958,2077.72,Claremont Residential Home ,114807,.,Community Services,North Locality OP,Adult Residential Placements - Spot Purchase,Third Party Payments,REVENUE
http://statistics.data.gov.uk/id/local-authority/00HY,Wiltshire Council,24/09/2014,5106562024,1984.68,Claremont Residential Home ,114807,.,Community Services,North Locality OP,Adult Residential Placements - Spot Purchase,Third Party Payments,REVENUE
http://statistics.data.gov.uk/id/local-authority/00HY,Wiltshire Council,24/09/2014,5106562391,1522.04,Claremont Residential Home ,114807,.,Community Services,North Locality OP,Adult Residential Placements - Spot Purchase,Third Party Payments,REVENUE
http://statistics.data.gov.uk/id/local-authority/00HY,Wiltshire Council,24/09/2014,5106562439,3003.00,Claremont Residential Home ,114807,.,Community Services,Home Loans,Adult Care Loans,Capital charges and Expenditure,REVENUE
http://statistics.data.gov.uk/id/local-authority/00HY,Wiltshire Council,24/09/2014,5106562654,2089.16,Claremont Residential Home ,114807,.,Community Services,North Locality OP,Adult Residential Placements - Spot Purchase,Third Party Payments,REVENUE
http://statistics.data.gov.uk/id/local-authority/00HY,Wiltshire Council,24/09/2014,5106563187,2082.88,Claremont Residential Home ,114807,.,Community Services,North Locality OP,Adult Residential Placements - Spot Purchase,Third Party Payments,REVENUE
http://statistics.data.gov.uk/id/local-authority/00HY,Wiltshire Council,24/09/2014,5106563228,2082.88,Claremont Residential Home ,114807,.,Community Services,North Locality OP,Adult Residential Placements - Spot Purchase,Third Party Payments,REVENUE
http://statistics.data.gov.uk/id/local-authority/00HY,Wiltshire Council,24/09/2014,5106565108,2082.88,Claremont Residential Home ,114807,.,Community Services,North Locality OP,Adult Residential Placements - Spot Purchase,Third Party Payments,REVENUE
http://statistics.data.gov.uk/id/local-authority/00HY,Wiltshire Council,24/09/2014,5106565530,2082.88,Claremont Residential Home ,114807,.,Community Services,West Locality OP,Adult Residential Placements - Spot Purchase,Third Party Payments,REVENUE
http://statistics.data.gov.uk/id/local-authority/00HY,Wiltshire Council,24/09/2014,5106566357,1785.36,Claremont Residential Home ,114807,.,Community Services,BCF-Intermediate Cr,Adult Residential Respite - Spot,Third Party Payments,REVENUE
http://statistics.data.gov.uk/id/local-authority/00HY,Wiltshire Council,24/09/2014,5106566358,1115.85,Claremont Residential Home ,114807,.,Community Services,BCF-Intermediate Cr,Adult Residential Respite - Spot,Third Party Payments,REVENUE
http://statistics.data.gov.uk/id/local-authority/00HY,Wiltshire Council,29/09/2014,5106569952,664.00,Elizabeth House Social Centre ,110852,.,Community Services,CTPLD Place CIC U65,Adult Day Care - Spot,Third Party Payments,REVENUE
http://statistics.data.gov.uk/id/local-authority/00HY,Wiltshire Council,24/09/2014,5106562490,3200.00,Glanmor ,116115,.,Community Services,MH AOWA North Locali,Adult Residential Placements - Spot Purchase,Third Party Payments,REVENUE
http://statistics.data.gov.uk/id/local-authority/00HY,Wiltshire Council,24/09/2014,5106564716,2813.92,Glanmor ,116115,.,Community Services,MH AOWA North Locali,Adult Residential Placements - Spot Purchase,Third Party Payments,REVENUE
http://statistics.data.gov.uk/id/local-authority/00HY,Wiltshire Council,24/09/2014,5106564718,2655.64,Glanmor ,116115,.,Community Services,MH AOWA South Locali,Adult Residential Placements - Spot Purchase,Third Party Payments,REVENUE
http://statistics.data.gov.uk/id/local-authority/00HY,Wiltshire Council,24/09/2014,5106564771,3200.00,Glanmor ,116115,.,Community Services,MH AOWA North Locali,Adult Residential Placements - Spot Purchase,Third Party Payments,REVENUE
http://statistics.data.gov.uk/id/local-authority/00HY,Wiltshire Council,24/09/2014,5106565624,3200.00,Glanmor ,116115,.,Community Services,OVA North Locality,Adult Residential Placements - Spot Purchase,Third Party Payments,REVENUE
http://statistics.data.gov.uk/id/local-authority/00HY,Wiltshire Council,24/09/2014,5106565897,3000.00,Glanmor ,116115,.,Community Services,MH AOWA North Locali,Adult Residential Placements - Spot Purchase,Third Party Payments,REVENUE
http://statistics.data.gov.uk/id/local-authority/00HY,Wiltshire Council,23/09/2014,5106556557,5679.50,Marchant-Holliday School Ltd ,111526,.,Children & Education,IndepSpecialSchFees,Educational Fees,Supplies and Services,REVENUE
http://statistics.data.gov.uk/id/local-authority/00HY,Wiltshire Council,23/09/2014,5106556557,5679.50,Marchant-Holliday School Ltd ,111526,.,Children & Education,0-25 extnl disabty p,Educational Fees,Supplies and Services,REVENUE
http://statistics.data.gov.uk/id/local-authority/00HY,Wiltshire Council,24/09/2014,5106561964,4848.00,Parkcare Homes Ltd  Westbury Lodge ,112075,.,Community Services,North Locality OP,Adult Residential Placements - Spot Purchase,Third Party Payments,REVENUE
http://statistics.data.gov.uk/id/local-authority/00HY,Wiltshire Council,24/09/2014,5106561969,6305.40,Parkcare Homes Ltd  Westbury Lodge ,112075,.,Community Services,MH OP South Locality,Adult Residential Placements - Spot Purchase,Third Party Payments,REVENUE
http://statistics.data.gov.uk/id/local-authority/00HY,Wiltshire Council,24/09/2014,5106562732,4444.00,Parkcare Homes Ltd  Westbury Lodge ,112075,.,Community Services,MH OP South Locality,Adult Residential Placements - Spot Purchase,Third Party Payments,REVENUE
http://statistics.data.gov.uk/id/local-authority/00HY,Wiltshire Council,24/09/2014,5106563391,2692.34,Parkcare Homes Ltd  Westbury Lodge ,112075,.,Community Services,CTPLD Place CIC U65,Adult Residential Placements - Spot Purchase,Third Party Payments,REVENUE
http://statistics.data.gov.uk/id/local-authority/00HY,Wiltshire Council,24/09/2014,5106563393,5384.72,Parkcare Homes Ltd  Westbury Lodge ,112075,.,Community Services,CTPLD Place CIC U65,Adult Residential Placements - Spot Purchase,Third Party Payments,REVENUE
http://statistics.data.gov.uk/id/local-authority/00HY,Wiltshire Council,24/09/2014,5106563395,5384.72,Parkcare Homes Ltd  Westbury Lodge ,112075,.,Community Services,CTPLD Place CIC U65,Adult Residential Placements - Spot Purchase,Third Party Payments,REVENUE
http://statistics.data.gov.uk/id/local-authority/00HY,Wiltshire Council,24/09/2014,5106563397,5384.72,Parkcare Homes Ltd  Westbury Lodge ,112075,.,Community Services,CTPLD Place CIC U65,Adult Residential Placements - Spot Purchase,Third Party Payments,REVENUE
http://statistics.data.gov.uk/id/local-authority/00HY,Wiltshire Council,24/09/2014,5106564281,4647.36,Parkcare Homes Ltd  Westbury Lodge ,112075,.,Community Services,MH AOWA South Locali,Adult Residential Placements - Spot Purchase,Third Party Payments,REVENUE
http://statistics.data.gov.uk/id/local-authority/00HY,Wiltshire Council,24/09/2014,5106564904,6350.08,Parkcare Homes Ltd  Westbury Lodge ,112075,.,Community Services,CTPLD Place CIC U65,Adult Residential Placements - Spot Purchase,Third Party Payments,REVENUE
http://statistics.data.gov.uk/id/local-authority/00HY,Wiltshire Council,19/09/2014,5106560913,564.08,Ridgeway Housing Association ,132007,.,Community Services,East Locality OP,Adult Domiciliary Care - Spot,Third Party Payments,REVENUE
http://statistics.data.gov.uk/id/local-authority/00HY,Wiltshire Council,17.09.2014,1901349905,11094.75,Somerset Care At Home Limited ,132004,.,Community Services,OPPI Commissioned Ct,Payments to Contractors - Other,Third Party Payments,REVENUE
http://statistics.data.gov.uk/id/local-authority/00HY,Wiltshire Council,17.09.2014,1901349910,19738.54,Somerset Care At Home Limited ,132004,.,Community Services,OPPI Commissioned Ct,Payments to Contractors - Other,Third Party Payments,REVENUE
http://statistics.data.gov.uk/id/local-authority/00HY,Wiltshire Council,29.09.2014,1901353348,880.56,Somerset Care At Home Limited ,132004,.,Community Services,OP West Locality,Ongoing Support Plan - Maintenance (Contribution),Income,REVENUE
http://statistics.data.gov.uk/id/local-authority/00HY,Wiltshire Council,29.09.2014,1901353350,254.31,Somerset Care At Home Limited ,132004,.,Community Services,OP North Locality,Ongoing Support Plan - Maintenance (Contribution),Income,REVENUE
http://statistics.data.gov.uk/id/local-authority/00HY,Wiltshire Council,29.09.2014,1901353356,697.64,Somerset Care At Home Limited ,132004,.,Community Services,OP North Locality,Ongoing Support Plan - Maintenance (Contribution),Income,REVENUE
http://statistics.data.gov.uk/id/local-authority/00HY,Wiltshire Council,29.09.2014,1901353357,314.30,Somerset Care At Home Limited ,132004,.,Community Services,OP West Locality,Ongoing Support Plan - Maintenance (Contribution),Income,REVENUE
http://statistics.data.gov.uk/id/local-authority/00HY,Wiltshire Council,01/09/2014,5106553769,424.48,Somerset Care At Home Limited ,132004,.,Community Services,MH - OSJ Combe End C,Ongoing Support Plan - Maintenance,Third Party Payments,REVENUE
http://statistics.data.gov.uk/id/local-authority/00HY,Wiltshire Council,01/09/2014,5106553789,412.65,Somerset Care At Home Limited ,132004,.,Community Services,West Locality OP,Ongoing Support Plan - Maintenance,Third Party Payments,REVENUE
http://statistics.data.gov.uk/id/local-authority/00HY,Wiltshire Council,01/09/2014,5106553793,672.03,Somerset Care At Home Limited ,132004,.,Community Services,South Locality OP,Ongoing Support Plan - Maintenance,Third Party Payments,REVENUE
http://statistics.data.gov.uk/id/local-authority/00HY,Wiltshire Council,01/09/2014,5106553803,589.50,Somerset Care At Home Limited ,132004,.,Community Services,West Locality OP,Ongoing Support Plan - Maintenance,Third Party Payments,REVENUE
http://statistics.data.gov.uk/id/local-authority/00HY,Wiltshire Council,01/09/2014,5106553808,377.26,Somerset Care At Home Limited ,132004,.,Community Services,West Locality OP,Ongoing Support Plan - Maintenance,Third Party Payments,REVENUE
http://statistics.data.gov.uk/id/local-authority/00HY,Wiltshire Council,01/09/2014,5106553813,1931.31,Somerset Care At Home Limited ,132004,.,Community Services,West Locality OP,Ongoing Support Plan - Maintenance,Third Party Payments,REVENUE
http://statistics.data.gov.uk/id/local-authority/00HY,Wiltshire Council,01/09/2014,5106553814,671.79,Somerset Care At Home Limited ,132004,.,Community Services,West Locality OP,Ongoing Support Plan - Maintenance,Third Party Payments,REVENUE
http://statistics.data.gov.uk/id/local-authority/00HY,Wiltshire Council,01/09/2014,5106553839,411.36,Somerset Care At Home Limited ,132004,.,Community Services,West Locality OP,Ongoing Support Plan - Maintenance,Third Party Payments,REVENUE
http://statistics.data.gov.uk/id/local-authority/00HY,Wiltshire Council,01/09/2014,5106553843,1122.52,Somerset Care At Home Limited ,132004,.,Community Services,West Locality OP,Ongoing Support Plan - Maintenance,Third Party Payments,REVENUE
http://statistics.data.gov.uk/id/local-authority/00HY,Wiltshire Council,01/09/2014,5106553854,896.32,Somerset Care At Home Limited ,132004,.,Community Services,West Locality OP,Ongoing Support Plan - Maintenance,Third Party Payments,REVENUE
http://statistics.data.gov.uk/id/local-authority/00HY,Wiltshire Council,01/09/2014,5106553860,659.08,Somerset Care At Home Limited ,132004,.,Community Services,North Locality OP,Ongoing Support Plan - Maintenance,Third Party Payments,REVENUE
http://statistics.data.gov.uk/id/local-authority/00HY,Wiltshire Council,01/09/2014,5106553865,560.72,Somerset Care At Home Limited ,132004,.,Community Services,West Locality OP,Ongoing Support Plan - Maintenance,Third Party Payments,REVENUE
http://statistics.data.gov.uk/id/local-authority/00HY,Wiltshire Council,01/09/2014,5106553878,332.28,Somerset Care At Home Limited ,132004,.,Community Services,North Locality OP,Ongoing Support Plan - Maintenance,Third Party Payments,REVENUE
http://statistics.data.gov.uk/id/local-authority/00HY,Wiltshire Council,01/09/2014,5106553883,1457.04,Somerset Care At Home Limited ,132004,.,Community Services,West Locality OP,Ongoing Support Plan - Maintenance,Third Party Payments,REVENUE
http://statistics.data.gov.uk/id/local-authority/00HY,Wiltshire Council,01/09/2014,5106553888,961.20,Somerset Care At Home Limited ,132004,.,Community Services,West Locality OP,Ongoing Support Plan - Maintenance,Third Party Payments,REVENUE
http://statistics.data.gov.uk/id/local-authority/00HY,Wiltshire Council,01/09/2014,5106553889,481.00,Somerset Care At Home Limited ,132004,.,Community Services,West Locality OP,Ongoing Support Plan - Maintenance,Third Party Payments,REVENUE
http://statistics.data.gov.uk/id/local-authority/00HY,Wiltshire Council,01/09/2014,5106553890,641.08,Somerset Care At Home Limited ,132004,.,Community Services,West Locality OP,Ongoing Support Plan - Maintenance,Third Party Payments,REVENUE
http://statistics.data.gov.uk/id/local-authority/00HY,Wiltshire Council,01/09/2014,5106553899,666.68,Somerset Care At Home Limited ,132004,.,Community Services,East Locality OP,Ongoing Support Plan - Maintenance,Third Party Payments,REVENUE
http://statistics.data.gov.uk/id/local-authority/00HY,Wiltshire Council,01/09/2014,5106553902,608.44,Somerset Care At Home Limited ,132004,.,Community Services,West Locality OP,Ongoing Support Plan - Maintenance,Third Party Payments,REVENUE
http://statistics.data.gov.uk/id/local-authority/00HY,Wiltshire Council,01/09/2014,5106553911,1345.60,Somerset Care At Home Limited ,132004,.,Community Services,MH - OSJ Combe End C,Ongoing Support Plan - Maintenance,Third Party Payments,REVENUE
http://statistics.data.gov.uk/id/local-authority/00HY,Wiltshire Council,01/09/2014,5106553912,1396.84,Somerset Care At Home Limited ,132004,.,Community Services,OVA North Locality,Ongoing Support Plan - Maintenance,Third Party Payments,REVENUE
http://statistics.data.gov.uk/id/local-authority/00HY,Wiltshire Council,01/09/2014,5106553916,448.60,Somerset Care At Home Limited ,132004,.,Community Services,West Locality OP,Ongoing Support Plan - Maintenance,Third Party Payments,REVENUE
http://statistics.data.gov.uk/id/local-authority/00HY,Wiltshire Council,01/09/2014,5106553918,555.52,Somerset Care At Home Limited ,132004,.,Community Services,North Locality OP,Ongoing Support Plan - Maintenance,Third Party Payments,REVENUE
http://statistics.data.gov.uk/id/local-authority/00HY,Wiltshire Council,01/09/2014,5106553923,674.64,Somerset Care At Home Limited ,132004,.,Community Services,East Locality OP,Ongoing Support Plan - Maintenance,Third Party Payments,REVENUE
http://statistics.data.gov.uk/id/local-authority/00HY,Wiltshire Council,01/09/2014,5106553928,448.36,Somerset Care At Home Limited ,132004,.,Community Services,South Locality OP,Ongoing Support Plan - Maintenance,Third Party Payments,REVENUE
http://statistics.data.gov.uk/id/local-authority/00HY,Wiltshire Council,01/09/2014,5106553930,561.64,Somerset Care At Home Limited ,132004,.,Community Services,West Locality OP,Ongoing Support Plan - Maintenance,Third Party Payments,REVENUE
http://statistics.data.gov.uk/id/local-authority/00HY,Wiltshire Council,01/09/2014,5106553931,673.52,Somerset Care At Home Limited ,132004,.,Community Services,West Locality OP,Ongoing Support Plan - Maintenance,Third Party Payments,REVENUE
http://statistics.data.gov.uk/id/local-authority/00HY,Wiltshire Council,01/09/2014,5106553949,334.04,Somerset Care At Home Limited ,132004,.,Community Services,North Locality OP,Ongoing Support Plan - Maintenance,Third Party Payments,REVENUE
http://statistics.data.gov.uk/id/local-authority/00HY,Wiltshire Council,01/09/2014,5106553951,262.02,Somerset Care At Home Limited ,132004,.,Community Services,North Locality OP,Ongoing Support Plan - Maintenance,Third Party Payments,REVENUE
http://statistics.data.gov.uk/id/local-authority/00HY,Wiltshire Council,01/09/2014,5106553959,337.28,Somerset Care At Home Limited ,132004,.,Community Services,West Locality OP,Ongoing Support Plan - Maintenance,Third Party Payments,REVENUE
http://statistics.data.gov.uk/id/local-authority/00HY,Wiltshire Council,01/09/2014,5106553977,379.28,Somerset Care At Home Limited ,132004,.,Community Services,West Locality OP,Ongoing Support Plan - Improvement,Third Party Payments,REVENUE
http://statistics.data.gov.uk/id/local-authority/00HY,Wiltshire Council,01/09/2014,5106553984,562.12,Somerset Care At Home Limited ,132004,.,Community Services,West Locality OP,Ongoing Support Plan - Maintenance,Third Party Payments,REVENUE
http://statistics.data.gov.uk/id/local-authority/00HY,Wiltshire Council,01/09/2014,5106554009,1369.92,Somerset Care At Home Limited ,132004,.,Community Services,MH OP North Locality,Interim Support Plan - HTLAH,Third Party Payments,REVENUE
http://statistics.data.gov.uk/id/local-authority/00HY,Wiltshire Council,01/09/2014,5106554011,334.32,Somerset Care At Home Limited ,132004,.,Community Services,North Locality OP,Ongoing Support Plan - Maintenance,Third Party Payments,REVENUE
http://statistics.data.gov.uk/id/local-authority/00HY,Wiltshire Council,01/09/2014,5106554015,449.68,Somerset Care At Home Limited ,132004,.,Community Services,West Locality OP,Ongoing Support Plan - Maintenance,Third Party Payments,REVENUE
http://statistics.data.gov.uk/id/local-authority/00HY,Wiltshire Council,01/09/2014,5106554029,668.64,Somerset Care At Home Limited ,132004,.,Community Services,North Locality OP,Ongoing Support Plan - Maintenance,Third Party Payments,REVENUE
http://statistics.data.gov.uk/id/local-authority/00HY,Wiltshire Council,01/09/2014,5106554042,674.52,Somerset Care At Home Limited ,132004,.,Community Services,MH - OSJ Combe End C,Ongoing Support Plan - Maintenance,Third Party Payments,REVENUE
http://statistics.data.gov.uk/id/local-authority/00HY,Wiltshire Council,01/09/2014,5106554044,328.80,Somerset Care At Home Limited ,132004,.,Community Services,OVA North Locality,Ongoing Support Plan - Maintenance,Third Party Payments,REVENUE
http://statistics.data.gov.uk/id/local-authority/00HY,Wiltshire Council,01/09/2014,5106554048,363.72,Somerset Care At Home Limited ,132004,.,Community Services,MH AOWA North Locali,Ongoing Support Plan - Maintenance,Third Party Payments,REVENUE
http://statistics.data.gov.uk/id/local-authority/00HY,Wiltshire Council,01/09/2014,5106554054,991.92,Somerset Care At Home Limited ,132004,.,Community Services,North Locality OP,Ongoing Support Plan - Maintenance,Third Party Payments,REVENUE
http://statistics.data.gov.uk/id/local-authority/00HY,Wiltshire Council,01/09/2014,5106554056,322.56,Somerset Care At Home Limited ,132004,.,Community Services,North Locality OP,Ongoing Support Plan - Maintenance,Third Party Payments,REVENUE
http://statistics.data.gov.uk/id/local-authority/00HY,Wiltshire Council,01/09/2014,5106554070,1135.08,Somerset Care At Home Limited ,132004,.,Community Services,West Locality OP,Ongoing Support Plan - Maintenance,Third Party Payments,REVENUE
http://statistics.data.gov.uk/id/local-authority/00HY,Wiltshire Council,01/09/2014,5106554072,562.12,Somerset Care At Home Limited ,132004,.,Community Services,West Locality OP,Ongoing Support Plan - Maintenance,Third Party Payments,REVENUE
http://statistics.data.gov.uk/id/local-authority/00HY,Wiltshire Council,01/09/2014,5106554076,700.00,Somerset Care At Home Limited ,132004,.,Community Services,South Locality OP,Ongoing Support Plan - Maintenance,Third Party Payments,REVENUE
http://statistics.data.gov.uk/id/local-authority/00HY,Wiltshire Council,01/09/2014,5106554125,1162.16,Somerset Care At Home Limited ,132004,.,Community Services,North Locality OP,Ongoing Support Plan - Maintenance,Third Party Payments,REVENUE
http://statistics.data.gov.uk/id/local-authority/00HY,Wiltshire Council,01/09/2014,5106554129,604.96,Somerset Care At Home Limited ,132004,.,Community Services,North Locality OP,Ongoing Support Plan - Maintenance,Third Party Payments,REVENUE
http://statistics.data.gov.uk/id/local-authority/00HY,Wiltshire Council,01/09/2014,5106554134,1114.40,Somerset Care At Home Limited ,132004,.,Community Services,MH AOWA North Locali,Interim Support Plan - HTLAH,Third Party Payments,REVENUE
http://statistics.data.gov.uk/id/local-authority/00HY,Wiltshire Council,01/09/2014,5106554142,960.48,Somerset Care At Home Limited ,132004,.,Community Services,OVA South Locality,Ongoing Support Plan - Improvement,Third Party Payments,REVENUE
http://statistics.data.gov.uk/id/local-authority/00HY,Wiltshire Council,01/09/2014,5106554143,445.76,Somerset Care At Home Limited ,132004,.,Community Services,North Locality OP,Ongoing Support Plan - Maintenance,Third Party Payments,REVENUE
http://statistics.data.gov.uk/id/local-authority/00HY,Wiltshire Council,01/09/2014,5106554155,557.20,Somerset Care At Home Limited ,132004,.,Community Services,North Locality OP,Ongoing Support Plan - Maintenance,Third Party Payments,REVENUE
http://statistics.data.gov.uk/id/local-authority/00HY,Wiltshire Council,01/09/2014,5106554161,1349.04,Somerset Care At Home Limited ,132004,.,Community Services,South Locality OP,Ongoing Support Plan - Maintenance,Third Party Payments,REVENUE
http://statistics.data.gov.uk/id/local-authority/00HY,Wiltshire Council,01/09/2014,5106554171,562.12,Somerset Care At Home Limited ,132004,.,Community Services,West Locality OP,Ongoing Support Plan - Maintenance,Third Party Payments,REVENUE
http://statistics.data.gov.uk/id/local-authority/00HY,Wiltshire Council,01/09/2014,5106554212,2023.56,Somerset Care At Home Limited ,132004,.,Community Services,West Locality OP,Ongoing Support Plan - Maintenance,Third Party Payments,REVENUE
http://statistics.data.gov.uk/id/local-authority/00HY,Wiltshire Council,01/09/2014,5106554222,581.68,Somerset Care At Home Limited ,132004,.,Community Services,MH OP North Locality,Ongoing Support Plan - Maintenance,Third Party Payments,REVENUE
http://statistics.data.gov.uk/id/local-authority/00HY,Wiltshire Council,01/09/2014,5106554236,786.96,Somerset Care At Home Limited ,132004,.,Community Services,West Locality OP,Ongoing Support Plan - Maintenance,Third Party Payments,REVENUE
http://statistics.data.gov.uk/id/local-authority/00HY,Wiltshire Council,01/09/2014,5106554238,445.76,Somerset Care At Home Limited ,132004,.,Community Services,North Locality OP,Ongoing Support Plan - Maintenance,Third Party Payments,REVENUE
http://statistics.data.gov.uk/id/local-authority/00HY,Wiltshire Council,01/09/2014,5106554240,557.20,Somerset Care At Home Limited ,132004,.,Community Services,North Locality OP,Ongoing Support Plan - Maintenance,Third Party Payments,REVENUE
http://statistics.data.gov.uk/id/local-authority/00HY,Wiltshire Council,01/09/2014,5106554244,1573.88,Somerset Care At Home Limited ,132004,.,Community Services,West Locality OP,Ongoing Support Plan - Maintenance,Third Party Payments,REVENUE
http://statistics.data.gov.uk/id/local-authority/00HY,Wiltshire Council,01/09/2014,5106554245,1011.80,Somerset Care At Home Limited ,132004,.,Community Services,West Locality OP,Ongoing Support Plan - Maintenance,Third Party Payments,REVENUE
http://statistics.data.gov.uk/id/local-authority/00HY,Wiltshire Council,01/09/2014,5106554247,325.05,Somerset Care At Home Limited ,132004,.,Community Services,North Locality OP,Ongoing Support Plan - Maintenance,Third Party Payments,REVENUE
http://statistics.data.gov.uk/id/local-authority/00HY,Wiltshire Council,01/09/2014,5106554274,1124.20,Somerset Care At Home Limited ,132004,.,Community Services,West Locality OP,Ongoing Support Plan - Maintenance,Third Party Payments,REVENUE
http://statistics.data.gov.uk/id/local-authority/00HY,Wiltshire Council,01/09/2014,5106554276,786.96,Somerset Care At Home Limited ,132004,.,Community Services,West Locality OP,Ongoing Support Plan - Maintenance,Third Party Payments,REVENUE
http://statistics.data.gov.uk/id/local-authority/00HY,Wiltshire Council,01/09/2014,5106554302,477.60,Somerset Care At Home Limited ,132004,.,Community Services,North Locality OP,Ongoing Support Plan - Maintenance,Third Party Payments,REVENUE
http://statistics.data.gov.uk/id/local-authority/00HY,Wiltshire Council,01/09/2014,5106554306,861.08,Somerset Care At Home Limited ,132004,.,Community Services,West Locality OP,Ongoing Support Plan - Maintenance,Third Party Payments,REVENUE
http://statistics.data.gov.uk/id/local-authority/00HY,Wiltshire Council,01/09/2014,5106554309,1759.20,Somerset Care At Home Limited ,132004,.,Community Services,West Locality OP,Ongoing Support Plan - Maintenance,Third Party Payments,REVENUE
http://statistics.data.gov.uk/id/local-authority/00HY,Wiltshire Council,01/09/2014,5106554340,481.80,Somerset Care At Home Limited ,132004,.,Community Services,West Locality OP,Ongoing Support Plan - Maintenance,Third Party Payments,REVENUE
http://statistics.data.gov.uk/id/local-authority/00HY,Wiltshire Council,01/09/2014,5106554344,1011.80,Somerset Care At Home Limited ,132004,.,Community Services,West Locality OP,Ongoing Support Plan - Maintenance,Third Party Payments,REVENUE
http://statistics.data.gov.uk/id/local-authority/00HY,Wiltshire Council,01/09/2014,5106554353,786.96,Somerset Care At Home Limited ,132004,.,Community Services,West Locality OP,Ongoing Support Plan - Maintenance,Third Party Payments,REVENUE
http://statistics.data.gov.uk/id/local-authority/00HY,Wiltshire Council,01/09/2014,5106554360,1663.44,Somerset Care At Home Limited ,132004,.,Community Services,West Locality OP,Ongoing Support Plan - Maintenance,Third Party Payments,REVENUE
http://statistics.data.gov.uk/id/local-authority/00HY,Wiltshire Council,01/09/2014,5106554362,337.28,Somerset Care At Home Limited ,132004,.,Community Services,West Locality OP,Ongoing Support Plan - Maintenance,Third Party Payments,REVENUE
http://statistics.data.gov.uk/id/local-authority/00HY,Wiltshire Council,01/09/2014,5106554363,1095.92,Somerset Care At Home Limited ,132004,.,Community Services,West Locality OP,Ongoing Support Plan - Maintenance,Third Party Payments,REVENUE
http://statistics.data.gov.uk/id/local-authority/00HY,Wiltshire Council,01/09/2014,5106554364,724.36,Somerset Care At Home Limited ,132004,.,Community Services,North Locality OP,Ongoing Support Plan - Maintenance,Third Party Payments,REVENUE
http://statistics.data.gov.uk/id/local-authority/00HY,Wiltshire Council,01/09/2014,5106554377,2023.56,Somerset Care At Home Limited ,132004,.,Community Services,West Locality OP,Ongoing Support Plan - Maintenance,Third Party Payments,REVENUE
http://statistics.data.gov.uk/id/local-authority/00HY,Wiltshire Council,01/09/2014,5106554386,899.36,Somerset Care At Home Limited ,132004,.,Community Services,West Locality OP,Ongoing Support Plan - Maintenance,Third Party Payments,REVENUE
http://statistics.data.gov.uk/id/local-authority/00HY,Wiltshire Council,01/09/2014,5106554389,619.84,Somerset Care At Home Limited ,132004,.,Community Services,North Locality OP,Ongoing Support Plan - Maintenance,Third Party Payments,REVENUE
http://statistics.data.gov.uk/id/local-authority/00HY,Wiltshire Council,01/09/2014,5106554390,529.64,Somerset Care At Home Limited ,132004,.,Community Services,North Locality OP,Ongoing Support Plan - Maintenance,Third Party Payments,REVENUE
http://statistics.data.gov.uk/id/local-authority/00HY,Wiltshire Council,01/09/2014,5106554392,445.76,Somerset Care At Home Limited ,132004,.,Community Services,North Locality OP,Ongoing Support Plan - Maintenance,Third Party Payments,REVENUE
http://statistics.data.gov.uk/id/local-authority/00HY,Wiltshire Council,01/09/2014,5106554393,2081.84,Somerset Care At Home Limited ,132004,.,Community Services,North Locality OP,Ongoing Support Plan - Maintenance,Third Party Payments,REVENUE
http://statistics.data.gov.uk/id/local-authority/00HY,Wiltshire Council,01/09/2014,5106554394,1687.95,Somerset Care At Home Limited ,132004,.,Community Services,OVA North Locality,Ongoing Support Plan - Maintenance,Third Party Payments,REVENUE
http://statistics.data.gov.uk/id/local-authority/00HY,Wiltshire Council,01/09/2014,5106554400,1337.28,Somerset Care At Home Limited ,132004,.,Community Services,North Locality OP,Ongoing Support Plan - Maintenance,Third Party Payments,REVENUE
http://statistics.data.gov.uk/id/local-authority/00HY,Wiltshire Council,01/09/2014,5106554416,562.12,Somerset Care At Home Limited ,132004,.,Community Services,West Locality OP,Ongoing Support Plan - Maintenance,Third Party Payments,REVENUE
http://statistics.data.gov.uk/id/local-authority/00HY,Wiltshire Council,01/09/2014,5106554423,332.48,Somerset Care At Home Limited ,132004,.,Community Services,North Locality OP,Ongoing Support Plan - Maintenance,Third Party Payments,REVENUE
http://statistics.data.gov.uk/id/local-authority/00HY,Wiltshire Council,01/09/2014,5106554438,722.72,Somerset Care At Home Limited ,132004,.,Community Services,West Locality OP,Ongoing Support Plan - Maintenance,Third Party Payments,REVENUE
http://statistics.data.gov.uk/id/local-authority/00HY,Wiltshire Council,01/09/2014,5106554453,285.09,Somerset Care At Home Limited ,132004,.,Community Services,West Locality OP,Ongoing Support Plan - Maintenance,Third Party Payments,REVENUE
http://statistics.data.gov.uk/id/local-authority/00HY,Wiltshire Council,01/09/2014,5106554456,481.80,Somerset Care At Home Limited ,132004,.,Community Services,MH - OSJ Combe End C,Ongoing Support Plan - Maintenance,Third Party Payments,REVENUE
http://statistics.data.gov.uk/id/local-authority/00HY,Wiltshire Council,01/09/2014,5106554462,449.68,Somerset Care At Home Limited ,132004,.,Community Services,South Locality OP,Ongoing Support Plan - Maintenance,Third Party Payments,REVENUE
http://statistics.data.gov.uk/id/local-authority/00HY,Wiltshire Council,01/09/2014,5106554470,780.08,Somerset Care At Home Limited ,132004,.,Community Services,East Locality OP,Ongoing Support Plan - Maintenance,Third Party Payments,REVENUE
http://statistics.data.gov.uk/id/local-authority/00HY,Wiltshire Council,01/09/2014,5106554474,594.24,Somerset Care At Home Limited ,132004,.,Community Services,West Locality OP,Ongoing Support Plan - Maintenance,Third Party Payments,REVENUE
http://statistics.data.gov.uk/id/local-authority/00HY,Wiltshire Council,01/09/2014,5106554475,334.32,Somerset Care At Home Limited ,132004,.,Community Services,North Locality OP,Ongoing Support Plan - Maintenance,Third Party Payments,REVENUE
http://statistics.data.gov.uk/id/local-authority/00HY,Wiltshire Council,01/09/2014,5106554486,445.76,Somerset Care At Home Limited ,132004,.,Community Services,North Locality OP,Ongoing Support Plan - Maintenance,Third Party Payments,REVENUE
http://statistics.data.gov.uk/id/local-authority/00HY,Wiltshire Council,01/09/2014,5106554506,786.96,Somerset Care At Home Limited ,132004,.,Community Services,West Locality OP,Ongoing Support Plan - Maintenance,Third Party Payments,REVENUE
http://statistics.data.gov.uk/id/local-authority/00HY,Wiltshire Council,01/09/2014,5106554515,334.32,Somerset Care At Home Limited ,132004,.,Community Services,North Locality OP,Ongoing Support Plan - Maintenance,Third Party Payments,REVENUE
http://statistics.data.gov.uk/id/local-authority/00HY,Wiltshire Council,01/09/2014,5106554516,477.60,Somerset Care At Home Limited ,132004,.,Community Services,North Locality OP,Ongoing Support Plan - Maintenance,Third Party Payments,REVENUE
http://statistics.data.gov.uk/id/local-authority/00HY,Wiltshire Council,01/09/2014,5106554533,1349.04,Somerset Care At Home Limited ,132004,.,Community Services,West Locality OP,Ongoing Support Plan - Maintenance,Third Party Payments,REVENUE
http://statistics.data.gov.uk/id/local-authority/00HY,Wiltshire Council,01/09/2014,5106554534,2248.40,Somerset Care At Home Limited ,132004,.,Community Services,West Locality OP,Ongoing Support Plan - Maintenance,Third Party Payments,REVENUE
http://statistics.data.gov.uk/id/local-authority/00HY,Wiltshire Council,01/09/2014,5106554535,796.00,Somerset Care At Home Limited ,132004,.,Community Services,North Locality OP,Ongoing Support Plan - Maintenance,Third Party Payments,REVENUE
http://statistics.data.gov.uk/id/local-authority/00HY,Wiltshire Council,01/09/2014,5106554536,602.25,Somerset Care At Home Limited ,132004,.,Community Services,West Locality OP,Ongoing Support Plan - Maintenance,Third Party Payments,REVENUE
http://statistics.data.gov.uk/id/local-authority/00HY,Wiltshire Council,01/09/2014,5106554552,674.52,Somerset Care At Home Limited ,132004,.,Community Services,West Locality OP,Ongoing Support Plan - Maintenance,Third Party Payments,REVENUE
http://statistics.data.gov.uk/id/local-authority/00HY,Wiltshire Council,01/09/2014,5106554564,2074.44,Somerset Care At Home Limited ,132004,.,Community Services,West Locality OP,Ongoing Support Plan - Maintenance,Third Party Payments,REVENUE
http://statistics.data.gov.uk/id/local-authority/00HY,Wiltshire Council,01/09/2014,5106554565,1752.44,Somerset Care At Home Limited ,132004,.,Community Services,North Locality OP,Ongoing Support Plan - Maintenance,Third Party Payments,REVENUE
http://statistics.data.gov.uk/id/local-authority/00HY,Wiltshire Council,01/09/2014,5106554575,589.04,Somerset Care At Home Limited ,132004,.,Community Services,North Locality OP,Ongoing Support Plan - Improvement,Third Party Payments,REVENUE
http://statistics.data.gov.uk/id/local-authority/00HY,Wiltshire Council,01/09/2014,5106554588,262.68,Somerset Care At Home Limited ,132004,.,Community Services,North Locality OP,Initial Support Plan - Reablement,Third Party Payments,REVENUE
http://statistics.data.gov.uk/id/local-authority/00HY,Wiltshire Council,01/09/2014,5106554591,1798.72,Somerset Care At Home Limited ,132004,.,Community Services,West Locality OP,Ongoing Support Plan - Maintenance,Third Party Payments,REVENUE
http://statistics.data.gov.uk/id/local-authority/00HY,Wiltshire Council,01/09/2014,5106554614,1798.96,Somerset Care At Home Limited ,132004,.,Community Services,North Locality OP,Ongoing Support Plan - Maintenance,Third Party Payments,REVENUE
http://statistics.data.gov.uk/id/local-authority/00HY,Wiltshire Council,01/09/2014,5106554617,722.72,Somerset Care At Home Limited ,132004,.,Community Services,West Locality OP,Ongoing Support Plan - Maintenance,Third Party Payments,REVENUE
http://statistics.data.gov.uk/id/local-authority/00HY,Wiltshire Council,01/09/2014,5106554623,337.28,Somerset Care At Home Limited ,132004,.,Community Services,West Locality OP,Ongoing Support Plan - Maintenance,Third Party Payments,REVENUE
http://statistics.data.gov.uk/id/local-authority/00HY,Wiltshire Council,01/09/2014,5106554626,337.28,Somerset Care At Home Limited ,132004,.,Community Services,West Locality OP,Ongoing Support Plan - Maintenance,Third Party Payments,REVENUE
http://statistics.data.gov.uk/id/local-authority/00HY,Wiltshire Council,01/09/2014,5106554627,891.52,Somerset Care At Home Limited ,132004,.,Community Services,North Locality OP,Ongoing Support Plan - Maintenance,Third Party Payments,REVENUE
http://statistics.data.gov.uk/id/local-authority/00HY,Wiltshire Council,01/09/2014,5106554629,334.32,Somerset Care At Home Limited ,132004,.,Community Services,North Locality OP,Ongoing Support Plan - Maintenance,Third Party Payments,REVENUE
http://statistics.data.gov.uk/id/local-authority/00HY,Wiltshire Council,01/09/2014,5106554637,760.20,Somerset Care At Home Limited ,132004,.,Community Services,OVA North Locality,Ongoing Support Plan - Improvement,Third Party Payments,REVENUE
http://statistics.data.gov.uk/id/local-authority/00HY,Wiltshire Council,01/09/2014,5106554639,547.96,Somerset Care At Home Limited ,132004,.,Community Services,West Locality OP,Ongoing Support Plan - Maintenance,Third Party Payments,REVENUE
http://statistics.data.gov.uk/id/local-authority/00HY,Wiltshire Council,01/09/2014,5106554641,450.13,Somerset Care At Home Limited ,132004,.,Community Services,North Locality OP,Ongoing Support Plan - Maintenance,Third Party Payments,REVENUE
http://statistics.data.gov.uk/id/local-authority/00HY,Wiltshire Council,01/09/2014,5106554642,624.40,Somerset Care At Home Limited ,132004,.,Community Services,North Locality OP,Ongoing Support Plan - Maintenance,Third Party Payments,REVENUE
http://statistics.data.gov.uk/id/local-authority/00HY,Wiltshire Council,01/09/2014,5106554646,557.20,Somerset Care At Home Limited ,132004,.,Community Services,North Locality OP,Ongoing Support Plan - Improvement,Third Party Payments,REVENUE
http://statistics.data.gov.uk/id/local-authority/00HY,Wiltshire Council,01/09/2014,5106554656,1208.20,Somerset Care At Home Limited ,132004,.,Community Services,West Locality OP,Ongoing Support Plan - Maintenance,Third Party Payments,REVENUE
http://statistics.data.gov.uk/id/local-authority/00HY,Wiltshire Council,01/09/2014,5106554657,674.52,Somerset Care At Home Limited ,132004,.,Community Services,West Locality OP,Ongoing Support Plan - Maintenance,Third Party Payments,REVENUE
http://statistics.data.gov.uk/id/local-authority/00HY,Wiltshire Council,01/09/2014,5106554663,786.96,Somerset Care At Home Limited ,132004,.,Community Services,West Locality OP,Ongoing Support Plan - Maintenance,Third Party Payments,REVENUE
http://statistics.data.gov.uk/id/local-authority/00HY,Wiltshire Council,01/09/2014,5106554664,786.96,Somerset Care At Home Limited ,132004,.,Community Services,West Locality OP,Initial Support Plan - Maintenance,Third Party Payments,REVENUE
http://statistics.data.gov.uk/id/local-authority/00HY,Wiltshire Council,01/09/2014,5106554669,644.92,Somerset Care At Home Limited ,132004,.,Community Services,North Locality OP,Ongoing Support Plan - Improvement,Third Party Payments,REVENUE
http://statistics.data.gov.uk/id/local-authority/00HY,Wiltshire Council,01/09/2014,5106554670,1146.24,Somerset Care At Home Limited ,132004,.,Community Services,North Locality OP,Ongoing Support Plan - Maintenance,Third Party Payments,REVENUE
http://statistics.data.gov.uk/id/local-authority/00HY,Wiltshire Council,01/09/2014,5106554686,462.56,Somerset Care At Home Limited ,132004,.,Community Services,OVA North Locality,Ongoing Support Plan - Improvement,Third Party Payments,REVENUE
http://statistics.data.gov.uk/id/local-authority/00HY,Wiltshire Council,01/09/2014,5106554689,786.96,Somerset Care At Home Limited ,132004,.,Community Services,West Locality OP,Ongoing Support Plan - Maintenance,Third Party Payments,REVENUE
http://statistics.data.gov.uk/id/local-authority/00HY,Wiltshire Council,01/09/2014,5106554704,289.08,Somerset Care At Home Limited ,132004,.,Community Services,MH - OSJ Combe End C,Initial Support Plan - Maintenance,Third Party Payments,REVENUE
http://statistics.data.gov.uk/id/local-authority/00HY,Wiltshire Council,01/09/2014,5106554705,337.28,Somerset Care At Home Limited ,132004,.,Community Services,West Locality OP,Initial Support Plan - Reablement,Third Party Payments,REVENUE
http://statistics.data.gov.uk/id/local-authority/00HY,Wiltshire Council,01/09/2014,5106554706,270.64,Somerset Care At Home Limited ,132004,.,Community Services,North Locality OP,Ongoing Support Plan - Maintenance,Third Party Payments,REVENUE
http://statistics.data.gov.uk/id/local-authority/00HY,Wiltshire Council,01/09/2014,5106554708,2473.24,Somerset Care At Home Limited ,132004,.,Community Services,West Locality OP,Ongoing Support Plan - Maintenance,Third Party Payments,REVENUE
http://statistics.data.gov.uk/id/local-authority/00HY,Wiltshire Council,01/09/2014,5106554710,2922.92,Somerset Care At Home Limited ,132004,.,Community Services,West Locality OP,Ongoing Support Plan - Maintenance,Third Party Payments,REVENUE
http://statistics.data.gov.uk/id/local-authority/00HY,Wiltshire Council,01/09/2014,5106554713,322.38,Somerset Care At Home Limited ,132004,.,Community Services,North Locality OP,Ongoing Support Plan - Maintenance,Third Party Payments,REVENUE
http://statistics.data.gov.uk/id/local-authority/00HY,Wiltshire Council,01/09/2014,5106554727,1592.00,Somerset Care At Home Limited ,132004,.,Community Services,OVA East Locality,Ongoing Support Plan - Maintenance,Third Party Payments,REVENUE
http://statistics.data.gov.uk/id/local-authority/00HY,Wiltshire Council,01/09/2014,5106554732,256.96,Somerset Care At Home Limited ,132004,.,Community Services,West Locality OP,Ongoing Support Plan - Maintenance,Third Party Payments,REVENUE
http://statistics.data.gov.uk/id/local-authority/00HY,Wiltshire Council,01/09/2014,5106554735,334.32,Somerset Care At Home Limited ,132004,.,Community Services,North Locality OP,Initial Support Plan - Reablement,Third Party Payments,REVENUE
http://statistics.data.gov.uk/id/local-authority/00HY,Wiltshire Council,01/09/2014,5106554738,579.48,Somerset Care At Home Limited ,132004,.,Community Services,North Locality OP,Ongoing Support Plan - Maintenance,Third Party Payments,REVENUE
http://statistics.data.gov.uk/id/local-authority/00HY,Wiltshire Council,01/09/2014,5106554741,497.25,Somerset Care At Home Limited ,132004,.,Community Services,West Locality OP,Ongoing Support Plan - Maintenance,Third Party Payments,REVENUE
http://statistics.data.gov.uk/id/local-authority/00HY,Wiltshire Council,01/09/2014,5106554752,939.36,Somerset Care At Home Limited ,132004,.,Community Services,MH OP North Locality,Ongoing Support Plan - Maintenance,Third Party Payments,REVENUE
http://statistics.data.gov.uk/id/local-authority/00HY,Wiltshire Council,01/09/2014,5106554761,513.92,Somerset Care At Home Limited ,132004,.,Community Services,West Locality OP,Ongoing Support Plan - Improvement,Third Party Payments,REVENUE
http://statistics.data.gov.uk/id/local-authority/00HY,Wiltshire Council,01/09/2014,5106554770,505.96,Somerset Care At Home Limited ,132004,.,Community Services,West Locality OP,Ongoing Support Plan - Maintenance,Third Party Payments,REVENUE
http://statistics.data.gov.uk/id/local-authority/00HY,Wiltshire Council,01/09/2014,5106554773,2248.40,Somerset Care At Home Limited ,132004,.,Community Services,West Locality OP,Ongoing Support Plan - Maintenance,Third Party Payments,REVENUE
http://statistics.data.gov.uk/id/local-authority/00HY,Wiltshire Council,01/09/2014,5106554776,449.68,Somerset Care At Home Limited ,132004,.,Community Services,West Locality OP,Ongoing Support Plan - Maintenance,Third Party Payments,REVENUE
http://statistics.data.gov.uk/id/local-authority/00HY,Wiltshire Council,01/09/2014,5106554781,656.70,Somerset Care At Home Limited ,132004,.,Community Services,North Locality OP,Ongoing Support Plan - Improvement,Third Party Payments,REVENUE
http://statistics.data.gov.uk/id/local-authority/00HY,Wiltshire Council,01/09/2014,5106554782,573.12,Somerset Care At Home Limited ,132004,.,Community Services,North Locality OP,Initial Support Plan - Reablement,Third Party Payments,REVENUE
http://statistics.data.gov.uk/id/local-authority/00HY,Wiltshire Council,01/09/2014,5106554784,461.68,Somerset Care At Home Limited ,132004,.,Community Services,OVA North Locality,Ongoing Support Plan - Maintenance,Third Party Payments,REVENUE
http://statistics.data.gov.uk/id/local-authority/00HY,Wiltshire Council,01/09/2014,5106554807,547.50,Somerset Care At Home Limited ,132004,.,Community Services,West Locality OP,Ongoing Support Plan - Maintenance,Third Party Payments,REVENUE
http://statistics.data.gov.uk/id/local-authority/00HY,Wiltshire Council,01/09/2014,5106554809,1533.12,Somerset Care At Home Limited ,132004,.,Community Services,West Locality OP,Ongoing Support Plan - Maintenance,Third Party Payments,REVENUE
http://statistics.data.gov.uk/id/local-authority/00HY,Wiltshire Council,01/09/2014,5106554812,337.28,Somerset Care At Home Limited ,132004,.,Community Services,West Locality OP,Ongoing Support Plan - Maintenance,Third Party Payments,REVENUE
http://statistics.data.gov.uk/id/local-authority/00HY,Wiltshire Council,01/09/2014,5106554861,521.91,Somerset Care At Home Limited ,132004,.,Community Services,MH OP North Locality,Ongoing Support Plan - Improvement,Third Party Payments,REVENUE
http://statistics.data.gov.uk/id/local-authority/00HY,Wiltshire Council,01/09/2014,5106554866,939.64,Somerset Care At Home Limited ,132004,.,Community Services,MH - OSJ Combe End C,Ongoing Support Plan - Improvement,Third Party Payments,REVENUE
http://statistics.data.gov.uk/id/local-authority/00HY,Wiltshire Council,01/09/2014,5106554871,963.60,Somerset Care At Home Limited ,132004,.,Community Services,West Locality OP,Ongoing Support Plan - Improvement,Third Party Payments,REVENUE
http://statistics.data.gov.uk/id/local-authority/00HY,Wiltshire Council,01/09/2014,5106554885,936.12,Somerset Care At Home Limited ,132004,.,Community Services,South Locality OP,Initial Support Plan - Reablement,Third Party Payments,REVENUE
http://statistics.data.gov.uk/id/local-authority/00HY,Wiltshire Council,01/09/2014,5106554886,2184.16,Somerset Care At Home Limited ,132004,.,Community Services,South Locality OP,Initial Support Plan - Reablement,Third Party Payments,REVENUE
http://statistics.data.gov.uk/id/local-authority/00HY,Wiltshire Council,01/09/2014,5106554917,337.28,Somerset Care At Home Limited ,132004,.,Community Services,South Locality OP,Initial Support Plan - Reablement,Third Party Payments,REVENUE
http://statistics.data.gov.uk/id/local-authority/00HY,Wiltshire Council,01/09/2014,5106554928,568.12,Somerset Care At Home Limited ,132004,.,Community Services,South Locality OP,Ongoing Support Plan - Improvement,Third Party Payments,REVENUE
http://statistics.data.gov.uk/id/local-authority/00HY,Wiltshire Council,01/09/2014,5106554958,511.44,Somerset Care At Home Limited ,132004,.,Community Services,West Locality OP,Ongoing Support Plan - Maintenance,Third Party Payments,REVENUE
http://statistics.data.gov.uk/id/local-authority/00HY,Wiltshire Council,01/09/2014,5106554974,481.80,Somerset Care At Home Limited ,132004,.,Community Services,West Locality OP,Ongoing Support Plan - Maintenance,Third Party Payments,REVENUE
http://statistics.data.gov.uk/id/local-authority/00HY,Wiltshire Council,01/09/2014,5106554987,325.35,Somerset Care At Home Limited ,132004,.,Community Services,West Locality OP,Ongoing Support Plan - Maintenance,Third Party Payments,REVENUE
http://statistics.data.gov.uk/id/local-authority/00HY,Wiltshire Council,01/09/2014,5106554992,2023.56,Somerset Care At Home Limited ,132004,.,Community Services,West Locality OP,Initial Support Plan - Maintenance,Third Party Payments,REVENUE
http://statistics.data.gov.uk/id/local-authority/00HY,Wiltshire Council,01/09/2014,5106554995,282.71,Somerset Care At Home Limited ,132004,.,Community Services,West Locality OP,Ongoing Support Plan - Maintenance,Third Party Payments,REVENUE
http://statistics.data.gov.uk/id/local-authority/00HY,Wiltshire Council,01/09/2014,5106555002,557.20,Somerset Care At Home Limited ,132004,.,Community Services,North Locality OP,Ongoing Support Plan - Maintenance,Third Party Payments,REVENUE
http://statistics.data.gov.uk/id/local-authority/00HY,Wiltshire Council,01/09/2014,5106555024,1124.20,Somerset Care At Home Limited ,132004,.,Community Services,West Locality OP,Ongoing Support Plan - Maintenance,Third Party Payments,REVENUE
http://statistics.data.gov.uk/id/local-authority/00HY,Wiltshire Council,01/09/2014,5106555026,287.73,Somerset Care At Home Limited ,132004,.,Community Services,OVA North Locality,Ongoing Support Plan - Improvement,Third Party Payments,REVENUE
http://statistics.data.gov.uk/id/local-authority/00HY,Wiltshire Council,01/09/2014,5106555042,2632.77,Somerset Care At Home Limited ,132004,.,Community Services,West Locality OP,Initial Support Plan - Reablement,Third Party Payments,REVENUE
http://statistics.data.gov.uk/id/local-authority/00HY,Wiltshire Council,01/09/2014,5106555184,705.68,Somerset Care At Home Limited ,132004,.,Community Services,West Locality OP,Ongoing Support Plan - Maintenance,Third Party Payments,REVENUE
http://statistics.data.gov.uk/id/local-authority/00HY,Wiltshire Council,01/09/2014,5106555198,471.60,Somerset Care At Home Limited ,132004,.,Community Services,MH OP North Locality,Ongoing Support Plan - Maintenance,Third Party Payments,REVENUE
http://statistics.data.gov.uk/id/local-authority/00HY,Wiltshire Council,01/09/2014,5106555203,254.72,Somerset Care At Home Limited ,132004,.,Community Services,MH OP North Locality,Interim Support Plan - HTLAH,Third Party Payments,REVENUE
http://statistics.data.gov.uk/id/local-authority/00HY,Wiltshire Council,01/09/2014,5106555206,1348.08,Somerset Care At Home Limited ,132004,.,Community Services,West Locality OP,Ongoing Support Plan - Maintenance,Third Party Payments,REVENUE
http://statistics.data.gov.uk/id/local-authority/00HY,Wiltshire Council,01/09/2014,5106555208,1123.56,Somerset Care At Home Limited ,132004,.,Community Services,West Locality OP,Ongoing Support Plan - Maintenance,Third Party Payments,REVENUE
http://statistics.data.gov.uk/id/local-authority/00HY,Wiltshire Council,01/09/2014,5106555214,593.72,Somerset Care At Home Limited ,132004,.,Community Services,West Locality OP,Ongoing Support Plan - Maintenance,Third Party Payments,REVENUE
http://statistics.data.gov.uk/id/local-authority/00HY,Wiltshire Council,01/09/2014,5106555249,369.32,Somerset Care At Home Limited ,132004,.,Community Services,West Locality OP,Ongoing Support Plan - Maintenance,Third Party Payments,REVENUE
http://statistics.data.gov.uk/id/local-authority/00HY,Wiltshire Council,01/09/2014,5106555258,674.52,Somerset Care At Home Limited ,132004,.,Community Services,West Locality OP,Ongoing Support Plan - Maintenance,Third Party Payments,REVENUE
http://statistics.data.gov.uk/id/local-authority/00HY,Wiltshire Council,01/09/2014,5106555262,1312.73,Somerset Care At Home Limited ,132004,.,Community Services,MH - OSJ Combe End C,Ongoing Support Plan - Maintenance,Third Party Payments,REVENUE
http://statistics.data.gov.uk/id/local-authority/00HY,Wiltshire Council,01/09/2014,5106555263,1911.16,Somerset Care At Home Limited ,132004,.,Community Services,West Locality OP,Ongoing Support Plan - Maintenance,Third Party Payments,REVENUE
http://statistics.data.gov.uk/id/local-authority/00HY,Wiltshire Council,01/09/2014,5106555268,445.76,Somerset Care At Home Limited ,132004,.,Community Services,North Locality OP,Ongoing Support Plan - Maintenance,Third Party Payments,REVENUE
http://statistics.data.gov.uk/id/local-authority/00HY,Wiltshire Council,01/09/2014,5106555275,256.96,Somerset Care At Home Limited ,132004,.,Community Services,West Locality OP,Ongoing Support Plan - Maintenance,Third Party Payments,REVENUE
http://statistics.data.gov.uk/id/local-authority/00HY,Wiltshire Council,01/09/2014,5106555276,1100.40,Somerset Care At Home Limited ,132004,.,Community Services,West Locality OP,Ongoing Support Plan - Maintenance,Third Party Payments,REVENUE
http://statistics.data.gov.uk/id/local-authority/00HY,Wiltshire Council,01/09/2014,5106555290,562.12,Somerset Care At Home Limited ,132004,.,Community Services,West Locality OP,Ongoing Support Plan - Maintenance,Third Party Payments,REVENUE
http://statistics.data.gov.uk/id/local-authority/00HY,Wiltshire Council,01/09/2014,5106555294,786.40,Somerset Care At Home Limited ,132004,.,Community Services,West Locality OP,Ongoing Support Plan - Maintenance,Third Party Payments,REVENUE
http://statistics.data.gov.uk/id/local-authority/00HY,Wiltshire Council,01/09/2014,5106555295,253.16,Somerset Care At Home Limited ,132004,.,Community Services,North Locality OP,Ongoing Support Plan - Maintenance,Third Party Payments,REVENUE
http://statistics.data.gov.uk/id/local-authority/00HY,Wiltshire Council,01/09/2014,5106555299,336.77,Somerset Care At Home Limited ,132004,.,Community Services,OVA North Locality,Ongoing Support Plan - Maintenance,Third Party Payments,REVENUE
http://statistics.data.gov.uk/id/local-authority/00HY,Wiltshire Council,01/09/2014,5106555326,286.52,Somerset Care At Home Limited ,132004,.,Community Services,MH AOWA North Locali,Interim Support Plan - HTLAH,Third Party Payments,REVENUE
http://statistics.data.gov.uk/id/local-authority/00HY,Wiltshire Council,01/09/2014,5106555355,557.16,Somerset Care At Home Limited ,132004,.,Community Services,East Locality OP,Interim Support Plan - HTLAH,Third Party Payments,REVENUE
http://statistics.data.gov.uk/id/local-authority/00HY,Wiltshire Council,01/09/2014,5106555359,332.08,Somerset Care At Home Limited ,132004,.,Community Services,North Locality OP,Ongoing Support Plan - Maintenance,Third Party Payments,REVENUE
http://statistics.data.gov.uk/id/local-authority/00HY,Wiltshire Council,01/09/2014,5106555363,353.32,Somerset Care At Home Limited ,132004,.,Community Services,West Locality OP,Ongoing Support Plan - Maintenance,Third Party Payments,REVENUE
http://statistics.data.gov.uk/id/local-authority/00HY,Wiltshire Council,01/09/2014,5106555378,556.68,Somerset Care At Home Limited ,132004,.,Community Services,North Locality OP,Ongoing Support Plan - Maintenance,Third Party Payments,REVENUE
http://statistics.data.gov.uk/id/local-authority/00HY,Wiltshire Council,01/09/2014,5106555380,1783.04,Somerset Care At Home Limited ,132004,.,Community Services,North Locality OP,Ongoing Support Plan - Maintenance,Third Party Payments,REVENUE
http://statistics.data.gov.uk/id/local-authority/00HY,Wiltshire Council,01/09/2014,5106555386,372.28,Somerset Care At Home Limited ,132004,.,Community Services,North Locality OP,Ongoing Support Plan - Maintenance,Third Party Payments,REVENUE
http://statistics.data.gov.uk/id/local-authority/00HY,Wiltshire Council,01/09/2014,5106555392,443.80,Somerset Care At Home Limited ,132004,.,Community Services,North Locality OP,Ongoing Support Plan - Maintenance,Third Party Payments,REVENUE
http://statistics.data.gov.uk/id/local-authority/00HY,Wiltshire Council,01/09/2014,5106555401,561.72,Somerset Care At Home Limited ,132004,.,Community Services,MH - OSJ Combe End C,Ongoing Support Plan - Maintenance,Third Party Payments,REVENUE
http://statistics.data.gov.uk/id/local-authority/00HY,Wiltshire Council,01/09/2014,5106555406,562.12,Somerset Care At Home Limited ,132004,.,Community Services,West Locality OP,Ongoing Support Plan - Maintenance,Third Party Payments,REVENUE
http://statistics.data.gov.uk/id/local-authority/00HY,Wiltshire Council,01/09/2014,5106555409,668.64,Somerset Care At Home Limited ,132004,.,Community Services,MH OP North Locality,Interim Support Plan - HTLAH,Third Party Payments,REVENUE
http://statistics.data.gov.uk/id/local-authority/00HY,Wiltshire Council,01/09/2014,5106555419,1814.80,Somerset Care At Home Limited ,132004,.,Community Services,West Locality OP,Ongoing Support Plan - Maintenance,Third Party Payments,REVENUE
http://statistics.data.gov.uk/id/local-authority/00HY,Wiltshire Council,01/09/2014,5106555421,1095.92,Somerset Care At Home Limited ,132004,.,Community Services,MH OP North Locality,Interim Support Plan - HTLAH,Third Party Payments,REVENUE
http://statistics.data.gov.uk/id/local-authority/00HY,Wiltshire Council,01/09/2014,5106555425,786.96,Somerset Care At Home Limited ,132004,.,Community Services,South Locality OP,Ongoing Support Plan - Maintenance,Third Party Payments,REVENUE
http://statistics.data.gov.uk/id/local-authority/00HY,Wiltshire Council,01/09/2014,5106555435,566.72,Somerset Care At Home Limited ,132004,.,Community Services,West Locality OP,Ongoing Support Plan - Maintenance,Third Party Payments,REVENUE
http://statistics.data.gov.uk/id/local-authority/00HY,Wiltshire Council,01/09/2014,5106555441,466.24,Somerset Care At Home Limited ,132004,.,Community Services,West Locality OP,Ongoing Support Plan - Maintenance,Third Party Payments,REVENUE
http://statistics.data.gov.uk/id/local-authority/00HY,Wiltshire Council,01/09/2014,5106555457,652.72,Somerset Care At Home Limited ,132004,.,Community Services,North Locality OP,Ongoing Support Plan - Maintenance,Third Party Payments,REVENUE
http://statistics.data.gov.uk/id/local-authority/00HY,Wiltshire Council,01/09/2014,5106555459,780.08,Somerset Care At Home Limited ,132004,.,Community Services,North Locality OP,Ongoing Support Plan - Maintenance,Third Party Payments,REVENUE
http://statistics.data.gov.uk/id/local-authority/00HY,Wiltshire Council,01/09/2014,5106555461,2023.56,Somerset Care At Home Limited ,132004,.,Community Services,South Locality OP,Ongoing Support Plan - Maintenance,Third Party Payments,REVENUE
http://statistics.data.gov.uk/id/local-authority/00HY,Wiltshire Council,01/09/2014,5106555469,1114.40,Somerset Care At Home Limited ,132004,.,Community Services,OVA North Locality,Ongoing Support Plan - Maintenance,Third Party Payments,REVENUE
http://statistics.data.gov.uk/id/local-authority/00HY,Wiltshire Council,01/09/2014,5106555485,988.56,Somerset Care At Home Limited ,132004,.,Community Services,North Locality OP,Ongoing Support Plan - Maintenance,Third Party Payments,REVENUE
http://statistics.data.gov.uk/id/local-authority/00HY,Wiltshire Council,01/09/2014,5106555490,847.44,Somerset Care At Home Limited ,132004,.,Community Services,North Locality OP,Ongoing Support Plan - Maintenance,Third Party Payments,REVENUE
http://statistics.data.gov.uk/id/local-authority/00HY,Wiltshire Council,01/09/2014,5106555492,835.80,Somerset Care At Home Limited ,132004,.,Community Services,North Locality OP,Ongoing Support Plan - Maintenance,Third Party Payments,REVENUE
http://statistics.data.gov.uk/id/local-authority/00HY,Wiltshire Council,01/09/2014,5106555494,1220.32,Somerset Care At Home Limited ,132004,.,Community Services,OVA North Locality,Ongoing Support Plan - Maintenance,Third Party Payments,REVENUE
http://statistics.data.gov.uk/id/local-authority/00HY,Wiltshire Council,01/09/2014,5106555500,445.76,Somerset Care At Home Limited ,132004,.,Community Services,OVA North Locality,Ongoing Support Plan - Maintenance,Third Party Payments,REVENUE
http://statistics.data.gov.uk/id/local-authority/00HY,Wiltshire Council,01/09/2014,5106555512,289.08,Somerset Care At Home Limited ,132004,.,Community Services,West Locality OP,Ongoing Support Plan - Maintenance,Third Party Payments,REVENUE
http://statistics.data.gov.uk/id/local-authority/00HY,Wiltshire Council,01/09/2014,5106555514,254.72,Somerset Care At Home Limited ,132004,.,Community Services,North Locality OP,Ongoing Support Plan - Maintenance,Third Party Payments,REVENUE
http://statistics.data.gov.uk/id/local-authority/00HY,Wiltshire Council,01/09/2014,5106555516,449.68,Somerset Care At Home Limited ,132004,.,Community Services,West Locality OP,Ongoing Support Plan - Maintenance,Third Party Payments,REVENUE
http://statistics.data.gov.uk/id/local-authority/00HY,Wiltshire Council,01/09/2014,5106555517,3582.00,Somerset Care At Home Limited ,132004,.,Community Services,OVA North Locality,Ongoing Support Plan - Maintenance,Third Party Payments,REVENUE
http://statistics.data.gov.uk/id/local-authority/00HY,Wiltshire Council,01/09/2014,5106555525,777.00,Somerset Care At Home Limited ,132004,.,Community Services,North Locality OP,Ongoing Support Plan - Maintenance,Third Party Payments,REVENUE
http://statistics.data.gov.uk/id/local-authority/00HY,Wiltshire Council,01/09/2014,5106555531,273.04,Somerset Care At Home Limited ,132004,.,Community Services,West Locality OP,Ongoing Support Plan - Maintenance,Third Party Payments,REVENUE
http://statistics.data.gov.uk/id/local-authority/00HY,Wiltshire Council,01/09/2014,5106555543,923.36,Somerset Care At Home Limited ,132004,.,Community Services,OVA North Locality,Ongoing Support Plan - Maintenance,Third Party Payments,REVENUE
http://statistics.data.gov.uk/id/local-authority/00HY,Wiltshire Council,01/09/2014,5106555550,1798.72,Somerset Care At Home Limited ,132004,.,Community Services,OVA South Locality,Ongoing Support Plan - Maintenance,Third Party Payments,REVENUE
http://statistics.data.gov.uk/id/local-authority/00HY,Wiltshire Council,01/09/2014,5106555554,334.32,Somerset Care At Home Limited ,132004,.,Community Services,North Locality OP,Ongoing Support Plan - Maintenance,Third Party Payments,REVENUE
http://statistics.data.gov.uk/id/local-authority/00HY,Wiltshire Council,01/09/2014,5106555564,1409.04,Somerset Care At Home Limited ,132004,.,Community Services,MH OP North Locality,Ongoing Support Plan - Maintenance,Third Party Payments,REVENUE
http://statistics.data.gov.uk/id/local-authority/00HY,Wiltshire Council,01/09/2014,5106555566,674.52,Somerset Care At Home Limited ,132004,.,Community Services,MH OP North Locality,Ongoing Support Plan - Improvement,Third Party Payments,REVENUE
http://statistics.data.gov.uk/id/local-authority/00HY,Wiltshire Council,01/09/2014,5106555568,1114.40,Somerset Care At Home Limited ,132004,.,Community Services,OVA North Locality,Ongoing Support Plan - Maintenance,Third Party Payments,REVENUE
http://statistics.data.gov.uk/id/local-authority/00HY,Wiltshire Council,01/09/2014,5106555595,436.56,Somerset Care At Home Limited ,132004,.,Community Services,OVA North Locality,Ongoing Support Plan - Improvement,Third Party Payments,REVENUE
http://statistics.data.gov.uk/id/local-authority/00HY,Wiltshire Council,01/09/2014,5106555600,875.60,Somerset Care At Home Limited ,132004,.,Community Services,North Locality OP,Ongoing Support Plan - Maintenance,Third Party Payments,REVENUE
http://statistics.data.gov.uk/id/local-authority/00HY,Wiltshire Council,01/09/2014,5106555618,1011.80,Somerset Care At Home Limited ,132004,.,Community Services,West Locality OP,Ongoing Support Plan - Maintenance,Third Party Payments,REVENUE
http://statistics.data.gov.uk/id/local-authority/00HY,Wiltshire Council,01/09/2014,5106555620,445.76,Somerset Care At Home Limited ,132004,.,Community Services,North Locality OP,Ongoing Support Plan - Maintenance,Third Party Payments,REVENUE
http://statistics.data.gov.uk/id/local-authority/00HY,Wiltshire Council,01/09/2014,5106555621,298.50,Somerset Care At Home Limited ,132004,.,Community Services,North Locality OP,Initial Support Plan - Reablement,Third Party Payments,REVENUE
http://statistics.data.gov.uk/id/local-authority/00HY,Wiltshire Council,01/09/2014,5106555626,337.28,Somerset Care At Home Limited ,132004,.,Community Services,West Locality OP,Ongoing Support Plan - Maintenance,Third Party Payments,REVENUE
http://statistics.data.gov.uk/id/local-authority/00HY,Wiltshire Council,01/09/2014,5106555632,573.12,Somerset Care At Home Limited ,132004,.,Community Services,North Locality OP,Ongoing Support Plan - Maintenance,Third Party Payments,REVENUE
http://statistics.data.gov.uk/id/local-authority/00HY,Wiltshire Council,01/09/2014,5106555645,401.60,Somerset Care At Home Limited ,132004,.,Community Services,MH - OSJ Combe End C,Ongoing Support Plan - Maintenance,Third Party Payments,REVENUE
http://statistics.data.gov.uk/id/local-authority/00HY,Wiltshire Council,01/09/2014,5106555647,286.75,Somerset Care At Home Limited ,132004,.,Community Services,OVA South Locality,Ongoing Support Plan - Improvement,Third Party Payments,REVENUE
http://statistics.data.gov.uk/id/local-authority/00HY,Wiltshire Council,01/09/2014,5106555651,1011.80,Somerset Care At Home Limited ,132004,.,Community Services,West Locality OP,Ongoing Support Plan - Improvement,Third Party Payments,REVENUE
http://statistics.data.gov.uk/id/local-authority/00HY,Wiltshire Council,01/09/2014,5106555653,441.84,Somerset Care At Home Limited ,132004,.,Community Services,North Locality OP,Initial Support Plan - Maintenance,Third Party Payments,REVENUE
http://statistics.data.gov.uk/id/local-authority/00HY,Wiltshire Council,01/09/2014,5106555665,341.20,Somerset Care At Home Limited ,132004,.,Community Services,North Locality OP,Ongoing Support Plan - Maintenance,Third Party Payments,REVENUE
http://statistics.data.gov.uk/id/local-authority/00HY,Wiltshire Council,01/09/2014,5106555666,758.94,Somerset Care At Home Limited ,132004,.,Community Services,MH - OSJ Combe End C,Ongoing Support Plan - Maintenance,Third Party Payments,REVENUE
http://statistics.data.gov.uk/id/local-authority/00HY,Wiltshire Council,01/09/2014,5106555668,433.62,Somerset Care At Home Limited ,132004,.,Community Services,MH - OSJ Combe End C,Ongoing Support Plan - Maintenance,Third Party Payments,REVENUE
http://statistics.data.gov.uk/id/local-authority/00HY,Wiltshire Council,01/09/2014,5106555686,317.34,Somerset Care At Home Limited ,132004,.,Community Services,OVA North Locality,Ongoing Support Plan - Improvement,Third Party Payments,REVENUE
http://statistics.data.gov.uk/id/local-authority/00HY,Wiltshire Council,01/09/2014,5106555691,562.12,Somerset Care At Home Limited ,132004,.,Community Services,West Locality OP,Initial Support Plan - Reablement,Third Party Payments,REVENUE
http://statistics.data.gov.uk/id/local-authority/00HY,Wiltshire Council,01/09/2014,5106555692,583.47,Somerset Care At Home Limited ,132004,.,Community Services,North Locality OP,Ongoing Support Plan - Maintenance,Third Party Payments,REVENUE
http://statistics.data.gov.uk/id/local-authority/00HY,Wiltshire Council,01/09/2014,5106555697,385.44,Somerset Care At Home Limited ,132004,.,Community Services,West Locality OP,Ongoing Support Plan - Maintenance,Third Party Payments,REVENUE
http://statistics.data.gov.uk/id/local-authority/00HY,Wiltshire Council,01/09/2014,5106555702,326.99,Somerset Care At Home Limited ,132004,.,Community Services,West Locality OP,Ongoing Support Plan - Maintenance,Third Party Payments,REVENUE
http://statistics.data.gov.uk/id/local-authority/00HY,Wiltshire Council,01/09/2014,5106555706,666.91,Somerset Care At Home Limited ,132004,.,Community Services,North Locality OP,Ongoing Support Plan - Maintenance,Third Party Payments,REVENUE
http://statistics.data.gov.uk/id/local-authority/00HY,Wiltshire Council,01/09/2014,5106555711,274.62,Somerset Care At Home Limited ,132004,.,Community Services,North Locality OP,Ongoing Support Plan - Maintenance,Third Party Payments,REVENUE
http://statistics.data.gov.uk/id/local-authority/00HY,Wiltshire Council,01/09/2014,5106555712,526.50,Somerset Care At Home Limited ,132004,.,Community Services,South Locality OP,Ongoing Support Plan - Maintenance,Third Party Payments,REVENUE
http://statistics.data.gov.uk/id/local-authority/00HY,Wiltshire Council,01/09/2014,5106555719,738.68,Somerset Care At Home Limited ,132004,.,Community Services,North Locality OP,Ongoing Support Plan - Maintenance,Third Party Payments,REVENUE
http://statistics.data.gov.uk/id/local-authority/00HY,Wiltshire Council,01/09/2014,5106555721,546.04,Somerset Care At Home Limited ,132004,.,Community Services,South Locality OP,Ongoing Support Plan - Maintenance,Third Party Payments,REVENUE
http://statistics.data.gov.uk/id/local-authority/00HY,Wiltshire Council,01/09/2014,5106555734,353.32,Somerset Care At Home Limited ,132004,.,Community Services,MH - OSJ Combe End C,Ongoing Support Plan - Improvement,Third Party Payments,REVENUE
http://statistics.data.gov.uk/id/local-authority/00HY,Wiltshire Council,01/09/2014,5106555747,1324.32,Somerset Care At Home Limited ,132004,.,Community Services,MH - OSJ Combe End C,Ongoing Support Plan - Maintenance,Third Party Payments,REVENUE
http://statistics.data.gov.uk/id/local-authority/00HY,Wiltshire Council,01/09/2014,5106555750,1449.51,Somerset Care At Home Limited ,132004,.,Community Services,South Locality OP,Ongoing Support Plan - Maintenance,Third Party Payments,REVENUE
http://statistics.data.gov.uk/id/local-authority/00HY,Wiltshire Council,01/09/2014,5106555752,289.08,Somerset Care At Home Limited ,132004,.,Community Services,South Locality OP,Ongoing Support Plan - Improvement,Third Party Payments,REVENUE
http://statistics.data.gov.uk/id/local-authority/00HY,Wiltshire Council,01/09/2014,5106555758,357.70,Somerset Care At Home Limited ,132004,.,Community Services,West Locality OP,Initial Support Plan - Maintenance,Third Party Payments,REVENUE
http://statistics.data.gov.uk/id/local-authority/00HY,Wiltshire Council,01/09/2014,5106555759,409.53,Somerset Care At Home Limited ,132004,.,Community Services,West Locality OP,Initial Support Plan - Reablement,Third Party Payments,REVENUE
http://statistics.data.gov.uk/id/local-authority/00HY,Wiltshire Council,01/09/2014,5106555760,451.62,Somerset Care At Home Limited ,132004,.,Community Services,West Locality OP,Initial Support Plan - Reablement,Third Party Payments,REVENUE
http://statistics.data.gov.uk/id/local-authority/00HY,Wiltshire Council,01/09/2014,5106555774,891.52,Somerset Care At Home Limited ,132004,.,Community Services,North Locality OP,Ongoing Support Plan - Improvement,Third Party Payments,REVENUE
http://statistics.data.gov.uk/id/local-authority/00HY,Wiltshire Council,01/09/2014,5106555780,342.30,Somerset Care At Home Limited ,132004,.,Community Services,OVA North Locality,Ongoing Support Plan - Improvement,Third Party Payments,REVENUE
http://statistics.data.gov.uk/id/local-authority/00HY,Wiltshire Council,01/09/2014,5106555970,899.36,Somerset Care At Home Limited ,132004,.,Community Services,West Locality OP,Ongoing Support Plan - Maintenance,Third Party Payments,REVENUE
http://statistics.data.gov.uk/id/local-authority/00HY,Wiltshire Council,01/09/2014,5106555975,409.53,Somerset Care At Home Limited ,132004,.,Community Services,West Locality OP,Ongoing Support Plan - Maintenance,Third Party Payments,REVENUE
http://statistics.data.gov.uk/id/local-authority/00HY,Wiltshire Council,01/09/2014,5106555986,2228.80,Somerset Care At Home Limited ,132004,.,Community Services,North Locality OP,Ongoing Support Plan - Maintenance,Third Party Payments,REVENUE
http://statistics.data.gov.uk/id/local-authority/00HY,Wiltshire Council,01/09/2014,5106556021,1734.48,Somerset Care At Home Limited ,132004,.,Community Services,West Locality OP,Ongoing Support Plan - Maintenance,Third Party Payments,REVENUE
http://statistics.data.gov.uk/id/local-authority/00HY,Wiltshire Council,01/09/2014,5106556028,281.68,Somerset Care At Home Limited ,132004,.,Community Services,MH OP North Locality,Ongoing Support Plan - Maintenance,Third Party Payments,REVENUE
http://statistics.data.gov.uk/id/local-authority/00HY,Wiltshire Council,01/09/2014,5106556029,449.68,Somerset Care At Home Limited ,132004,.,Community Services,MH OP North Locality,Ongoing Support Plan - Maintenance,Third Party Payments,REVENUE
http://statistics.data.gov.uk/id/local-authority/00HY,Wiltshire Council,01/09/2014,5106556030,1445.40,Somerset Care At Home Limited ,132004,.,Community Services,West Locality OP,Ongoing Support Plan - Improvement,Third Party Payments,REVENUE
http://statistics.data.gov.uk/id/local-authority/00HY,Wiltshire Council,01/09/2014,5106556035,394.08,Somerset Care At Home Limited ,132004,.,Community Services,North Locality OP,Ongoing Support Plan - Maintenance,Third Party Payments,REVENUE
http://statistics.data.gov.uk/id/local-authority/00HY,Wiltshire Council,01/09/2014,5106556043,301.25,Somerset Care At Home Limited ,132004,.,Community Services,West Locality OP,Initial Support Plan - Maintenance,Third Party Payments,REVENUE
http://statistics.data.gov.uk/id/local-authority/00HY,Wiltshire Council,01/09/2014,5106556058,464.62,Somerset Care At Home Limited ,132004,.,Community Services,West Locality OP,Ongoing Support Plan - Maintenance,Third Party Payments,REVENUE
http://statistics.data.gov.uk/id/local-authority/00HY,Wiltshire Council,29/09/2014,5106566509,641.44,Somerset Care At Home Limited ,132004,.,Community Services,West Locality OP,Ongoing Support Plan - Maintenance,Third Party Payments,REVENUE
http://statistics.data.gov.uk/id/local-authority/00HY,Wiltshire Council,29/09/2014,5106566639,257.70,Somerset Care At Home Limited ,132004,.,Community Services,West Locality OP,Ongoing Support Plan - Maintenance,Third Party Payments,REVENUE
http://statistics.data.gov.uk/id/local-authority/00HY,Wiltshire Council,29/09/2014,5106566640,251.90,Somerset Care At Home Limited ,132004,.,Community Services,West Locality OP,Ongoing Support Plan - Maintenance,Third Party Payments,REVENUE
http://statistics.data.gov.uk/id/local-authority/00HY,Wiltshire Council,29/09/2014,5106566657,336.42,Somerset Care At Home Limited ,132004,.,Community Services,MH - OSJ Combe End C,Ongoing Support Plan - Maintenance,Third Party Payments,REVENUE
http://statistics.data.gov.uk/id/local-authority/00HY,Wiltshire Council,29/09/2014,5106566667,384.80,Somerset Care At Home Limited ,132004,.,Community Services,West Locality OP,Ongoing Support Plan - Maintenance,Third Party Payments,REVENUE
http://statistics.data.gov.uk/id/local-authority/00HY,Wiltshire Council,29/09/2014,5106566677,262.46,Somerset Care At Home Limited ,132004,.,Community Services,North Locality OP,Ongoing Support Plan - Maintenance,Third Party Payments,REVENUE
http://statistics.data.gov.uk/id/local-authority/00HY,Wiltshire Council,29/09/2014,5106566680,428.40,Somerset Care At Home Limited ,132004,.,Community Services,West Locality OP,Ongoing Support Plan - Maintenance,Third Party Payments,REVENUE
http://statistics.data.gov.uk/id/local-authority/00HY,Wiltshire Council,29/09/2014,5106566688,254.72,Somerset Care At Home Limited ,132004,.,Community Services,MH OP North Locality,Interim Support Plan - HTLAH,Third Party Payments,REVENUE
http://statistics.data.gov.uk/id/local-authority/00HY,Wiltshire Council,29/09/2014,5106566689,1107.45,Somerset Care At Home Limited ,132004,.,Community Services,West Locality OP,Ongoing Support Plan - Maintenance,Third Party Payments,REVENUE
http://statistics.data.gov.uk/id/local-authority/00HY,Wiltshire Council,29/09/2014,5106566691,963.12,Somerset Care At Home Limited ,132004,.,Community Services,West Locality OP,Ongoing Support Plan - Maintenance,Third Party Payments,REVENUE
http://statistics.data.gov.uk/id/local-authority/00HY,Wiltshire Council,29/09/2014,5106566696,466.40,Somerset Care At Home Limited ,132004,.,Community Services,West Locality OP,Ongoing Support Plan - Maintenance,Third Party Payments,REVENUE
http://statistics.data.gov.uk/id/local-authority/00HY,Wiltshire Council,29/09/2014,5106566722,369.32,Somerset Care At Home Limited ,132004,.,Community Services,West Locality OP,Ongoing Support Plan - Maintenance,Third Party Payments,REVENUE
http://statistics.data.gov.uk/id/local-authority/00HY,Wiltshire Council,29/09/2014,5106566730,674.52,Somerset Care At Home Limited ,132004,.,Community Services,West Locality OP,Ongoing Support Plan - Maintenance,Third Party Payments,REVENUE
http://statistics.data.gov.uk/id/local-authority/00HY,Wiltshire Council,29/09/2014,5106566733,1911.16,Somerset Care At Home Limited ,132004,.,Community Services,West Locality OP,Ongoing Support Plan - Maintenance,Third Party Payments,REVENUE
http://statistics.data.gov.uk/id/local-authority/00HY,Wiltshire Council,29/09/2014,5106566736,445.76,Somerset Care At Home Limited ,132004,.,Community Services,North Locality OP,Ongoing Support Plan - Maintenance,Third Party Payments,REVENUE
http://statistics.data.gov.uk/id/local-authority/00HY,Wiltshire Council,29/09/2014,5106566740,256.96,Somerset Care At Home Limited ,132004,.,Community Services,West Locality OP,Ongoing Support Plan - Maintenance,Third Party Payments,REVENUE
http://statistics.data.gov.uk/id/local-authority/00HY,Wiltshire Council,29/09/2014,5106566748,562.12,Somerset Care At Home Limited ,132004,.,Community Services,West Locality OP,Ongoing Support Plan - Maintenance,Third Party Payments,REVENUE
http://statistics.data.gov.uk/id/local-authority/00HY,Wiltshire Council,29/09/2014,5106566750,646.07,Somerset Care At Home Limited ,132004,.,Community Services,West Locality OP,Ongoing Support Plan - Maintenance,Third Party Payments,REVENUE
http://statistics.data.gov.uk/id/local-authority/00HY,Wiltshire Council,29/09/2014,5106566776,286.52,Somerset Care At Home Limited ,132004,.,Community Services,MH AOWA North Locali,Interim Support Plan - HTLAH,Third Party Payments,REVENUE
http://statistics.data.gov.uk/id/local-authority/00HY,Wiltshire Council,29/09/2014,5106566803,557.16,Somerset Care At Home Limited ,132004,.,Community Services,East Locality OP,Interim Support Plan - HTLAH,Third Party Payments,REVENUE
http://statistics.data.gov.uk/id/local-authority/00HY,Wiltshire Council,29/09/2014,5106566809,353.32,Somerset Care At Home Limited ,132004,.,Community Services,West Locality OP,Ongoing Support Plan - Maintenance,Third Party Payments,REVENUE
http://statistics.data.gov.uk/id/local-authority/00HY,Wiltshire Council,29/09/2014,5106566818,417.48,Somerset Care At Home Limited ,132004,.,Community Services,North Locality OP,Ongoing Support Plan - Maintenance,Third Party Payments,REVENUE
http://statistics.data.gov.uk/id/local-authority/00HY,Wiltshire Council,29/09/2014,5106566820,1783.04,Somerset Care At Home Limited ,132004,.,Community Services,North Locality OP,Ongoing Support Plan - Maintenance,Third Party Payments,REVENUE
http://statistics.data.gov.uk/id/local-authority/00HY,Wiltshire Council,29/09/2014,5106566830,412.10,Somerset Care At Home Limited ,132004,.,Community Services,North Locality OP,Ongoing Support Plan - Maintenance,Third Party Payments,REVENUE
http://statistics.data.gov.uk/id/local-authority/00HY,Wiltshire Council,29/09/2014,5106566837,461.38,Somerset Care At Home Limited ,132004,.,Community Services,MH - OSJ Combe End C,Ongoing Support Plan - Maintenance,Third Party Payments,REVENUE
http://statistics.data.gov.uk/id/local-authority/00HY,Wiltshire Council,29/09/2014,5106566842,668.64,Somerset Care At Home Limited ,132004,.,Community Services,MH OP North Locality,Interim Support Plan - HTLAH,Third Party Payments,REVENUE
http://statistics.data.gov.uk/id/local-authority/00HY,Wiltshire Council,29/09/2014,5106566860,1814.80,Somerset Care At Home Limited ,132004,.,Community Services,West Locality OP,Ongoing Support Plan - Maintenance,Third Party Payments,REVENUE
http://statistics.data.gov.uk/id/local-authority/00HY,Wiltshire Council,29/09/2014,5106566862,1017.64,Somerset Care At Home Limited ,132004,.,Community Services,MH OP North Locality,Interim Support Plan - HTLAH,Third Party Payments,REVENUE
http://statistics.data.gov.uk/id/local-authority/00HY,Wiltshire Council,29/09/2014,5106566866,786.96,Somerset Care At Home Limited ,132004,.,Community Services,South Locality OP,Ongoing Support Plan - Maintenance,Third Party Payments,REVENUE
http://statistics.data.gov.uk/id/local-authority/00HY,Wiltshire Council,29/09/2014,5106566874,566.72,Somerset Care At Home Limited ,132004,.,Community Services,West Locality OP,Ongoing Support Plan - Maintenance,Third Party Payments,REVENUE
http://statistics.data.gov.uk/id/local-authority/00HY,Wiltshire Council,29/09/2014,5106566880,466.24,Somerset Care At Home Limited ,132004,.,Community Services,West Locality OP,Ongoing Support Plan - Maintenance,Third Party Payments,REVENUE
http://statistics.data.gov.uk/id/local-authority/00HY,Wiltshire Council,29/09/2014,5106566893,652.72,Somerset Care At Home Limited ,132004,.,Community Services,North Locality OP,Ongoing Support Plan - Maintenance,Third Party Payments,REVENUE
http://statistics.data.gov.uk/id/local-authority/00HY,Wiltshire Council,29/09/2014,5106566895,780.08,Somerset Care At Home Limited ,132004,.,Community Services,North Locality OP,Ongoing Support Plan - Maintenance,Third Party Payments,REVENUE
http://statistics.data.gov.uk/id/local-authority/00HY,Wiltshire Council,29/09/2014,5106566897,2023.56,Somerset Care At Home Limited ,132004,.,Community Services,South Locality OP,Ongoing Support Plan - Maintenance,Third Party Payments,REVENUE
http://statistics.data.gov.uk/id/local-authority/00HY,Wiltshire Council,29/09/2014,5106566900,1114.40,Somerset Care At Home Limited ,132004,.,Community Services,OVA North Locality,Ongoing Support Plan - Maintenance,Third Party Payments,REVENUE
http://statistics.data.gov.uk/id/local-authority/00HY,Wiltshire Council,29/09/2014,5106566916,918.06,Somerset Care At Home Limited ,132004,.,Community Services,North Locality OP,Ongoing Support Plan - Maintenance,Third Party Payments,REVENUE
http://statistics.data.gov.uk/id/local-authority/00HY,Wiltshire Council,29/09/2014,5106566920,337.28,Somerset Care At Home Limited ,132004,.,Community Services,West Locality OP,Ongoing Support Plan - Maintenance,Third Party Payments,REVENUE
http://statistics.data.gov.uk/id/local-authority/00HY,Wiltshire Council,29/09/2014,5106566938,256.02,Somerset Care At Home Limited ,132004,.,Community Services,West Locality OP,Ongoing Support Plan - Improvement,Third Party Payments,REVENUE
http://statistics.data.gov.uk/id/local-authority/00HY,Wiltshire Council,29/09/2014,5106566949,562.12,Somerset Care At Home Limited ,132004,.,Community Services,West Locality OP,Ongoing Support Plan - Maintenance,Third Party Payments,REVENUE
http://statistics.data.gov.uk/id/local-authority/00HY,Wiltshire Council,29/09/2014,5106566974,1369.92,Somerset Care At Home Limited ,132004,.,Community Services,MH OP North Locality,Interim Support Plan - HTLAH,Third Party Payments,REVENUE
http://statistics.data.gov.uk/id/local-authority/00HY,Wiltshire Council,29/09/2014,5106566976,334.32,Somerset Care At Home Limited ,132004,.,Community Services,North Locality OP,Ongoing Support Plan - Maintenance,Third Party Payments,REVENUE
http://statistics.data.gov.uk/id/local-authority/00HY,Wiltshire Council,29/09/2014,5106566980,449.68,Somerset Care At Home Limited ,132004,.,Community Services,West Locality OP,Ongoing Support Plan - Maintenance,Third Party Payments,REVENUE
http://statistics.data.gov.uk/id/local-authority/00HY,Wiltshire Council,29/09/2014,5106566990,668.64,Somerset Care At Home Limited ,132004,.,Community Services,North Locality OP,Ongoing Support Plan - Maintenance,Third Party Payments,REVENUE
http://statistics.data.gov.uk/id/local-authority/00HY,Wiltshire Council,29/09/2014,5106567002,674.52,Somerset Care At Home Limited ,132004,.,Community Services,MH - OSJ Combe End C,Ongoing Support Plan - Maintenance,Third Party Payments,REVENUE
http://statistics.data.gov.uk/id/local-authority/00HY,Wiltshire Council,29/09/2014,5106567003,328.80,Somerset Care At Home Limited ,132004,.,Community Services,OVA North Locality,Ongoing Support Plan - Maintenance,Third Party Payments,REVENUE
http://statistics.data.gov.uk/id/local-authority/00HY,Wiltshire Council,29/09/2014,5106567006,363.72,Somerset Care At Home Limited ,132004,.,Community Services,MH AOWA North Locali,Ongoing Support Plan - Maintenance,Third Party Payments,REVENUE
http://statistics.data.gov.uk/id/local-authority/00HY,Wiltshire Council,29/09/2014,5106567012,991.92,Somerset Care At Home Limited ,132004,.,Community Services,North Locality OP,Ongoing Support Plan - Maintenance,Third Party Payments,REVENUE
http://statistics.data.gov.uk/id/local-authority/00HY,Wiltshire Council,29/09/2014,5106567014,322.56,Somerset Care At Home Limited ,132004,.,Community Services,North Locality OP,Ongoing Support Plan - Maintenance,Third Party Payments,REVENUE
http://statistics.data.gov.uk/id/local-authority/00HY,Wiltshire Council,29/09/2014,5106567029,1135.08,Somerset Care At Home Limited ,132004,.,Community Services,West Locality OP,Ongoing Support Plan - Maintenance,Third Party Payments,REVENUE
http://statistics.data.gov.uk/id/local-authority/00HY,Wiltshire Council,29/09/2014,5106567031,562.12,Somerset Care At Home Limited ,132004,.,Community Services,West Locality OP,Ongoing Support Plan - Maintenance,Third Party Payments,REVENUE
http://statistics.data.gov.uk/id/local-authority/00HY,Wiltshire Council,29/09/2014,5106567077,1162.16,Somerset Care At Home Limited ,132004,.,Community Services,North Locality OP,Ongoing Support Plan - Maintenance,Third Party Payments,REVENUE
http://statistics.data.gov.uk/id/local-authority/00HY,Wiltshire Council,29/09/2014,5106567081,604.96,Somerset Care At Home Limited ,132004,.,Community Services,North Locality OP,Ongoing Support Plan - Maintenance,Third Party Payments,REVENUE
http://statistics.data.gov.uk/id/local-authority/00HY,Wiltshire Council,29/09/2014,5106567086,1114.40,Somerset Care At Home Limited ,132004,.,Community Services,MH AOWA North Locali,Interim Support Plan - HTLAH,Third Party Payments,REVENUE
http://statistics.data.gov.uk/id/local-authority/00HY,Wiltshire Council,29/09/2014,5106567092,445.76,Somerset Care At Home Limited ,132004,.,Community Services,North Locality OP,Ongoing Support Plan - Maintenance,Third Party Payments,REVENUE
http://statistics.data.gov.uk/id/local-authority/00HY,Wiltshire Council,29/09/2014,5106567100,899.36,Somerset Care At Home Limited ,132004,.,Community Services,West Locality OP,Ongoing Support Plan - Maintenance,Third Party Payments,REVENUE
http://statistics.data.gov.uk/id/local-authority/00HY,Wiltshire Council,29/09/2014,5106567106,557.20,Somerset Care At Home Limited ,132004,.,Community Services,North Locality OP,Ongoing Support Plan - Maintenance,Third Party Payments,REVENUE
http://statistics.data.gov.uk/id/local-authority/00HY,Wiltshire Council,29/09/2014,5106567110,433.62,Somerset Care At Home Limited ,132004,.,Community Services,South Locality OP,Ongoing Support Plan - Maintenance,Third Party Payments,REVENUE
http://statistics.data.gov.uk/id/local-authority/00HY,Wiltshire Council,29/09/2014,5106567118,562.12,Somerset Care At Home Limited ,132004,.,Community Services,West Locality OP,Ongoing Support Plan - Maintenance,Third Party Payments,REVENUE
http://statistics.data.gov.uk/id/local-authority/00HY,Wiltshire Council,29/09/2014,5106567148,2023.56,Somerset Care At Home Limited ,132004,.,Community Services,West Locality OP,Ongoing Support Plan - Maintenance,Third Party Payments,REVENUE
http://statistics.data.gov.uk/id/local-authority/00HY,Wiltshire Council,29/09/2014,5106567166,786.96,Somerset Care At Home Limited ,132004,.,Community Services,West Locality OP,Ongoing Support Plan - Maintenance,Third Party Payments,REVENUE
http://statistics.data.gov.uk/id/local-authority/00HY,Wiltshire Council,29/09/2014,5106567168,445.76,Somerset Care At Home Limited ,132004,.,Community Services,North Locality OP,Ongoing Support Plan - Maintenance,Third Party Payments,REVENUE
http://statistics.data.gov.uk/id/local-authority/00HY,Wiltshire Council,29/09/2014,5106567172,1573.88,Somerset Care At Home Limited ,132004,.,Community Services,West Locality OP,Ongoing Support Plan - Maintenance,Third Party Payments,REVENUE
http://statistics.data.gov.uk/id/local-authority/00HY,Wiltshire Council,29/09/2014,5106567202,1124.20,Somerset Care At Home Limited ,132004,.,Community Services,West Locality OP,Ongoing Support Plan - Maintenance,Third Party Payments,REVENUE
http://statistics.data.gov.uk/id/local-authority/00HY,Wiltshire Council,29/09/2014,5106567204,786.96,Somerset Care At Home Limited ,132004,.,Community Services,West Locality OP,Ongoing Support Plan - Maintenance,Third Party Payments,REVENUE
http://statistics.data.gov.uk/id/local-authority/00HY,Wiltshire Council,29/09/2014,5106567229,477.60,Somerset Care At Home Limited ,132004,.,Community Services,North Locality OP,Ongoing Support Plan - Maintenance,Third Party Payments,REVENUE
http://statistics.data.gov.uk/id/local-authority/00HY,Wiltshire Council,29/09/2014,5106567231,861.08,Somerset Care At Home Limited ,132004,.,Community Services,West Locality OP,Ongoing Support Plan - Maintenance,Third Party Payments,REVENUE
http://statistics.data.gov.uk/id/local-authority/00HY,Wiltshire Council,29/09/2014,5106567234,405.16,Somerset Care At Home Limited ,132004,.,Community Services,West Locality OP,Ongoing Support Plan - Maintenance,Third Party Payments,REVENUE
http://statistics.data.gov.uk/id/local-authority/00HY,Wiltshire Council,29/09/2014,5106567267,481.80,Somerset Care At Home Limited ,132004,.,Community Services,West Locality OP,Ongoing Support Plan - Maintenance,Third Party Payments,REVENUE
http://statistics.data.gov.uk/id/local-authority/00HY,Wiltshire Council,29/09/2014,5106567271,1011.80,Somerset Care At Home Limited ,132004,.,Community Services,West Locality OP,Ongoing Support Plan - Maintenance,Third Party Payments,REVENUE
http://statistics.data.gov.uk/id/local-authority/00HY,Wiltshire Council,29/09/2014,5106567280,786.96,Somerset Care At Home Limited ,132004,.,Community Services,West Locality OP,Ongoing Support Plan - Maintenance,Third Party Payments,REVENUE
http://statistics.data.gov.uk/id/local-authority/00HY,Wiltshire Council,29/09/2014,5106567284,337.28,Somerset Care At Home Limited ,132004,.,Community Services,West Locality OP,Ongoing Support Plan - Maintenance,Third Party Payments,REVENUE
http://statistics.data.gov.uk/id/local-authority/00HY,Wiltshire Council,29/09/2014,5106567285,1095.92,Somerset Care At Home Limited ,132004,.,Community Services,West Locality OP,Ongoing Support Plan - Maintenance,Third Party Payments,REVENUE
http://statistics.data.gov.uk/id/local-authority/00HY,Wiltshire Council,29/09/2014,5106567292,2023.56,Somerset Care At Home Limited ,132004,.,Community Services,West Locality OP,Ongoing Support Plan - Maintenance,Third Party Payments,REVENUE
http://statistics.data.gov.uk/id/local-authority/00HY,Wiltshire Council,29/09/2014,5106567301,899.36,Somerset Care At Home Limited ,132004,.,Community Services,West Locality OP,Ongoing Support Plan - Maintenance,Third Party Payments,REVENUE
http://statistics.data.gov.uk/id/local-authority/00HY,Wiltshire Council,29/09/2014,5106567303,619.84,Somerset Care At Home Limited ,132004,.,Community Services,North Locality OP,Ongoing Support Plan - Maintenance,Third Party Payments,REVENUE
http://statistics.data.gov.uk/id/local-authority/00HY,Wiltshire Council,29/09/2014,5106567304,529.64,Somerset Care At Home Limited ,132004,.,Community Services,North Locality OP,Ongoing Support Plan - Maintenance,Third Party Payments,REVENUE
http://statistics.data.gov.uk/id/local-authority/00HY,Wiltshire Council,29/09/2014,5106567307,2081.84,Somerset Care At Home Limited ,132004,.,Community Services,North Locality OP,Ongoing Support Plan - Maintenance,Third Party Payments,REVENUE
http://statistics.data.gov.uk/id/local-authority/00HY,Wiltshire Council,29/09/2014,5106567315,1337.28,Somerset Care At Home Limited ,132004,.,Community Services,North Locality OP,Ongoing Support Plan - Maintenance,Third Party Payments,REVENUE
http://statistics.data.gov.uk/id/local-authority/00HY,Wiltshire Council,29/09/2014,5106567332,562.12,Somerset Care At Home Limited ,132004,.,Community Services,West Locality OP,Ongoing Support Plan - Maintenance,Third Party Payments,REVENUE
http://statistics.data.gov.uk/id/local-authority/00HY,Wiltshire Council,29/09/2014,5106567337,332.48,Somerset Care At Home Limited ,132004,.,Community Services,North Locality OP,Ongoing Support Plan - Maintenance,Third Party Payments,REVENUE
http://statistics.data.gov.uk/id/local-authority/00HY,Wiltshire Council,29/09/2014,5106567348,722.72,Somerset Care At Home Limited ,132004,.,Community Services,West Locality OP,Ongoing Support Plan - Maintenance,Third Party Payments,REVENUE
http://statistics.data.gov.uk/id/local-authority/00HY,Wiltshire Council,29/09/2014,5106567366,481.80,Somerset Care At Home Limited ,132004,.,Community Services,MH - OSJ Combe End C,Ongoing Support Plan - Maintenance,Third Party Payments,REVENUE
http://statistics.data.gov.uk/id/local-authority/00HY,Wiltshire Council,29/09/2014,5106567371,449.68,Somerset Care At Home Limited ,132004,.,Community Services,South Locality OP,Ongoing Support Plan - Maintenance,Third Party Payments,REVENUE
http://statistics.data.gov.uk/id/local-authority/00HY,Wiltshire Council,29/09/2014,5106567382,594.24,Somerset Care At Home Limited ,132004,.,Community Services,West Locality OP,Ongoing Support Plan - Maintenance,Third Party Payments,REVENUE
http://statistics.data.gov.uk/id/local-authority/00HY,Wiltshire Council,29/09/2014,5106567383,334.32,Somerset Care At Home Limited ,132004,.,Community Services,North Locality OP,Ongoing Support Plan - Maintenance,Third Party Payments,REVENUE
http://statistics.data.gov.uk/id/local-authority/00HY,Wiltshire Council,29/09/2014,5106567418,847.44,Somerset Care At Home Limited ,132004,.,Community Services,North Locality OP,Ongoing Support Plan - Maintenance,Third Party Payments,REVENUE
http://statistics.data.gov.uk/id/local-authority/00HY,Wiltshire Council,29/09/2014,5106567421,1220.32,Somerset Care At Home Limited ,132004,.,Community Services,OVA North Locality,Ongoing Support Plan - Maintenance,Third Party Payments,REVENUE
http://statistics.data.gov.uk/id/local-authority/00HY,Wiltshire Council,29/09/2014,5106567426,445.76,Somerset Care At Home Limited ,132004,.,Community Services,OVA North Locality,Ongoing Support Plan - Maintenance,Third Party Payments,REVENUE
http://statistics.data.gov.uk/id/local-authority/00HY,Wiltshire Council,29/09/2014,5106567438,289.08,Somerset Care At Home Limited ,132004,.,Community Services,West Locality OP,Ongoing Support Plan - Maintenance,Third Party Payments,REVENUE
http://statistics.data.gov.uk/id/local-authority/00HY,Wiltshire Council,29/09/2014,5106567440,254.72,Somerset Care At Home Limited ,132004,.,Community Services,North Locality OP,Ongoing Support Plan - Maintenance,Third Party Payments,REVENUE
http://statistics.data.gov.uk/id/local-authority/00HY,Wiltshire Council,29/09/2014,5106567442,449.68,Somerset Care At Home Limited ,132004,.,Community Services,West Locality OP,Ongoing Support Plan - Maintenance,Third Party Payments,REVENUE
http://statistics.data.gov.uk/id/local-authority/00HY,Wiltshire Council,29/09/2014,5106567443,2046.88,Somerset Care At Home Limited ,132004,.,Community Services,OVA North Locality,Ongoing Support Plan - Maintenance,Third Party Payments,REVENUE
http://statistics.data.gov.uk/id/local-authority/00HY,Wiltshire Council,29/09/2014,5106567451,777.00,Somerset Care At Home Limited ,132004,.,Community Services,North Locality OP,Ongoing Support Plan - Maintenance,Third Party Payments,REVENUE
http://statistics.data.gov.uk/id/local-authority/00HY,Wiltshire Council,29/09/2014,5106567467,923.36,Somerset Care At Home Limited ,132004,.,Community Services,OVA North Locality,Ongoing Support Plan - Maintenance,Third Party Payments,REVENUE
http://statistics.data.gov.uk/id/local-authority/00HY,Wiltshire Council,29/09/2014,5106567474,1798.72,Somerset Care At Home Limited ,132004,.,Community Services,OVA South Locality,Ongoing Support Plan - Maintenance,Third Party Payments,REVENUE
http://statistics.data.gov.uk/id/local-authority/00HY,Wiltshire Council,29/09/2014,5106567477,334.32,Somerset Care At Home Limited ,132004,.,Community Services,North Locality OP,Ongoing Support Plan - Maintenance,Third Party Payments,REVENUE
http://statistics.data.gov.uk/id/local-authority/00HY,Wiltshire Council,29/09/2014,5106567486,1409.04,Somerset Care At Home Limited ,132004,.,Community Services,MH OP North Locality,Ongoing Support Plan - Maintenance,Third Party Payments,REVENUE
http://statistics.data.gov.uk/id/local-authority/00HY,Wiltshire Council,29/09/2014,5106567488,674.52,Somerset Care At Home Limited ,132004,.,Community Services,MH OP North Locality,Ongoing Support Plan - Improvement,Third Party Payments,REVENUE
http://statistics.data.gov.uk/id/local-authority/00HY,Wiltshire Council,29/09/2014,5106567490,1034.80,Somerset Care At Home Limited ,132004,.,Community Services,OVA North Locality,Ongoing Support Plan - Maintenance,Third Party Payments,REVENUE
http://statistics.data.gov.uk/id/local-authority/00HY,Wiltshire Council,29/09/2014,5106567514,875.60,Somerset Care At Home Limited ,132004,.,Community Services,North Locality OP,Ongoing Support Plan - Maintenance,Third Party Payments,REVENUE
http://statistics.data.gov.uk/id/local-authority/00HY,Wiltshire Council,29/09/2014,5106567530,1011.80,Somerset Care At Home Limited ,132004,.,Community Services,West Locality OP,Ongoing Support Plan - Maintenance,Third Party Payments,REVENUE
http://statistics.data.gov.uk/id/local-authority/00HY,Wiltshire Council,29/09/2014,5106567532,445.76,Somerset Care At Home Limited ,132004,.,Community Services,North Locality OP,Ongoing Support Plan - Maintenance,Third Party Payments,REVENUE
http://statistics.data.gov.uk/id/local-authority/00HY,Wiltshire Council,29/09/2014,5106567537,337.28,Somerset Care At Home Limited ,132004,.,Community Services,West Locality OP,Ongoing Support Plan - Maintenance,Third Party Payments,REVENUE
http://statistics.data.gov.uk/id/local-authority/00HY,Wiltshire Council,29/09/2014,5106567545,786.96,Somerset Care At Home Limited ,132004,.,Community Services,West Locality OP,Ongoing Support Plan - Maintenance,Third Party Payments,REVENUE
http://statistics.data.gov.uk/id/local-authority/00HY,Wiltshire Council,29/09/2014,5106567553,334.32,Somerset Care At Home Limited ,132004,.,Community Services,North Locality OP,Ongoing Support Plan - Maintenance,Third Party Payments,REVENUE
http://statistics.data.gov.uk/id/local-authority/00HY,Wiltshire Council,29/09/2014,5106567554,477.60,Somerset Care At Home Limited ,132004,.,Community Services,North Locality OP,Ongoing Support Plan - Maintenance,Third Party Payments,REVENUE
http://statistics.data.gov.uk/id/local-authority/00HY,Wiltshire Council,29/09/2014,5106567565,1349.04,Somerset Care At Home Limited ,132004,.,Community Services,West Locality OP,Ongoing Support Plan - Maintenance,Third Party Payments,REVENUE
http://statistics.data.gov.uk/id/local-authority/00HY,Wiltshire Council,29/09/2014,5106567566,2248.40,Somerset Care At Home Limited ,132004,.,Community Services,West Locality OP,Ongoing Support Plan - Maintenance,Third Party Payments,REVENUE
http://statistics.data.gov.uk/id/local-authority/00HY,Wiltshire Council,29/09/2014,5106567580,674.52,Somerset Care At Home Limited ,132004,.,Community Services,West Locality OP,Ongoing Support Plan - Maintenance,Third Party Payments,REVENUE
http://statistics.data.gov.uk/id/local-authority/00HY,Wiltshire Council,29/09/2014,5106567588,2074.44,Somerset Care At Home Limited ,132004,.,Community Services,West Locality OP,Ongoing Support Plan - Maintenance,Third Party Payments,REVENUE
http://statistics.data.gov.uk/id/local-authority/00HY,Wiltshire Council,29/09/2014,5106567589,1752.44,Somerset Care At Home Limited ,132004,.,Community Services,North Locality OP,Ongoing Support Plan - Maintenance,Third Party Payments,REVENUE
http://statistics.data.gov.uk/id/local-authority/00HY,Wiltshire Council,29/09/2014,5106567595,378.72,Somerset Care At Home Limited ,132004,.,Community Services,North Locality OP,Ongoing Support Plan - Improvement,Third Party Payments,REVENUE
http://statistics.data.gov.uk/id/local-authority/00HY,Wiltshire Council,29/09/2014,5106567607,1798.72,Somerset Care At Home Limited ,132004,.,Community Services,West Locality OP,Ongoing Support Plan - Maintenance,Third Party Payments,REVENUE
http://statistics.data.gov.uk/id/local-authority/00HY,Wiltshire Council,29/09/2014,5106567620,2228.80,Somerset Care At Home Limited ,132004,.,Community Services,North Locality OP,Ongoing Support Plan - Maintenance,Third Party Payments,REVENUE
http://statistics.data.gov.uk/id/local-authority/00HY,Wiltshire Council,29/09/2014,5106567622,1798.96,Somerset Care At Home Limited ,132004,.,Community Services,North Locality OP,Ongoing Support Plan - Maintenance,Third Party Payments,REVENUE
http://statistics.data.gov.uk/id/local-authority/00HY,Wiltshire Council,29/09/2014,5106567625,722.72,Somerset Care At Home Limited ,132004,.,Community Services,West Locality OP,Ongoing Support Plan - Maintenance,Third Party Payments,REVENUE
http://statistics.data.gov.uk/id/local-authority/00HY,Wiltshire Council,29/09/2014,5106567628,337.28,Somerset Care At Home Limited ,132004,.,Community Services,West Locality OP,Ongoing Support Plan - Maintenance,Third Party Payments,REVENUE
http://statistics.data.gov.uk/id/local-authority/00HY,Wiltshire Council,29/09/2014,5106567629,337.28,Somerset Care At Home Limited ,132004,.,Community Services,West Locality OP,Ongoing Support Plan - Maintenance,Third Party Payments,REVENUE
http://statistics.data.gov.uk/id/local-authority/00HY,Wiltshire Council,29/09/2014,5106567630,891.52,Somerset Care At Home Limited ,132004,.,Community Services,North Locality OP,Ongoing Support Plan - Maintenance,Third Party Payments,REVENUE
http://statistics.data.gov.uk/id/local-authority/00HY,Wiltshire Council,29/09/2014,5106567632,334.32,Somerset Care At Home Limited ,132004,.,Community Services,North Locality OP,Ongoing Support Plan - Maintenance,Third Party Payments,REVENUE
http://statistics.data.gov.uk/id/local-authority/00HY,Wiltshire Council,29/09/2014,5106567636,760.20,Somerset Care At Home Limited ,132004,.,Community Services,OVA North Locality,Ongoing Support Plan - Improvement,Third Party Payments,REVENUE
http://statistics.data.gov.uk/id/local-authority/00HY,Wiltshire Council,29/09/2014,5106567638,547.96,Somerset Care At Home Limited ,132004,.,Community Services,West Locality OP,Ongoing Support Plan - Maintenance,Third Party Payments,REVENUE
http://statistics.data.gov.uk/id/local-authority/00HY,Wiltshire Council,29/09/2014,5106567640,624.40,Somerset Care At Home Limited ,132004,.,Community Services,North Locality OP,Ongoing Support Plan - Maintenance,Third Party Payments,REVENUE
http://statistics.data.gov.uk/id/local-authority/00HY,Wiltshire Council,29/09/2014,5106567643,278.60,Somerset Care At Home Limited ,132004,.,Community Services,North Locality OP,Ongoing Support Plan - Improvement,Third Party Payments,REVENUE
http://statistics.data.gov.uk/id/local-authority/00HY,Wiltshire Council,29/09/2014,5106567646,1208.20,Somerset Care At Home Limited ,132004,.,Community Services,West Locality OP,Ongoing Support Plan - Maintenance,Third Party Payments,REVENUE
http://statistics.data.gov.uk/id/local-authority/00HY,Wiltshire Council,29/09/2014,5106567647,674.52,Somerset Care At Home Limited ,132004,.,Community Services,West Locality OP,Ongoing Support Plan - Maintenance,Third Party Payments,REVENUE
http://statistics.data.gov.uk/id/local-authority/00HY,Wiltshire Council,29/09/2014,5106567652,786.96,Somerset Care At Home Limited ,132004,.,Community Services,West Locality OP,Ongoing Support Plan - Maintenance,Third Party Payments,REVENUE
http://statistics.data.gov.uk/id/local-authority/00HY,Wiltshire Council,29/09/2014,5106567655,1146.24,Somerset Care At Home Limited ,132004,.,Community Services,North Locality OP,Ongoing Support Plan - Maintenance,Third Party Payments,REVENUE
http://statistics.data.gov.uk/id/local-authority/00HY,Wiltshire Council,29/09/2014,5106567669,786.96,Somerset Care At Home Limited ,132004,.,Community Services,West Locality OP,Ongoing Support Plan - Maintenance,Third Party Payments,REVENUE
http://statistics.data.gov.uk/id/local-authority/00HY,Wiltshire Council,29/09/2014,5106567679,270.64,Somerset Care At Home Limited ,132004,.,Community Services,North Locality OP,Ongoing Support Plan - Maintenance,Third Party Payments,REVENUE
http://statistics.data.gov.uk/id/local-authority/00HY,Wiltshire Council,29/09/2014,5106567681,2473.24,Somerset Care At Home Limited ,132004,.,Community Services,West Locality OP,Ongoing Support Plan - Maintenance,Third Party Payments,REVENUE
http://statistics.data.gov.uk/id/local-authority/00HY,Wiltshire Council,29/09/2014,5106567683,2922.92,Somerset Care At Home Limited ,132004,.,Community Services,West Locality OP,Ongoing Support Plan - Maintenance,Third Party Payments,REVENUE
http://statistics.data.gov.uk/id/local-authority/00HY,Wiltshire Council,29/09/2014,5106567685,334.32,Somerset Care At Home Limited ,132004,.,Community Services,North Locality OP,Ongoing Support Plan - Maintenance,Third Party Payments,REVENUE
http://statistics.data.gov.uk/id/local-authority/00HY,Wiltshire Council,29/09/2014,5106567698,1783.04,Somerset Care At Home Limited ,132004,.,Community Services,OVA East Locality,Ongoing Support Plan - Maintenance,Third Party Payments,REVENUE
http://statistics.data.gov.uk/id/local-authority/00HY,Wiltshire Council,29/09/2014,5106567703,256.96,Somerset Care At Home Limited ,132004,.,Community Services,West Locality OP,Ongoing Support Plan - Maintenance,Third Party Payments,REVENUE
http://statistics.data.gov.uk/id/local-authority/00HY,Wiltshire Council,29/09/2014,5106567714,939.36,Somerset Care At Home Limited ,132004,.,Community Services,MH OP North Locality,Ongoing Support Plan - Maintenance,Third Party Payments,REVENUE
http://statistics.data.gov.uk/id/local-authority/00HY,Wiltshire Council,29/09/2014,5106567729,2248.40,Somerset Care At Home Limited ,132004,.,Community Services,West Locality OP,Ongoing Support Plan - Maintenance,Third Party Payments,REVENUE
http://statistics.data.gov.uk/id/local-authority/00HY,Wiltshire Council,29/09/2014,5106567732,449.68,Somerset Care At Home Limited ,132004,.,Community Services,West Locality OP,Ongoing Support Plan - Maintenance,Third Party Payments,REVENUE
http://statistics.data.gov.uk/id/local-authority/00HY,Wiltshire Council,29/09/2014,5106567738,461.68,Somerset Care At Home Limited ,132004,.,Community Services,OVA North Locality,Ongoing Support Plan - Maintenance,Third Party Payments,REVENUE
http://statistics.data.gov.uk/id/local-authority/00HY,Wiltshire Council,29/09/2014,5106567739,1533.12,Somerset Care At Home Limited ,132004,.,Community Services,West Locality OP,Ongoing Support Plan - Maintenance,Third Party Payments,REVENUE
http://statistics.data.gov.uk/id/local-authority/00HY,Wiltshire Council,29/09/2014,5106567741,337.28,Somerset Care At Home Limited ,132004,.,Community Services,West Locality OP,Ongoing Support Plan - Maintenance,Third Party Payments,REVENUE
http://statistics.data.gov.uk/id/local-authority/00HY,Wiltshire Council,29/09/2014,5106567743,337.48,Somerset Care At Home Limited ,132004,.,Community Services,West Locality OP,Ongoing Support Plan - Maintenance,Third Party Payments,REVENUE
http://statistics.data.gov.uk/id/local-authority/00HY,Wiltshire Council,29/09/2014,5106567769,541.28,Somerset Care At Home Limited ,132004,.,Community Services,MH OP North Locality,Ongoing Support Plan - Improvement,Third Party Payments,REVENUE
http://statistics.data.gov.uk/id/local-authority/00HY,Wiltshire Council,29/09/2014,5106567771,1011.80,Somerset Care At Home Limited ,132004,.,Community Services,MH - OSJ Combe End C,Ongoing Support Plan - Improvement,Third Party Payments,REVENUE
http://statistics.data.gov.uk/id/local-authority/00HY,Wiltshire Council,29/09/2014,5106567774,1124.20,Somerset Care At Home Limited ,132004,.,Community Services,West Locality OP,Ongoing Support Plan - Improvement,Third Party Payments,REVENUE
http://statistics.data.gov.uk/id/local-authority/00HY,Wiltshire Council,29/09/2014,5106567803,486.96,Somerset Care At Home Limited ,132004,.,Community Services,South Locality OP,Ongoing Support Plan - Improvement,Third Party Payments,REVENUE
http://statistics.data.gov.uk/id/local-authority/00HY,Wiltshire Council,29/09/2014,5106567811,511.44,Somerset Care At Home Limited ,132004,.,Community Services,West Locality OP,Ongoing Support Plan - Maintenance,Third Party Payments,REVENUE
http://statistics.data.gov.uk/id/local-authority/00HY,Wiltshire Council,29/09/2014,5106567820,481.80,Somerset Care At Home Limited ,132004,.,Community Services,West Locality OP,Ongoing Support Plan - Maintenance,Third Party Payments,REVENUE
http://statistics.data.gov.uk/id/local-authority/00HY,Wiltshire Council,29/09/2014,5106567829,337.28,Somerset Care At Home Limited ,132004,.,Community Services,West Locality OP,Ongoing Support Plan - Maintenance,Third Party Payments,REVENUE
http://statistics.data.gov.uk/id/local-authority/00HY,Wiltshire Council,29/09/2014,5106567832,465.76,Somerset Care At Home Limited ,132004,.,Community Services,West Locality OP,Ongoing Support Plan - Maintenance,Third Party Payments,REVENUE
http://statistics.data.gov.uk/id/local-authority/00HY,Wiltshire Council,29/09/2014,5106567845,2248.40,Somerset Care At Home Limited ,132004,.,Community Services,West Locality OP,Ongoing Support Plan - Maintenance,Third Party Payments,REVENUE
http://statistics.data.gov.uk/id/local-authority/00HY,Wiltshire Council,29/09/2014,5106567847,350.24,Somerset Care At Home Limited ,132004,.,Community Services,OVA North Locality,Ongoing Support Plan - Improvement,Third Party Payments,REVENUE
http://statistics.data.gov.uk/id/local-authority/00HY,Wiltshire Council,29/09/2014,5106567854,256.96,Somerset Care At Home Limited ,132004,.,Community Services,West Locality OP,Ongoing Support Plan - Maintenance,Third Party Payments,REVENUE
http://statistics.data.gov.uk/id/local-authority/00HY,Wiltshire Council,29/09/2014,5106567860,301.05,Somerset Care At Home Limited ,132004,.,Community Services,MH - OSJ Combe End C,Ongoing Support Plan - Maintenance,Third Party Payments,REVENUE
http://statistics.data.gov.uk/id/local-authority/00HY,Wiltshire Council,29/09/2014,5106567862,321.20,Somerset Care At Home Limited ,132004,.,Community Services,OVA South Locality,Ongoing Support Plan - Improvement,Third Party Payments,REVENUE
http://statistics.data.gov.uk/id/local-authority/00HY,Wiltshire Council,29/09/2014,5106567870,477.60,Somerset Care At Home Limited ,132004,.,Community Services,North Locality OP,Ongoing Support Plan - Maintenance,Third Party Payments,REVENUE
http://statistics.data.gov.uk/id/local-authority/00HY,Wiltshire Council,29/09/2014,5106567871,1011.80,Somerset Care At Home Limited ,132004,.,Community Services,MH - OSJ Combe End C,Ongoing Support Plan - Maintenance,Third Party Payments,REVENUE
http://statistics.data.gov.uk/id/local-authority/00HY,Wiltshire Council,29/09/2014,5106567872,1114.40,Somerset Care At Home Limited ,132004,.,Community Services,North Locality OP,Ongoing Support Plan - Maintenance,Third Party Payments,REVENUE
http://statistics.data.gov.uk/id/local-authority/00HY,Wiltshire Council,29/09/2014,5106567873,674.52,Somerset Care At Home Limited ,132004,.,Community Services,MH - OSJ Combe End C,Ongoing Support Plan - Maintenance,Third Party Payments,REVENUE
http://statistics.data.gov.uk/id/local-authority/00HY,Wiltshire Council,29/09/2014,5106567886,604.96,Somerset Care At Home Limited ,132004,.,Community Services,North Locality OP,Ongoing Support Plan - Maintenance,Third Party Payments,REVENUE
http://statistics.data.gov.uk/id/local-authority/00HY,Wiltshire Council,29/09/2014,5106567889,899.36,Somerset Care At Home Limited ,132004,.,Community Services,West Locality OP,Ongoing Support Plan - Maintenance,Third Party Payments,REVENUE
http://statistics.data.gov.uk/id/local-authority/00HY,Wiltshire Council,29/09/2014,5106567893,481.80,Somerset Care At Home Limited ,132004,.,Community Services,West Locality OP,Ongoing Support Plan - Maintenance,Third Party Payments,REVENUE
http://statistics.data.gov.uk/id/local-authority/00HY,Wiltshire Council,29/09/2014,5106567894,298.50,Somerset Care At Home Limited ,132004,.,Community Services,North Locality OP,Initial Support Plan - Reablement,Third Party Payments,REVENUE
http://statistics.data.gov.uk/id/local-authority/00HY,Wiltshire Council,29/09/2014,5106567897,1098.48,Somerset Care At Home Limited ,132004,.,Community Services,North Locality OP,Ongoing Support Plan - Maintenance,Third Party Payments,REVENUE
http://statistics.data.gov.uk/id/local-authority/00HY,Wiltshire Council,29/09/2014,5106567900,334.32,Somerset Care At Home Limited ,132004,.,Community Services,North Locality OP,Ongoing Support Plan - Maintenance,Third Party Payments,REVENUE
http://statistics.data.gov.uk/id/local-authority/00HY,Wiltshire Council,29/09/2014,5106567901,819.08,Somerset Care At Home Limited ,132004,.,Community Services,South Locality OP,Ongoing Support Plan - Maintenance,Third Party Payments,REVENUE
http://statistics.data.gov.uk/id/local-authority/00HY,Wiltshire Council,29/09/2014,5106567906,334.32,Somerset Care At Home Limited ,132004,.,Community Services,OVA North Locality,Ongoing Support Plan - Maintenance,Third Party Payments,REVENUE
http://statistics.data.gov.uk/id/local-authority/00HY,Wiltshire Council,29/09/2014,5106567907,738.68,Somerset Care At Home Limited ,132004,.,Community Services,North Locality OP,Ongoing Support Plan - Maintenance,Third Party Payments,REVENUE
http://statistics.data.gov.uk/id/local-authority/00HY,Wiltshire Council,29/09/2014,5106567916,899.36,Somerset Care At Home Limited ,132004,.,Community Services,MH - OSJ Combe End C,Ongoing Support Plan - Improvement,Third Party Payments,REVENUE
http://statistics.data.gov.uk/id/local-authority/00HY,Wiltshire Council,29/09/2014,5106567923,1545.16,Somerset Care At Home Limited ,132004,.,Community Services,MH - OSJ Combe End C,Ongoing Support Plan - Maintenance,Third Party Payments,REVENUE
http://statistics.data.gov.uk/id/local-authority/00HY,Wiltshire Council,29/09/2014,5106567926,2136.00,Somerset Care At Home Limited ,132004,.,Community Services,South Locality OP,Ongoing Support Plan - Maintenance,Third Party Payments,REVENUE
http://statistics.data.gov.uk/id/local-authority/00HY,Wiltshire Council,29/09/2014,5106567930,264.99,Somerset Care At Home Limited ,132004,.,Community Services,West Locality OP,Initial Support Plan - Reablement,Third Party Payments,REVENUE
http://statistics.data.gov.uk/id/local-authority/00HY,Wiltshire Council,29/09/2014,5106567931,250.90,Somerset Care At Home Limited ,132004,.,Community Services,West Locality OP,Initial Support Plan - Reablement,Third Party Payments,REVENUE
http://statistics.data.gov.uk/id/local-authority/00HY,Wiltshire Council,29/09/2014,5106567945,570.80,Somerset Care At Home Limited ,132004,.,Community Services,North Locality OP,Initial Support Plan - Reablement,Third Party Payments,REVENUE
http://statistics.data.gov.uk/id/local-authority/00HY,Wiltshire Council,29/09/2014,5106567946,445.76,Somerset Care At Home Limited ,132004,.,Community Services,North Locality OP,Ongoing Support Plan - Improvement,Third Party Payments,REVENUE
http://statistics.data.gov.uk/id/local-authority/00HY,Wiltshire Council,29/09/2014,5106567947,509.44,Somerset Care At Home Limited ,132004,.,Community Services,OVA North Locality,Ongoing Support Plan - Improvement,Third Party Payments,REVENUE
http://statistics.data.gov.uk/id/local-authority/00HY,Wiltshire Council,29/09/2014,5106567951,684.56,Somerset Care At Home Limited ,132004,.,Community Services,OVA North Locality,Ongoing Support Plan - Improvement,Third Party Payments,REVENUE
http://statistics.data.gov.uk/id/local-authority/00HY,Wiltshire Council,29/09/2014,5106567955,281.68,Somerset Care At Home Limited ,132004,.,Community Services,MH OP North Locality,Ongoing Support Plan - Maintenance,Third Party Payments,REVENUE
http://statistics.data.gov.uk/id/local-authority/00HY,Wiltshire Council,29/09/2014,5106567956,1927.20,Somerset Care At Home Limited ,132004,.,Community Services,West Locality OP,Ongoing Support Plan - Improvement,Third Party Payments,REVENUE
http://statistics.data.gov.uk/id/local-authority/00HY,Wiltshire Council,29/09/2014,5106567964,821.96,Somerset Care At Home Limited ,132004,.,Community Services,West Locality OP,Ongoing Support Plan - Maintenance,Third Party Payments,REVENUE
http://statistics.data.gov.uk/id/local-authority/00HY,Wiltshire Council,29/09/2014,5106567968,274.62,Somerset Care At Home Limited ,132004,.,Community Services,North Locality OP,Initial Support Plan - Maintenance,Third Party Payments,REVENUE
http://statistics.data.gov.uk/id/local-authority/00HY,Wiltshire Council,29/09/2014,5106567972,686.66,Somerset Care At Home Limited ,132004,.,Community Services,West Locality OP,Ongoing Support Plan - Maintenance,Third Party Payments,REVENUE
http://statistics.data.gov.uk/id/local-authority/00HY,Wiltshire Council,29/09/2014,5106567974,313.30,Somerset Care At Home Limited ,132004,.,Community Services,West Locality OP,Ongoing Support Plan - Maintenance,Third Party Payments,REVENUE
http://statistics.data.gov.uk/id/local-authority/00HY,Wiltshire Council,29/09/2014,5106567975,481.80,Somerset Care At Home Limited ,132004,.,Community Services,West Locality OP,Ongoing Support Plan - Maintenance,Third Party Payments,REVENUE
http://statistics.data.gov.uk/id/local-authority/00HY,Wiltshire Council,29/09/2014,5106567985,1000.68,Somerset Care At Home Limited ,132004,.,Community Services,West Locality OP,Ongoing Support Plan - Maintenance,Third Party Payments,REVENUE
http://statistics.data.gov.uk/id/local-authority/00HY,Wiltshire Council,29/09/2014,5106567987,351.00,Somerset Care At Home Limited ,132004,.,Community Services,West Locality OP,Initial Support Plan - Maintenance,Third Party Payments,REVENUE
http://statistics.data.gov.uk/id/local-authority/00HY,Wiltshire Council,29/09/2014,5106568012,385.44,Somerset Care At Home Limited ,132004,.,Community Services,CTPLD Place CIC U65,Ongoing Support Plan - Improvement,Third Party Payments,REVENUE
http://statistics.data.gov.uk/id/local-authority/00HY,Wiltshire Council,29/09/2014,5106568014,449.68,Somerset Care At Home Limited ,132004,.,Community Services,CTPLD Place CIC U65,Ongoing Support Plan - Improvement,Third Party Payments,REVENUE
http://statistics.data.gov.uk/id/local-authority/00HY,Wiltshire Council,29/09/2014,5106568016,401.50,Somerset Care At Home Limited ,132004,.,Community Services,West Locality OP,Ongoing Support Plan - Maintenance,Third Party Payments,REVENUE
http://statistics.data.gov.uk/id/local-authority/00HY,Wiltshire Council,29/09/2014,5106568017,2248.40,Somerset Care At Home Limited ,132004,.,Community Services,West Locality OP,Ongoing Support Plan - Maintenance,Third Party Payments,REVENUE
http://statistics.data.gov.uk/id/local-authority/00HY,Wiltshire Council,29/09/2014,5106568019,264.99,Somerset Care At Home Limited ,132004,.,Community Services,South Locality OP,Ongoing Support Plan - Maintenance,Third Party Payments,REVENUE
http://statistics.data.gov.uk/id/local-authority/00HY,Wiltshire Council,29/09/2014,5106568020,674.52,Somerset Care At Home Limited ,132004,.,Community Services,South Locality OP,Ongoing Support Plan - Maintenance,Third Party Payments,REVENUE
http://statistics.data.gov.uk/id/local-authority/00HY,Wiltshire Council,29/09/2014,5106568029,337.28,Somerset Care At Home Limited ,132004,.,Community Services,West Locality OP,Ongoing Support Plan - Maintenance,Third Party Payments,REVENUE
http://statistics.data.gov.uk/id/local-authority/00HY,Wiltshire Council,29/09/2014,5106568032,1011.78,Somerset Care At Home Limited ,132004,.,Community Services,MH - OSJ Combe End C,Ongoing Support Plan - Maintenance,Third Party Payments,REVENUE
http://statistics.data.gov.uk/id/local-authority/00HY,Wiltshire Council,29/09/2014,5106568036,658.48,Somerset Care At Home Limited ,132004,.,Community Services,MH AOWA South Locali,Ongoing Support Plan - Improvement,Third Party Payments,REVENUE
http://statistics.data.gov.uk/id/local-authority/00HY,Wiltshire Council,29/09/2014,5106568037,658.48,Somerset Care At Home Limited ,132004,.,Community Services,MH AOWA South Locali,Ongoing Support Plan - Improvement,Third Party Payments,REVENUE
http://statistics.data.gov.uk/id/local-authority/00HY,Wiltshire Council,29/09/2014,5106568038,330.30,Somerset Care At Home Limited ,132004,.,Community Services,West Locality OP,Ongoing Support Plan - Maintenance,Third Party Payments,REVENUE
http://statistics.data.gov.uk/id/local-authority/00HY,Wiltshire Council,29/09/2014,5106568040,513.92,Somerset Care At Home Limited ,132004,.,Community Services,West Locality OP,Ongoing Support Plan - Maintenance,Third Party Payments,REVENUE
http://statistics.data.gov.uk/id/local-authority/00HY,Wiltshire Council,29/09/2014,5106568044,780.08,Somerset Care At Home Limited ,132004,.,Community Services,North Locality OP,Ongoing Support Plan - Maintenance,Third Party Payments,REVENUE
http://statistics.data.gov.uk/id/local-authority/00HY,Wiltshire Council,29/09/2014,5106568046,1432.80,Somerset Care At Home Limited ,132004,.,Community Services,North Locality OP,Ongoing Support Plan - Maintenance,Third Party Payments,REVENUE
http://statistics.data.gov.uk/id/local-authority/00HY,Wiltshire Council,29/09/2014,5106568047,2005.92,Somerset Care At Home Limited ,132004,.,Community Services,North Locality OP,Ongoing Support Plan - Maintenance,Third Party Payments,REVENUE
http://statistics.data.gov.uk/id/local-authority/00HY,Wiltshire Council,29/09/2014,5106568050,453.24,Somerset Care At Home Limited ,132004,.,Community Services,OVA North Locality,Ongoing Support Plan - Maintenance,Third Party Payments,REVENUE
http://statistics.data.gov.uk/id/local-authority/00HY,Wiltshire Council,29/09/2014,5106568054,357.68,Somerset Care At Home Limited ,132004,.,Community Services,North Locality OP,Ongoing Support Plan - Maintenance,Third Party Payments,REVENUE
http://statistics.data.gov.uk/id/local-authority/00HY,Wiltshire Council,29/09/2014,5106568056,589.04,Somerset Care At Home Limited ,132004,.,Community Services,North Locality OP,Ongoing Support Plan - Maintenance,Third Party Payments,REVENUE
http://statistics.data.gov.uk/id/local-authority/00HY,Wiltshire Council,29/09/2014,5106568059,318.40,Somerset Care At Home Limited ,132004,.,Community Services,North Locality OP,Initial Support Plan - Maintenance,Third Party Payments,REVENUE
http://statistics.data.gov.uk/id/local-authority/00HY,Wiltshire Council,29/09/2014,5106568061,449.68,Somerset Care At Home Limited ,132004,.,Community Services,West Locality OP,Ongoing Support Plan - Maintenance,Third Party Payments,REVENUE
http://statistics.data.gov.uk/id/local-authority/00HY,Wiltshire Council,29/09/2014,5106568071,899.36,Somerset Care At Home Limited ,132004,.,Community Services,West Locality OP,Ongoing Support Plan - Maintenance,Third Party Payments,REVENUE
http://statistics.data.gov.uk/id/local-authority/00HY,Wiltshire Council,29/09/2014,5106568073,433.58,Somerset Care At Home Limited ,132004,.,Community Services,MH - OSJ Combe End C,Ongoing Support Plan - Maintenance,Third Party Payments,REVENUE
http://statistics.data.gov.uk/id/local-authority/00HY,Wiltshire Council,29/09/2014,5106568075,867.24,Somerset Care At Home Limited ,132004,.,Community Services,MH - OSJ Combe End C,Ongoing Support Plan - Maintenance,Third Party Payments,REVENUE
http://statistics.data.gov.uk/id/local-authority/00HY,Wiltshire Council,29/09/2014,5106568077,292.70,Somerset Care At Home Limited ,132004,.,Community Services,East Locality OP,Ongoing Support Plan - Maintenance,Third Party Payments,REVENUE
http://statistics.data.gov.uk/id/local-authority/00HY,Wiltshire Council,29/09/2014,5106568078,819.56,Somerset Care At Home Limited ,132004,.,Community Services,East Locality OP,Ongoing Support Plan - Maintenance,Third Party Payments,REVENUE
http://statistics.data.gov.uk/id/local-authority/00HY,Wiltshire Council,29/09/2014,5106568079,819.56,Somerset Care At Home Limited ,132004,.,Community Services,East Locality OP,Ongoing Support Plan - Maintenance,Third Party Payments,REVENUE
http://statistics.data.gov.uk/id/local-authority/00HY,Wiltshire Council,29/09/2014,5106568100,273.02,Somerset Care At Home Limited ,132004,.,Community Services,West Locality OP,Ongoing Support Plan - Improvement,Third Party Payments,REVENUE
http://statistics.data.gov.uk/id/local-authority/00HY,Wiltshire Council,29/09/2014,5106568106,337.28,Somerset Care At Home Limited ,132004,.,Community Services,West Locality OP,Ongoing Support Plan - Maintenance,Third Party Payments,REVENUE
http://statistics.data.gov.uk/id/local-authority/00HY,Wiltshire Council,29/09/2014,5106568108,357.88,Somerset Care At Home Limited ,132004,.,Community Services,West Locality OP,Ongoing Support Plan - Maintenance,Third Party Payments,REVENUE
http://statistics.data.gov.uk/id/local-authority/00HY,Wiltshire Council,29/09/2014,5106568111,477.17,Somerset Care At Home Limited ,132004,.,Community Services,OVA North Locality,Ongoing Support Plan - Improvement,Third Party Payments,REVENUE
http://statistics.data.gov.uk/id/local-authority/00HY,Wiltshire Council,29/09/2014,5106568116,867.24,Somerset Care At Home Limited ,132004,.,Community Services,MH - OSJ Combe End C,Initial Support Plan - Reablement,Third Party Payments,REVENUE
http://statistics.data.gov.uk/id/local-authority/00HY,Wiltshire Council,29/09/2014,5106568153,1517.67,Somerset Care At Home Limited ,132004,.,Community Services,South Locality OP,Initial Support Plan - Reablement,Third Party Payments,REVENUE
http://statistics.data.gov.uk/id/local-authority/00HY,Wiltshire Council,29/09/2014,5106568168,264.99,Somerset Care At Home Limited ,132004,.,Community Services,West Locality OP,Ongoing Support Plan - Maintenance,Third Party Payments,REVENUE
http://statistics.data.gov.uk/id/local-authority/00HY,Wiltshire Council,29/09/2014,5106568169,674.52,Somerset Care At Home Limited ,132004,.,Community Services,West Locality OP,Ongoing Support Plan - Maintenance,Third Party Payments,REVENUE
http://statistics.data.gov.uk/id/local-authority/00HY,Wiltshire Council,29/09/2014,5106568173,337.28,Somerset Care At Home Limited ,132004,.,Community Services,West Locality OP,Ongoing Support Plan - Maintenance,Third Party Payments,REVENUE
http://statistics.data.gov.uk/id/local-authority/00HY,Wiltshire Council,29/09/2014,5106568180,334.32,Somerset Care At Home Limited ,132004,.,Community Services,North Locality OP,Ongoing Support Plan - Maintenance,Third Party Payments,REVENUE
http://statistics.data.gov.uk/id/local-authority/00HY,Wiltshire Council,29/09/2014,5106568182,334.32,Somerset Care At Home Limited ,132004,.,Community Services,North Locality OP,Initial Support Plan - Reablement,Third Party Payments,REVENUE
http://statistics.data.gov.uk/id/local-authority/00HY,Wiltshire Council,29/09/2014,5106568187,668.64,Somerset Care At Home Limited ,132004,.,Community Services,North Locality OP,Ongoing Support Plan - Maintenance,Third Party Payments,REVENUE
http://statistics.data.gov.uk/id/local-authority/00HY,Wiltshire Council,29/09/2014,5106568188,668.64,Somerset Care At Home Limited ,132004,.,Community Services,North Locality OP,Ongoing Support Plan - Maintenance,Third Party Payments,REVENUE
http://statistics.data.gov.uk/id/local-authority/00HY,Wiltshire Council,29/09/2014,5106568191,626.34,Somerset Care At Home Limited ,132004,.,Community Services,CTPLD Place CIC U65,Ongoing Support Plan - Improvement,Third Party Payments,REVENUE
http://statistics.data.gov.uk/id/local-authority/00HY,Wiltshire Council,29/09/2014,5106568197,508.32,Somerset Care At Home Limited ,132004,.,Community Services,East Locality OP,Initial Support Plan - Reablement,Third Party Payments,REVENUE
http://statistics.data.gov.uk/id/local-authority/00HY,Wiltshire Council,29/09/2014,5106568200,554.07,Somerset Care At Home Limited ,132004,.,Community Services,West Locality OP,Ongoing Support Plan - Maintenance,Third Party Payments,REVENUE
http://statistics.data.gov.uk/id/local-authority/00HY,Wiltshire Council,29/09/2014,5106568206,1405.25,Somerset Care At Home Limited ,132004,.,Community Services,West Locality OP,Ongoing Support Plan - Maintenance,Third Party Payments,REVENUE
http://statistics.data.gov.uk/id/local-authority/00HY,Wiltshire Council,29/09/2014,5106568216,334.32,Somerset Care At Home Limited ,132004,.,Community Services,North Locality OP,Ongoing Support Plan - Maintenance,Third Party Payments,REVENUE
http://statistics.data.gov.uk/id/local-authority/00HY,Wiltshire Council,29/09/2014,5106568222,441.45,Somerset Care At Home Limited ,132004,.,Community Services,North Locality OP,Ongoing Support Plan - Maintenance,Third Party Payments,REVENUE
http://statistics.data.gov.uk/id/local-authority/00HY,Wiltshire Council,29/09/2014,5106568224,545.00,Somerset Care At Home Limited ,132004,.,Community Services,West Locality OP,Ongoing Support Plan - Maintenance,Third Party Payments,REVENUE
http://statistics.data.gov.uk/id/local-authority/00HY,Wiltshire Council,29/09/2014,5106568232,497.50,Somerset Care At Home Limited ,132004,.,Community Services,North Locality OP,Ongoing Support Plan - Maintenance,Third Party Payments,REVENUE
http://statistics.data.gov.uk/id/local-authority/00HY,Wiltshire Council,29/09/2014,5106568233,315.50,Somerset Care At Home Limited ,132004,.,Community Services,West Locality OP,Ongoing Support Plan - Maintenance,Third Party Payments,REVENUE
http://statistics.data.gov.uk/id/local-authority/00HY,Wiltshire Council,29/09/2014,5106568235,337.26,Somerset Care At Home Limited ,132004,.,Community Services,West Locality OP,Initial Support Plan - Maintenance,Third Party Payments,REVENUE
http://statistics.data.gov.uk/id/local-authority/00HY,Wiltshire Council,29/09/2014,5106568239,286.56,Somerset Care At Home Limited ,132004,.,Community Services,North Locality OP,Initial Support Plan - Reablement,Third Party Payments,REVENUE
http://statistics.data.gov.uk/id/local-authority/00HY,Wiltshire Council,29/09/2014,5106568240,481.78,Somerset Care At Home Limited ,132004,.,Community Services,West Locality OP,Ongoing Support Plan - Maintenance,Third Party Payments,REVENUE
http://statistics.data.gov.uk/id/local-authority/00HY,Wiltshire Council,29/09/2014,5106568242,1037.72,Somerset Care At Home Limited ,132004,.,Community Services,West Locality OP,Ongoing Support Plan - Maintenance,Third Party Payments,REVENUE
http://statistics.data.gov.uk/id/local-authority/00HY,Wiltshire Council,29/09/2014,5106568259,315.28,Somerset Care At Home Limited ,132004,.,Community Services,North Locality OP,Ongoing Support Plan - Maintenance,Third Party Payments,REVENUE
http://statistics.data.gov.uk/id/local-authority/00HY,Wiltshire Council,29/09/2014,5106568279,907.44,Somerset Care At Home Limited ,132004,.,Community Services,North Locality OP,Ongoing Support Plan - Maintenance,Third Party Payments,REVENUE
http://statistics.data.gov.uk/id/local-authority/00HY,Wiltshire Council,29/09/2014,5106568280,1337.28,Somerset Care At Home Limited ,132004,.,Community Services,North Locality OP,Ongoing Support Plan - Maintenance,Third Party Payments,REVENUE
http://statistics.data.gov.uk/id/local-authority/00HY,Wiltshire Council,29/09/2014,5106568281,1337.28,Somerset Care At Home Limited ,132004,.,Community Services,North Locality OP,Ongoing Support Plan - Maintenance,Third Party Payments,REVENUE
http://statistics.data.gov.uk/id/local-authority/00HY,Wiltshire Council,29/09/2014,5106568282,429.84,Somerset Care At Home Limited ,132004,.,Community Services,North Locality OP,Ongoing Support Plan - Maintenance,Third Party Payments,REVENUE
http://statistics.data.gov.uk/id/local-authority/00HY,Wiltshire Council,29/09/2014,5106568288,2168.10,Somerset Care At Home Limited ,132004,.,Community Services,West Locality OP,Initial Support Plan - Reablement,Third Party Payments,REVENUE
http://statistics.data.gov.uk/id/local-authority/00HY,Wiltshire Council,29/09/2014,5106568293,668.64,Somerset Care At Home Limited ,132004,.,Community Services,North Locality OP,Ongoing Support Plan - Improvement,Third Party Payments,REVENUE
http://statistics.data.gov.uk/id/local-authority/00HY,Wiltshire Council,29/09/2014,5106568301,602.25,Somerset Care At Home Limited ,132004,.,Community Services,West Locality OP,Initial Support Plan - Reablement,Third Party Payments,REVENUE
http://statistics.data.gov.uk/id/local-authority/00HY,Wiltshire Council,29/09/2014,5106568307,764.19,Somerset Care At Home Limited ,132004,.,Community Services,North Locality OP,Ongoing Support Plan - Maintenance,Third Party Payments,REVENUE
http://statistics.data.gov.uk/id/local-authority/00HY,Wiltshire Council,29/09/2014,5106568325,899.36,Somerset Care At Home Limited ,132004,.,Community Services,West Locality OP,Ongoing Support Plan - Maintenance,Third Party Payments,REVENUE
http://statistics.data.gov.uk/id/local-authority/00HY,Wiltshire Council,29/09/2014,5106568327,562.04,Somerset Care At Home Limited ,132004,.,Community Services,West Locality OP,Ongoing Support Plan - Maintenance,Third Party Payments,REVENUE
http://statistics.data.gov.uk/id/local-authority/00HY,Wiltshire Council,29/09/2014,5106568339,302.48,Somerset Care At Home Limited ,132004,.,Community Services,North Locality OP,Initial Support Plan - Reablement,Third Party Payments,REVENUE
http://statistics.data.gov.uk/id/local-authority/00HY,Wiltshire Council,29/09/2014,5106568340,453.72,Somerset Care At Home Limited ,132004,.,Community Services,North Locality OP,Initial Support Plan - Reablement,Third Party Payments,REVENUE
http://statistics.data.gov.uk/id/local-authority/00HY,Wiltshire Council,29/09/2014,5106568355,505.89,Somerset Care At Home Limited ,132004,.,Community Services,West Locality OP,Ongoing Support Plan - Improvement,Third Party Payments,REVENUE
http://statistics.data.gov.uk/id/local-authority/00HY,Wiltshire Council,29/09/2014,5106568358,361.44,Somerset Care At Home Limited ,132004,.,Community Services,West Locality OP,Ongoing Support Plan - Maintenance,Third Party Payments,REVENUE
http://statistics.data.gov.uk/id/local-authority/00HY,Wiltshire Council,29/09/2014,5106568365,562.20,Somerset Care At Home Limited ,132004,.,Community Services,West Locality OP,Initial Support Plan - Maintenance,Third Party Payments,REVENUE
http://statistics.data.gov.uk/id/local-authority/00HY,Wiltshire Council,29/09/2014,5106568403,614.16,Somerset Care At Home Limited ,132004,.,Community Services,East Locality OP,Ongoing Support Plan - Maintenance,Third Party Payments,REVENUE
http://statistics.data.gov.uk/id/local-authority/00HY,Wiltshire Council,29/09/2014,5106568416,572.64,Somerset Care At Home Limited ,132004,.,Community Services,East Locality OP,Ongoing Support Plan - Maintenance,Third Party Payments,REVENUE
http://statistics.data.gov.uk/id/local-authority/00HY,Wiltshire Council,29/09/2014,5106568423,1044.00,Somerset Care At Home Limited ,132004,.,Community Services,West Locality OP,Ongoing Support Plan - Maintenance,Third Party Payments,REVENUE
http://statistics.data.gov.uk/id/local-authority/00HY,Wiltshire Council,29/09/2014,5106568429,273.02,Somerset Care At Home Limited ,132004,.,Community Services,West Locality OP,Ongoing Support Plan - Maintenance,Third Party Payments,REVENUE
http://statistics.data.gov.uk/id/local-authority/00HY,Wiltshire Council,29/09/2014,5106568432,982.76,Somerset Care At Home Limited ,132004,.,Community Services,North Locality OP,Ongoing Support Plan - Maintenance,Third Party Payments,REVENUE
http://statistics.data.gov.uk/id/local-authority/00HY,Wiltshire Council,29/09/2014,5106568437,458.32,Somerset Care At Home Limited ,132004,.,Community Services,West Locality OP,Ongoing Support Plan - Maintenance,Third Party Payments,REVENUE
http://statistics.data.gov.uk/id/local-authority/00HY,Wiltshire Council,29/09/2014,5106568442,477.87,Somerset Care At Home Limited ,132004,.,Community Services,West Locality OP,Ongoing Support Plan - Maintenance,Third Party Payments,REVENUE
http://statistics.data.gov.uk/id/local-authority/00HY,Wiltshire Council,29/09/2014,5106568448,273.02,Somerset Care At Home Limited ,132004,.,Community Services,West Locality OP,Initial Support Plan - Reablement,Third Party Payments,REVENUE
http://statistics.data.gov.uk/id/local-authority/00HY,Wiltshire Council,29/09/2014,5106568479,289.08,Somerset Care At Home Limited ,132004,.,Community Services,West Locality OP,Ongoing Support Plan - Maintenance,Third Party Payments,REVENUE
http://statistics.data.gov.uk/id/local-authority/00HY,Wiltshire Council,29/09/2014,5106568481,481.80,Somerset Care At Home Limited ,132004,.,Community Services,West Locality OP,Ongoing Support Plan - Maintenance,Third Party Payments,REVENUE
http://statistics.data.gov.uk/id/local-authority/00HY,Wiltshire Council,29/09/2014,5106568483,505.96,Somerset Care At Home Limited ,132004,.,Community Services,West Locality OP,Initial Support Plan - Maintenance,Third Party Payments,REVENUE
http://statistics.data.gov.uk/id/local-authority/00HY,Wiltshire Council,29/09/2014,5106568492,477.60,Somerset Care At Home Limited ,132004,.,Community Services,North Locality OP,Ongoing Support Plan - Maintenance,Third Party Payments,REVENUE
http://statistics.data.gov.uk/id/local-authority/00HY,Wiltshire Council,29/09/2014,5106568506,557.20,Somerset Care At Home Limited ,132004,.,Community Services,North Locality OP,Ongoing Support Plan - Maintenance,Third Party Payments,REVENUE
http://statistics.data.gov.uk/id/local-authority/00HY,Wiltshire Council,29/09/2014,5106568512,536.40,Somerset Care At Home Limited ,132004,.,Community Services,MH AOWA North Locali,Ongoing Support Plan - Maintenance,Third Party Payments,REVENUE
http://statistics.data.gov.uk/id/local-authority/00HY,Wiltshire Council,29/09/2014,5106568513,536.40,Somerset Care At Home Limited ,132004,.,Community Services,MH AOWA North Locali,Ongoing Support Plan - Maintenance,Third Party Payments,REVENUE
http://statistics.data.gov.uk/id/local-authority/00HY,Wiltshire Council,29/09/2014,5106568514,287.40,Somerset Care At Home Limited ,132004,.,Community Services,MH AOWA North Locali,Ongoing Support Plan - Maintenance,Third Party Payments,REVENUE
http://statistics.data.gov.uk/id/local-authority/00HY,Wiltshire Council,29/09/2014,5106568516,536.40,Somerset Care At Home Limited ,132004,.,Community Services,MH AOWA North Locali,Ongoing Support Plan - Maintenance,Third Party Payments,REVENUE
http://statistics.data.gov.uk/id/local-authority/00HY,Wiltshire Council,29/09/2014,5106568517,536.40,Somerset Care At Home Limited ,132004,.,Community Services,MH AOWA North Locali,Ongoing Support Plan - Maintenance,Third Party Payments,REVENUE
http://statistics.data.gov.uk/id/local-authority/00HY,Wiltshire Council,29/09/2014,5106568518,536.40,Somerset Care At Home Limited ,132004,.,Community Services,MH AOWA North Locali,Ongoing Support Plan - Maintenance,Third Party Payments,REVENUE
http://statistics.data.gov.uk/id/local-authority/00HY,Wiltshire Council,29/09/2014,5106568531,676.60,Somerset Care At Home Limited ,132004,.,Community Services,North Locality OP,Ongoing Support Plan - Improvement,Third Party Payments,REVENUE
http://statistics.data.gov.uk/id/local-authority/00HY,Wiltshire Council,29/09/2014,5106568533,668.64,Somerset Care At Home Limited ,132004,.,Community Services,North Locality OP,Ongoing Support Plan - Maintenance,Third Party Payments,REVENUE
http://statistics.data.gov.uk/id/local-authority/00HY,Wiltshire Council,29/09/2014,5106568536,416.46,Somerset Care At Home Limited ,132004,.,Community Services,West Locality OP,Ongoing Support Plan - Improvement,Third Party Payments,REVENUE
http://statistics.data.gov.uk/id/local-authority/00HY,Wiltshire Council,29/09/2014,5106568537,546.04,Somerset Care At Home Limited ,132004,.,Community Services,West Locality OP,Initial Support Plan - Reablement,Third Party Payments,REVENUE
http://statistics.data.gov.uk/id/local-authority/00HY,Wiltshire Council,29/09/2014,5106568538,569.14,Somerset Care At Home Limited ,132004,.,Community Services,North Locality OP,Ongoing Support Plan - Improvement,Third Party Payments,REVENUE
http://statistics.data.gov.uk/id/local-authority/00HY,Wiltshire Council,29/09/2014,5106568539,656.70,Somerset Care At Home Limited ,132004,.,Community Services,North Locality OP,Ongoing Support Plan - Improvement,Third Party Payments,REVENUE
http://statistics.data.gov.uk/id/local-authority/00HY,Wiltshire Council,29/09/2014,5106568540,1011.78,Somerset Care At Home Limited ,132004,.,Community Services,West Locality OP,Initial Support Plan - Reablement,Third Party Payments,REVENUE
http://statistics.data.gov.uk/id/local-authority/00HY,Wiltshire Council,29/09/2014,5106568546,780.08,Somerset Care At Home Limited ,132004,.,Community Services,North Locality OP,Ongoing Support Plan - Maintenance,Third Party Payments,REVENUE
http://statistics.data.gov.uk/id/local-authority/00HY,Wiltshire Council,29/09/2014,5106568548,1064.40,Somerset Care At Home Limited ,132004,.,Community Services,East Locality OP,Ongoing Support Plan - Maintenance,Third Party Payments,REVENUE
http://statistics.data.gov.uk/id/local-authority/00HY,Wiltshire Council,29/09/2014,5106568552,720.80,Somerset Care At Home Limited ,132004,.,Community Services,West Locality OP,Ongoing Support Plan - Maintenance,Third Party Payments,REVENUE
http://statistics.data.gov.uk/id/local-authority/00HY,Wiltshire Council,29/09/2014,5106568556,1535.16,Somerset Care At Home Limited ,132004,.,Community Services,OVA North Locality,Ongoing Support Plan - Maintenance,Third Party Payments,REVENUE
http://statistics.data.gov.uk/id/local-authority/00HY,Wiltshire Council,29/09/2014,5106568557,334.32,Somerset Care At Home Limited ,132004,.,Community Services,North Locality OP,Ongoing Support Plan - Maintenance,Third Party Payments,REVENUE
http://statistics.data.gov.uk/id/local-authority/00HY,Wiltshire Council,29/09/2014,5106568560,1146.06,Somerset Care At Home Limited ,132004,.,Community Services,West Locality OP,Initial Support Plan - Reablement,Third Party Payments,REVENUE
http://statistics.data.gov.uk/id/local-authority/00HY,Wiltshire Council,29/09/2014,5106568564,278.60,Somerset Care At Home Limited ,132004,.,Community Services,North Locality OP,Ongoing Support Plan - Maintenance,Third Party Payments,REVENUE
http://statistics.data.gov.uk/id/local-authority/00HY,Wiltshire Council,29/09/2014,5106568573,929.07,Somerset Care At Home Limited ,132004,.,Community Services,OVA South Locality,Ongoing Support Plan - Maintenance,Third Party Payments,REVENUE
http://statistics.data.gov.uk/id/local-authority/00HY,Wiltshire Council,29/09/2014,5106569830,284.30,Somerset Care At Home Limited ,132004,.,Community Services,East Locality OP,Initial Support Plan - Reablement,Third Party Payments,REVENUE
http://statistics.data.gov.uk/id/local-authority/00HY,Wiltshire Council,29.09.2014,1901353291,1985.62,Tower House ,122070,.,Community Services,BCF-Intermediate Cr,Adult Nursing Placements - transitional beds,Third Party Payments,REVENUE
http://statistics.data.gov.uk/id/local-authority/00HY,Wiltshire Council,12/09/2014,5106557296,2857.91,Vela Vermund Larsen A/S ,139949,.,Children & Education,Central Equipment,Client Aids and Adaptations,Third Party Payments,REVENUE
http://statistics.data.gov.uk/id/local-authority/00HY,Wiltshire Council,04.09.2014,1901345612,288.00,White Horse Cars Ltd ,100619,.,Community Services,CTPLD County CIC U65,Transport Contracts,Third Party Payments,REVENUE
http://statistics.data.gov.uk/id/local-authority/00HY,Wiltshire Council,15.09.2014,1901348264,1203.56,First Somerset  and  Avon Ltd ,101188,AB24,Neighbourhood & Planning,Public Transport,Transport Contracts,Third Party Payments,REVENUE
http://statistics.data.gov.uk/id/local-authority/00HY,Wiltshire Council,15.09.2014,1901348265,2326.44,First Somerset  and  Avon Ltd ,101188,AB24,Neighbourhood & Planning,Public Transport,Transport Contracts,Third Party Payments,REVENUE
http://statistics.data.gov.uk/id/local-authority/00HY,Wiltshire Council,15.09.2014,1901348266,3204.89,First Somerset  and  Avon Ltd ,101188,AB24,Neighbourhood & Planning,Public Transport,Transport Contracts,Third Party Payments,REVENUE
http://statistics.data.gov.uk/id/local-authority/00HY,Wiltshire Council,15.09.2014,1901348267,2385.95,First Somerset  and  Avon Ltd ,101188,AB24,Neighbourhood & Planning,Public Transport,Transport Contracts,Third Party Payments,REVENUE
http://statistics.data.gov.uk/id/local-authority/00HY,Wiltshire Council,15.09.2014,1901348269,4264.79,First Somerset  and  Avon Ltd ,101188,AB24,Neighbourhood & Planning,Public Transport,Transport Contracts,Third Party Payments,REVENUE
http://statistics.data.gov.uk/id/local-authority/00HY,Wiltshire Council,15.09.2014,1901348270,3613.07,First Somerset  and  Avon Ltd ,101188,AB24,Neighbourhood & Planning,Public Transport,Transport Contracts,Third Party Payments,REVENUE
http://statistics.data.gov.uk/id/local-authority/00HY,Wiltshire Council,15.09.2014,1901348271,6608.82,First Somerset  and  Avon Ltd ,101188,AB24,Neighbourhood & Planning,Public Transport,Transport Contracts,Third Party Payments,REVENUE
http://statistics.data.gov.uk/id/local-authority/00HY,Wiltshire Council,23.09.2014,1901351370,4264.79,First Somerset  and  Avon Ltd ,101188,AB24,Neighbourhood & Planning,Public Transport,Transport Contracts,Third Party Payments,REVENUE
http://statistics.data.gov.uk/id/local-authority/00HY,Wiltshire Council,26.09.2014,1901352888,60000.00,First Somerset  and  Avon Ltd ,101188,AB24,Neighbourhood & Planning,Concessionary Fares,Compensation for Concessionary fares,Third Party Payments,REVENUE
http://statistics.data.gov.uk/id/local-authority/00HY,Wiltshire Council,01/09/2014,5106555821,2064.45,AECOM Professional Services LLP ,127871,AL1 ,Wiltshire Council,Wiltshire Council,Buildings Minor Alterations,Premises Related,CAPITAL
http://statistics.data.gov.uk/id/local-authority/00HY,Wiltshire Council,09/09/2014,5106557127,1531.09,Computacenter  UK  Ltd ,110607,AL10,Resources,Wrkplc Transform Prg,ICT - Support arrangements,Supplies and Services,REVENUE
http://statistics.data.gov.uk/id/local-authority/00HY,Wiltshire Council,09/09/2014,5106557128,915.65,Computacenter  UK  Ltd ,110607,AL10,Resources,Wrkplc Transform Prg,ICT - Support arrangements,Supplies and Services,REVENUE
http://statistics.data.gov.uk/id/local-authority/00HY,Wiltshire Council,09/09/2014,5106557153,777.03,Computacenter  UK  Ltd ,110607,AL10,Resources,ICT Corporate Networ,Hardware Purchases IT,Supplies and Services,REVENUE
http://statistics.data.gov.uk/id/local-authority/00HY,Wiltshire Council,09/09/2014,5106557154,1564.86,Computacenter  UK  Ltd ,110607,AL10,Resources,ICT Corporate Networ,Hardware Purchases IT,Supplies and Services,REVENUE
http://statistics.data.gov.uk/id/local-authority/00HY,Wiltshire Council,09/09/2014,5106557155,1030.67,Computacenter  UK  Ltd ,110607,AL10,Resources,ICT Corporate Networ,Hardware Purchases IT,Supplies and Services,REVENUE
http://statistics.data.gov.uk/id/local-authority/00HY,Wiltshire Council,02.09.2014,1901337084,50535.68,Hertfordshire Partnership NHS Found Trust,140376,AL3 ,Community Services,MH AOWA North,Adult Residential Placements - Spot Purchase,Third Party Payments,REVENUE
http://statistics.data.gov.uk/id/local-authority/00HY,Wiltshire Council,29.09.2014,1901353310,81773.21,Churchill Contract Services Ltd ,135047,AL5 ,Resources,Other Rechable Works,Cleaning Contracts - Buildings,Premises Related,REVENUE
http://statistics.data.gov.uk/id/local-authority/00HY,Wiltshire Council,12/09/2014,5106558846,750.03,ENA Live In Care ,115763,AL8 ,Community Services,OVA East Locality,Adult Domiciliary Care - Live in Care,Third Party Payments,REVENUE
http://statistics.data.gov.uk/id/local-authority/00HY,Wiltshire Council,12/09/2014,5106558847,396.59,ENA Live In Care ,115763,AL8 ,Community Services,OVA East Locality,Adult Domiciliary care - Live in contribution,Income,REVENUE
http://statistics.data.gov.uk/id/local-authority/00HY,Wiltshire Council,16/09/2014,5106559419,1062.21,ENA Live In Care ,115763,AL8 ,Community Services,OVA East Locality,Adult Domiciliary care - Live in contribution,Income,REVENUE
http://statistics.data.gov.uk/id/local-authority/00HY,Wiltshire Council,17/09/2014,5106560607,1637.76,ENA Live In Care ,115763,AL8 ,Community Services,OVA East Locality,Adult Domiciliary care - Live in contribution,Income,REVENUE
http://statistics.data.gov.uk/id/local-authority/00HY,Wiltshire Council,17/09/2014,5106560608,2119.53,ENA Live In Care ,115763,AL8 ,Community Services,OVA East Locality,Adult Domiciliary Care - Live in Care,Third Party Payments,REVENUE
http://statistics.data.gov.uk/id/local-authority/00HY,Wiltshire Council,19/09/2014,5106560986,354.07,ENA Live In Care ,115763,AL8 ,Community Services,OVA East Locality,Adult Domiciliary care - Live in contribution,Income,REVENUE
http://statistics.data.gov.uk/id/local-authority/00HY,Wiltshire Council,19/09/2014,5106560987,706.51,ENA Live In Care ,115763,AL8 ,Community Services,OVA East Locality,Adult Domiciliary Care - Live in Care,Third Party Payments,REVENUE
http://statistics.data.gov.uk/id/local-authority/00HY,Wiltshire Council,19/09/2014,5106560978,500.00,Food & Farming Compliance ,136835,B1 2,Health & Wellbeing,FoodSafetyN&W,Grants Paid to individuals for Tangible Benefits,Supplies and Services,REVENUE
http://statistics.data.gov.uk/id/local-authority/00HY,Wiltshire Council,30/09/2014,5106570436,1399.12,Probrand Limited ,120253,B1 3,Resources,Infrastructure,Hardware Maintenance,Supplies and Services,REVENUE
http://statistics.data.gov.uk/id/local-authority/00HY,Wiltshire Council,30/09/2014,5106570437,3013.68,Probrand Limited ,120253,B1 3,Resources,Infrastructure,Hardware Maintenance,Supplies and Services,REVENUE
http://statistics.data.gov.uk/id/local-authority/00HY,Wiltshire Council,12/09/2014,5106559002,5523.90,Forpsych Ltd ,115922,B23 ,Children & Education,HQ Social Care,Witness / Jurors' / Justice's Expenses,Supplies and Services,REVENUE
http://statistics.data.gov.uk/id/local-authority/00HY,Wiltshire Council,24/09/2014,5106562250,3635.28,Windsor House Trident Reach the People Charity,132386,B23 ,Community Services,MH AOWA North Locali,Adult Residential Placements - Spot Purchase,Third Party Payments,REVENUE
http://statistics.data.gov.uk/id/local-authority/00HY,Wiltshire Council,16/09/2014,5106559416,484.38,Sense ,121022,B29 ,Community Services,North Locality OP,Adult Domiciliary Care - Spot,Third Party Payments,REVENUE
http://statistics.data.gov.uk/id/local-authority/00HY,Wiltshire Council,05.09.2014,1901345727,1690.00,TeacherActive Limited ,138819,B3 3,Children & Education,BehaviourSuppCore,Agency Staff,Employee Related,REVENUE
http://statistics.data.gov.uk/id/local-authority/00HY,Wiltshire Council,18/09/2014,5106560900,668.00,TeacherActive Limited ,138819,B3 3,Children & Education,BehaviourSuppCore,Agency Staff,Employee Related,REVENUE
http://statistics.data.gov.uk/id/local-authority/00HY,Wiltshire Council,25/09/2014,5106566584,13340.12,St Modwen Developments Ltd ,121348,B32 ,Neighbourhood & Planning,Ludgershall Incubt E,Premises Rental / Hire Charges,Premises Related,REVENUE
http://statistics.data.gov.uk/id/local-authority/00HY,Wiltshire Council,22/09/2014,5106561603,24008.40,Embrace ,140319,B45 ,Children & Education,Ext Placement & IFA,Adult / Child Care Agency Placement,Third Party Payments,REVENUE
http://statistics.data.gov.uk/id/local-authority/00HY,Wiltshire Council,22/09/2014,5106561604,2892.90,Embrace ,140319,B45 ,Children & Education,Ext Placement & IFA,Adult / Child Care Agency Placement,Third Party Payments,REVENUE
http://statistics.data.gov.uk/id/local-authority/00HY,Wiltshire Council,22/09/2014,5106561605,13568.70,Embrace ,140319,B45 ,Children & Education,Ext Placement & IFA,Adult / Child Care Agency Placement,Third Party Payments,REVENUE
http://statistics.data.gov.uk/id/local-authority/00HY,Wiltshire Council,22/09/2014,5106561606,3706.50,Embrace ,140319,B45 ,Children & Education,Ext Placement & IFA,Adult / Child Care Agency Placement,Third Party Payments,REVENUE
http://statistics.data.gov.uk/id/local-authority/00HY,Wiltshire Council,22/09/2014,5106561607,15863.70,Embrace ,140319,B45 ,Children & Education,Ext Placement & IFA,Adult / Child Care Agency Placement,Third Party Payments,REVENUE
http://statistics.data.gov.uk/id/local-authority/00HY,Wiltshire Council,22/09/2014,5106561608,2892.90,Embrace ,140319,B45 ,Children & Education,Ext Placement & IFA,Adult / Child Care Agency Placement,Third Party Payments,REVENUE
http://statistics.data.gov.uk/id/local-authority/00HY,Wiltshire Council,30.09.2014,1901353497,3979.29,Peters Ltd ,100315,B5 6,Community Services,Lib General,Books,Supplies and Services,REVENUE
http://statistics.data.gov.uk/id/local-authority/00HY,Wiltshire Council,23/09/2014,5106561786,255.94,Peters Ltd ,100315,B5 6,Children & Education,WiltsLearnResources,Publications / periodicals,Supplies and Services,REVENUE
http://statistics.data.gov.uk/id/local-authority/00HY,Wiltshire Council,02/09/2014,5106556189,29532.14,Ats Euromaster Ltd ,113709,B6 5,Neighbourhood & Planning,Fleet Operations,Vehicle 3rd Party Repairs,Transport Related,REVENUE
http://statistics.data.gov.uk/id/local-authority/00HY,Wiltshire Council,23/09/2014,5106560753,19490.24,Ats Euromaster Ltd ,113709,B6 5,Neighbourhood & Planning,Fleet Operations,Vehicle 3rd Party Repairs,Transport Related,REVENUE
http://statistics.data.gov.uk/id/local-authority/00HY,Wiltshire Council,26/09/2014,5106560835,8687.02,Securitas Security Services (UK) Lt ,101077,B6 7,Neighbourhood & Planning,CCTV,Equipment Maintenance,Supplies and Services,REVENUE
http://statistics.data.gov.uk/id/local-authority/00HY,Wiltshire Council,19/09/2014,5106561204,3248.70,Foster Care Associates Limited ,110952,B60 ,Children & Education,Ext Placement & IFA,Adult / Child Care Agency Placement,Third Party Payments,REVENUE
http://statistics.data.gov.uk/id/local-authority/00HY,Wiltshire Council,19/09/2014,5106561205,5132.40,Foster Care Associates Limited ,110952,B60 ,Children & Education,Ext Placement & IFA,Adult / Child Care Agency Placement,Third Party Payments,REVENUE
http://statistics.data.gov.uk/id/local-authority/00HY,Wiltshire Council,19/09/2014,5106561206,3667.20,Foster Care Associates Limited ,110952,B60 ,Children & Education,Ext Placement & IFA,Adult / Child Care Agency Placement,Third Party Payments,REVENUE
http://statistics.data.gov.uk/id/local-authority/00HY,Wiltshire Council,19/09/2014,5106561207,4080.00,Foster Care Associates Limited ,110952,B60 ,Children & Education,Ext Placement & IFA,Adult / Child Care Agency Placement,Third Party Payments,REVENUE
http://statistics.data.gov.uk/id/local-authority/00HY,Wiltshire Council,19/09/2014,5106561208,3078.00,Foster Care Associates Limited ,110952,B60 ,Children & Education,Ext Placement & IFA,Adult / Child Care Agency Placement,Third Party Payments,REVENUE
http://statistics.data.gov.uk/id/local-authority/00HY,Wiltshire Council,19/09/2014,5106561209,3876.00,Foster Care Associates Limited ,110952,B60 ,Children & Education,Ext Placement & IFA,Adult / Child Care Agency Placement,Third Party Payments,REVENUE
http://statistics.data.gov.uk/id/local-authority/00HY,Wiltshire Council,19/09/2014,5106561222,3574.50,Foster Care Associates Limited ,110952,B60 ,Children & Education,Ext Placement & IFA,Adult / Child Care Agency Placement,Third Party Payments,REVENUE
http://statistics.data.gov.uk/id/local-authority/00HY,Wiltshire Council,19/09/2014,5106561223,3998.40,Foster Care Associates Limited ,110952,B60 ,Children & Education,Ext Placement & IFA,Adult / Child Care Agency Placement,Third Party Payments,REVENUE
http://statistics.data.gov.uk/id/local-authority/00HY,Wiltshire Council,19/09/2014,5106561231,3175.20,Foster Care Associates Limited ,110952,B60 ,Children & Education,Ext Placement & IFA,Adult / Child Care Agency Placement,Third Party Payments,REVENUE
http://statistics.data.gov.uk/id/local-authority/00HY,Wiltshire Council,19/09/2014,5106561232,3351.60,Foster Care Associates Limited ,110952,B60 ,Children & Education,Ext Placement & IFA,Adult / Child Care Agency Placement,Third Party Payments,REVENUE
http://statistics.data.gov.uk/id/local-authority/00HY,Wiltshire Council,30/09/2014,5106558890,355.78,Somerstotalkare Limited ,133398,B62 ,Neighbourhood & Planning,Fleet Operations,Vehicle Repairs & Maintenance,Transport Related,REVENUE
http://statistics.data.gov.uk/id/local-authority/00HY,Wiltshire Council,24.09.2014,1901351898,8480.37,Northgate Consulting LLP ,138529,B74 ,Neighbourhood & Planning,Housing Contracts,Agency Staff,Employee Related,REVENUE
http://statistics.data.gov.uk/id/local-authority/00HY,Wiltshire Council,17.09.2014,1901346109,375.00,NTM Consultants ,139230,B93 ,Neighbourhood & Planning,Leased Cars,Leased Car Scheme,Transport Related,REVENUE
http://statistics.data.gov.uk/id/local-authority/00HY,Wiltshire Council,17.09.2014,1901346109,3750.00,NTM Consultants ,139230,B93 ,Neighbourhood & Planning,Housg Tenant Partici,Other Professional Fees,Supplies and Services,REVENUE
http://statistics.data.gov.uk/id/local-authority/00HY,Wiltshire Council,17.09.2014,1901346110,375.00,NTM Consultants ,139230,B93 ,Neighbourhood & Planning,Leased Cars,Leased Car Scheme,Transport Related,REVENUE
http://statistics.data.gov.uk/id/local-authority/00HY,Wiltshire Council,17.09.2014,1901346110,3750.00,NTM Consultants ,139230,B93 ,Neighbourhood & Planning,Housg Tenant Partici,Other Professional Fees,Supplies and Services,REVENUE
http://statistics.data.gov.uk/id/local-authority/00HY,Wiltshire Council,17.09.2014,1901346111,300.00,NTM Consultants ,139230,B93 ,Neighbourhood & Planning,Leased Cars,Leased Car Scheme,Transport Related,REVENUE
http://statistics.data.gov.uk/id/local-authority/00HY,Wiltshire Council,17.09.2014,1901346111,3000.00,NTM Consultants ,139230,B93 ,Neighbourhood & Planning,Housg Tenant Partici,Other Professional Fees,Supplies and Services,REVENUE
http://statistics.data.gov.uk/id/local-authority/00HY,Wiltshire Council,17.09.2014,1901349952,613.03,Kiddi Vouchers ,117221,B96 ,Wiltshire Council,Wiltshire Council,Child Care Vouchers - Service Charge,Balance Sheet Accounts,REVENUE
http://statistics.data.gov.uk/id/local-authority/00HY,Wiltshire Council,04.09.2014,1901345597,274.98,Bristow & Sutor ,132631,B98 ,Resources,Revs&Bens-Revenues,Cash Collection / Bailiff's Fees,Supplies and Services,REVENUE
http://statistics.data.gov.uk/id/local-authority/00HY,Wiltshire Council,24.09.2014,1901351900,672.00,Bristow & Sutor ,132631,B98 ,Resources,Revs&Bens-Revenues,Cash Collection / Bailiff's Fees,Supplies and Services,REVENUE
http://statistics.data.gov.uk/id/local-authority/00HY,Wiltshire Council,04/09/2014,5106556623,1254.45,Equality -Longbridge Deverill House ,113065,BA 1,Community Services,MH OP North Locality,Adult Care Nursing Placements- Spot Purchase,Third Party Payments,REVENUE
http://statistics.data.gov.uk/id/local-authority/00HY,Wiltshire Council,04/09/2014,5106556750,2089.05,Equality -Longbridge Deverill House ,113065,BA 1,Community Services,MH OP South Locality,Adult Care Nursing Placements- Spot Purchase,Third Party Payments,REVENUE
http://statistics.data.gov.uk/id/local-authority/00HY,Wiltshire Council,08/09/2014,5106557184,1857.20,Equality -Longbridge Deverill House ,113065,BA 1,Community Services,West Locality OP,Adult Residential Placements - Spot Purchase,Third Party Payments,REVENUE
http://statistics.data.gov.uk/id/local-authority/00HY,Wiltshire Council,17/09/2014,5106560553,617.85,Equality -Longbridge Deverill House ,113065,BA 1,Community Services,West Locality OP,Adult Nursing Respite Contribution - Spot,Income,REVENUE
http://statistics.data.gov.uk/id/local-authority/00HY,Wiltshire Council,24/09/2014,5106562044,1995.04,Equality -Longbridge Deverill House ,113065,BA 1,Community Services,MH OP South Locality,Adult Residential Placements - Spot Purchase,Third Party Payments,REVENUE
http://statistics.data.gov.uk/id/local-authority/00HY,Wiltshire Council,24/09/2014,5106562973,2660.84,Equality -Longbridge Deverill House ,113065,BA 1,Community Services,West Locality OP,Adult Care Nursing Placements- Spot Purchase,Third Party Payments,REVENUE
http://statistics.data.gov.uk/id/local-authority/00HY,Wiltshire Council,24/09/2014,5106562974,443.56,Equality -Longbridge Deverill House ,113065,BA 1,Community Services,OP West FNC,Adult Care Funded Nursing Care - Loal Auth Clients,Third Party Payments,REVENUE
http://statistics.data.gov.uk/id/local-authority/00HY,Wiltshire Council,24/09/2014,5106562975,2100.00,Equality -Longbridge Deverill House ,113065,BA 1,Community Services,MH OP South Locality,Adult Care Nursing Placements- Spot Purchase,Third Party Payments,REVENUE
http://statistics.data.gov.uk/id/local-authority/00HY,Wiltshire Council,24/09/2014,5106562976,1400.00,Equality -Longbridge Deverill House ,113065,BA 1,Community Services,Section 117-PCT Clnt,Adult Care Nursing Placements- Spot Purchase,Third Party Payments,REVENUE
http://statistics.data.gov.uk/id/local-authority/00HY,Wiltshire Council,24/09/2014,5106563058,3060.84,Equality -Longbridge Deverill House ,113065,BA 1,Community Services,South Locality OP,Adult Care Nursing Placements- Spot Purchase,Third Party Payments,REVENUE
http://statistics.data.gov.uk/id/local-authority/00HY,Wiltshire Council,24/09/2014,5106563059,443.56,Equality -Longbridge Deverill House ,113065,BA 1,Community Services,OP South FNC,Adult Care Funded Nursing Care - Loal Auth Clients,Third Party Payments,REVENUE
http://statistics.data.gov.uk/id/local-authority/00HY,Wiltshire Council,24/09/2014,5106563085,3100.00,Equality -Longbridge Deverill House ,113065,BA 1,Community Services,South Locality OP,Adult Care Nursing Placements- Spot Purchase,Third Party Payments,REVENUE
http://statistics.data.gov.uk/id/local-authority/00HY,Wiltshire Council,24/09/2014,5106563144,2660.84,Equality -Longbridge Deverill House ,113065,BA 1,Community Services,West Locality OP,Adult Care Nursing Placements- Spot Purchase,Third Party Payments,REVENUE
http://statistics.data.gov.uk/id/local-authority/00HY,Wiltshire Council,24/09/2014,5106563145,443.56,Equality -Longbridge Deverill House ,113065,BA 1,Community Services,OP West FNC,Adult Care Funded Nursing Care - Loal Auth Clients,Third Party Payments,REVENUE
http://statistics.data.gov.uk/id/local-authority/00HY,Wiltshire Council,24/09/2014,5106563156,443.56,Equality -Longbridge Deverill House ,113065,BA 1,Community Services,MH OA North FNC,Adult Care Funded Nursing Care - Loal Auth Clients,Third Party Payments,REVENUE
http://statistics.data.gov.uk/id/local-authority/00HY,Wiltshire Council,24/09/2014,5106563211,2618.72,Equality -Longbridge Deverill House ,113065,BA 1,Community Services,MH OP South Locality,Adult Residential Placements - Spot Purchase,Third Party Payments,REVENUE
http://statistics.data.gov.uk/id/local-authority/00HY,Wiltshire Council,24/09/2014,5106563231,3360.84,Equality -Longbridge Deverill House ,113065,BA 1,Community Services,West Locality OP,Adult Care Nursing Placements- Spot Purchase,Third Party Payments,REVENUE
http://statistics.data.gov.uk/id/local-authority/00HY,Wiltshire Council,24/09/2014,5106563232,443.56,Equality -Longbridge Deverill House ,113065,BA 1,Community Services,OP West FNC,Adult Care Funded Nursing Care - Loal Auth Clients,Third Party Payments,REVENUE
http://statistics.data.gov.uk/id/local-authority/00HY,Wiltshire Council,24/09/2014,5106564401,2035.40,Equality -Longbridge Deverill House ,113065,BA 1,Community Services,MH OP South Locality,Adult Residential Placements - Spot Purchase,Third Party Payments,REVENUE
http://statistics.data.gov.uk/id/local-authority/00HY,Wiltshire Council,24/09/2014,5106564625,2660.84,Equality -Longbridge Deverill House ,113065,BA 1,Community Services,West Locality OP,Adult Care Nursing Placements- Spot Purchase,Third Party Payments,REVENUE
http://statistics.data.gov.uk/id/local-authority/00HY,Wiltshire Council,24/09/2014,5106564626,443.56,Equality -Longbridge Deverill House ,113065,BA 1,Community Services,OP West FNC,Adult Care Funded Nursing Care - Loal Auth Clients,Third Party Payments,REVENUE
http://statistics.data.gov.uk/id/local-authority/00HY,Wiltshire Council,24/09/2014,5106564628,2600.00,Equality -Longbridge Deverill House ,113065,BA 1,Community Services,Home Loans,Adult Care Loans,Capital charges and Expenditure,REVENUE
http://statistics.data.gov.uk/id/local-authority/00HY,Wiltshire Council,24/09/2014,5106564766,2260.84,Equality -Longbridge Deverill House ,113065,BA 1,Community Services,West Locality OP,Adult Care Nursing Placements- Spot Purchase,Third Party Payments,REVENUE
http://statistics.data.gov.uk/id/local-authority/00HY,Wiltshire Council,24/09/2014,5106564767,443.56,Equality -Longbridge Deverill House ,113065,BA 1,Community Services,OP West FNC,Adult Care Funded Nursing Care - Loal Auth Clients,Third Party Payments,REVENUE
http://statistics.data.gov.uk/id/local-authority/00HY,Wiltshire Council,24/09/2014,5106564944,2762.76,Equality -Longbridge Deverill House ,113065,BA 1,Community Services,CTPLD Place CIC U65,Adult Care Nursing Placements- Spot Purchase,Third Party Payments,REVENUE
http://statistics.data.gov.uk/id/local-authority/00HY,Wiltshire Council,24/09/2014,5106564945,443.56,Equality -Longbridge Deverill House ,113065,BA 1,Community Services,CTPLD County FNC,Adult Care Funded Nursing Care - Loal Auth Clients,Third Party Payments,REVENUE
http://statistics.data.gov.uk/id/local-authority/00HY,Wiltshire Council,24/09/2014,5106565594,2618.72,Equality -Longbridge Deverill House ,113065,BA 1,Community Services,West Locality OP,Adult Residential Placements - Spot Purchase,Third Party Payments,REVENUE
http://statistics.data.gov.uk/id/local-authority/00HY,Wiltshire Council,24/09/2014,5106565615,2656.44,Equality -Longbridge Deverill House ,113065,BA 1,Community Services,West Locality OP,Adult Care Nursing Placements- Spot Purchase,Third Party Payments,REVENUE
http://statistics.data.gov.uk/id/local-authority/00HY,Wiltshire Council,24/09/2014,5106565616,443.56,Equality -Longbridge Deverill House ,113065,BA 1,Community Services,OP West FNC,Adult Care Funded Nursing Care - Loal Auth Clients,Third Party Payments,REVENUE
http://statistics.data.gov.uk/id/local-authority/00HY,Wiltshire Council,24/09/2014,5106565618,4800.00,Equality -Longbridge Deverill House ,113065,BA 1,Community Services,MH OP North Locality,Adult Care Nursing Placements- Spot Purchase,Third Party Payments,REVENUE
http://statistics.data.gov.uk/id/local-authority/00HY,Wiltshire Council,24/09/2014,5106565641,2618.72,Equality -Longbridge Deverill House ,113065,BA 1,Community Services,MH OP South Locality,Adult Residential Placements - Spot Purchase,Third Party Payments,REVENUE
http://statistics.data.gov.uk/id/local-authority/00HY,Wiltshire Council,24/09/2014,5106565681,2700.00,Equality -Longbridge Deverill House ,113065,BA 1,Community Services,Home Loans,Adult Care Loans,Capital charges and Expenditure,REVENUE
http://statistics.data.gov.uk/id/local-authority/00HY,Wiltshire Council,24/09/2014,5106565694,3082.88,Equality -Longbridge Deverill House ,113065,BA 1,Community Services,East Locality OP,Adult Care Nursing Placements- Spot Purchase,Third Party Payments,REVENUE
http://statistics.data.gov.uk/id/local-authority/00HY,Wiltshire Council,24/09/2014,5106565695,443.56,Equality -Longbridge Deverill House ,113065,BA 1,Community Services,OP East FNC,Adult Care Funded Nursing Care - Loal Auth Clients,Third Party Payments,REVENUE
http://statistics.data.gov.uk/id/local-authority/00HY,Wiltshire Council,24/09/2014,5106565787,2756.44,Equality -Longbridge Deverill House ,113065,BA 1,Community Services,Home Loans,Adult Care Loans,Capital charges and Expenditure,REVENUE
http://statistics.data.gov.uk/id/local-authority/00HY,Wiltshire Council,24/09/2014,5106565797,2780.72,Equality -Longbridge Deverill House ,113065,BA 1,Community Services,West Locality OP,Adult Care Nursing Placements- Spot Purchase,Third Party Payments,REVENUE
http://statistics.data.gov.uk/id/local-authority/00HY,Wiltshire Council,24/09/2014,5106565798,443.56,Equality -Longbridge Deverill House ,113065,BA 1,Community Services,OP West FNC,Adult Care Funded Nursing Care - Loal Auth Clients,Third Party Payments,REVENUE
http://statistics.data.gov.uk/id/local-authority/00HY,Wiltshire Council,24/09/2014,5106565816,1698.40,Equality -Longbridge Deverill House ,113065,BA 1,Community Services,West Locality OP,Adult Care Nursing Placements- Spot Purchase,Third Party Payments,REVENUE
http://statistics.data.gov.uk/id/local-authority/00HY,Wiltshire Council,24/09/2014,5106565817,316.80,Equality -Longbridge Deverill House ,113065,BA 1,Community Services,OP West FNC,Adult Care Funded Nursing Care - Loal Auth Clients,Third Party Payments,REVENUE
http://statistics.data.gov.uk/id/local-authority/00HY,Wiltshire Council,24/09/2014,5106565826,3082.88,Equality -Longbridge Deverill House ,113065,BA 1,Community Services,West Locality OP,Adult Care Nursing Placements- Spot Purchase,Third Party Payments,REVENUE
http://statistics.data.gov.uk/id/local-authority/00HY,Wiltshire Council,24/09/2014,5106565827,443.56,Equality -Longbridge Deverill House ,113065,BA 1,Community Services,OP West FNC,Adult Care Funded Nursing Care - Loal Auth Clients,Third Party Payments,REVENUE
http://statistics.data.gov.uk/id/local-authority/00HY,Wiltshire Council,24/09/2014,5106565916,2377.84,Equality -Longbridge Deverill House ,113065,BA 1,Community Services,West Locality OP,Adult Care Nursing Placements- Spot Purchase,Third Party Payments,REVENUE
http://statistics.data.gov.uk/id/local-authority/00HY,Wiltshire Council,24/09/2014,5106565917,443.56,Equality -Longbridge Deverill House ,113065,BA 1,Community Services,OP West FNC,Adult Care Funded Nursing Care - Loal Auth Clients,Third Party Payments,REVENUE
http://statistics.data.gov.uk/id/local-authority/00HY,Wiltshire Council,24/09/2014,5106565993,3056.44,Equality -Longbridge Deverill House ,113065,BA 1,Community Services,MH OP South Locality,Adult Care Nursing Placements- Spot Purchase,Third Party Payments,REVENUE
http://statistics.data.gov.uk/id/local-authority/00HY,Wiltshire Council,24/09/2014,5106565994,443.56,Equality -Longbridge Deverill House ,113065,BA 1,Community Services,MH OA South FNC,Adult Care Funded Nursing Care - Loal Auth Clients,Third Party Payments,REVENUE
http://statistics.data.gov.uk/id/local-authority/00HY,Wiltshire Council,24/09/2014,5106566034,3056.44,Equality -Longbridge Deverill House ,113065,BA 1,Community Services,MH OP South Locality,Adult Care Nursing Placements- Spot Purchase,Third Party Payments,REVENUE
http://statistics.data.gov.uk/id/local-authority/00HY,Wiltshire Council,24/09/2014,5106566035,443.56,Equality -Longbridge Deverill House ,113065,BA 1,Community Services,MH OA South FNC,Adult Care Funded Nursing Care - Loal Auth Clients,Third Party Payments,REVENUE
http://statistics.data.gov.uk/id/local-authority/00HY,Wiltshire Council,24/09/2014,5106566111,3100.00,Equality -Longbridge Deverill House ,113065,BA 1,Community Services,Home Loans,Adult Care Loans,Capital charges and Expenditure,REVENUE
http://statistics.data.gov.uk/id/local-authority/00HY,Wiltshire Council,24/09/2014,5106566112,3463.25,Equality -Longbridge Deverill House ,113065,BA 1,Community Services,Home Loans,Adult Care Loans,Capital charges and Expenditure,REVENUE
http://statistics.data.gov.uk/id/local-authority/00HY,Wiltshire Council,24/09/2014,5106566128,3078.48,Equality -Longbridge Deverill House ,113065,BA 1,Community Services,MH OP South Locality,Adult Care Nursing Placements- Spot Purchase,Third Party Payments,REVENUE
http://statistics.data.gov.uk/id/local-authority/00HY,Wiltshire Council,30/09/2014,5106570381,2660.84,Equality -Longbridge Deverill House ,113065,BA 1,Community Services,MH OP North Locality,Adult Care Nursing Placements- Spot Purchase,Third Party Payments,REVENUE
http://statistics.data.gov.uk/id/local-authority/00HY,Wiltshire Council,02.09.2014,1901337059,5350.05,Avon and W Wilts MHC NHS Trust ,110216,BA1 ,Community Services,MH Management Fee,Contribution to Approved Social Workers,Supplies and Services,REVENUE
http://statistics.data.gov.uk/id/local-authority/00HY,Wiltshire Council,24.09.2014,1901351145,5359.30,Avon and W Wilts MHC NHS Trust ,110216,BA1 ,Community Services,MH Management Fee,Contribution to Approved Social Workers,Supplies and Services,REVENUE
http://statistics.data.gov.uk/id/local-authority/00HY,Wiltshire Council,03.09.2014,1901345178,572.99,Bath Mind ,134100,BA1 ,Community Services,MH Commissioned Cont,Payments to Contractors - Other,Third Party Payments,REVENUE
http://statistics.data.gov.uk/id/local-authority/00HY,Wiltshire Council,30.09.2014,1901353712,572.99,Bath Mind ,134100,BA1 ,Community Services,MH Commissioned Cont,Payments to Contractors - Other,Third Party Payments,REVENUE
http://statistics.data.gov.uk/id/local-authority/00HY,Wiltshire Council,05/09/2014,5106557095,420.00,BLB Solicitors ,129278,BA1 ,Resources,CCU - Brad/Bytsea Rd,Legal Fees,Supplies and Services,REVENUE
http://statistics.data.gov.uk/id/local-authority/00HY,Wiltshire Council,01.09.2014,1901336885,27390.83,Developing Health and Independance ,101061,BA1 ,Neighbourhood & Planning,HousingStrategy,Payments to Contractors - Other,Third Party Payments,REVENUE
http://statistics.data.gov.uk/id/local-authority/00HY,Wiltshire Council,03.09.2014,1901345182,2800.00,Developing Health and Independance ,101061,BA1 ,Community Services,Acorn House,Payments to Contractors - Other,Third Party Payments,REVENUE
http://statistics.data.gov.uk/id/local-authority/00HY,Wiltshire Council,25.09.2014,1901351966,27390.83,Developing Health and Independance ,101061,BA1 ,Neighbourhood & Planning,HousingStrategy,Payments to Contractors - Other,Third Party Payments,REVENUE
http://statistics.data.gov.uk/id/local-authority/00HY,Wiltshire Council,30.09.2014,1901353716,2800.00,Developing Health and Independance ,101061,BA1 ,Community Services,Acorn House,Payments to Contractors - Other,Third Party Payments,REVENUE
http://statistics.data.gov.uk/id/local-authority/00HY,Wiltshire Council,12/09/2014,5106558842,275.66,Headway Bath  and  District ,116360,BA1 ,Community Services,OVA North Locality,Adult Day Care - Spot,Third Party Payments,REVENUE
http://statistics.data.gov.uk/id/local-authority/00HY,Wiltshire Council,16/09/2014,5106559414,786.70,Headway Bath  and  District ,116360,BA1 ,Community Services,OVA North Locality,Adult Domiciliary Care - Mileage,Third Party Payments,REVENUE
http://statistics.data.gov.uk/id/local-authority/00HY,Wiltshire Council,18/09/2014,5106560771,629.36,Headway Bath  and  District ,116360,BA1 ,Community Services,OVA North Locality,Adult Domiciliary Care - Mileage,Third Party Payments,REVENUE
http://statistics.data.gov.uk/id/local-authority/00HY,Wiltshire Council,17/09/2014,5106559465,20895.00,HPH Limited ,116516,BA1 ,Resources,FM - Office,Premises Rental / Hire Charges,Premises Related,REVENUE
http://statistics.data.gov.uk/id/local-authority/00HY,Wiltshire Council,17/09/2014,5106559466,8600.40,HPH Limited ,116516,BA1 ,Resources,FM - Office,Premises Management Costs,Premises Related,REVENUE
http://statistics.data.gov.uk/id/local-authority/00HY,Wiltshire Council,25.09.2014,1901352477,471.22,Oakhill Publishing Ltd ,101318,BA1 ,Community Services,Lib General,Books,Supplies and Services,REVENUE
http://statistics.data.gov.uk/id/local-authority/00HY,Wiltshire Council,04.09.2014,1901345277,26158.00,ROYAL UNITED HOSPITAL BATH NHS TRUST,112319,BA1 ,Neighbourhood & Planning,Sexual Health GUM,Public Health Commissioning,Supplies and Services,REVENUE
http://statistics.data.gov.uk/id/local-authority/00HY,Wiltshire Council,04.09.2014,1901345278,26158.00,ROYAL UNITED HOSPITAL BATH NHS TRUST,112319,BA1 ,Neighbourhood & Planning,Sexual Health GUM,Public Health Commissioning,Supplies and Services,REVENUE
http://statistics.data.gov.uk/id/local-authority/00HY,Wiltshire Council,23.09.2014,1901351473,4812.00,Royal United Hospital NHS ,130388,BA1 ,Neighbourhood & Planning,Cardiac,Public Health Commissioning,Supplies and Services,REVENUE
http://statistics.data.gov.uk/id/local-authority/00HY,Wiltshire Council,23.09.2014,1901351475,6607.00,Royal United Hospital NHS ,130388,BA1 ,Neighbourhood & Planning,Cardiac,Public Health Commissioning,Supplies and Services,REVENUE
http://statistics.data.gov.uk/id/local-authority/00HY,Wiltshire Council,23.09.2014,1901351476,4161.00,Royal United Hospital NHS ,130388,BA1 ,Neighbourhood & Planning,Cardiac,Public Health Commissioning,Supplies and Services,REVENUE
http://statistics.data.gov.uk/id/local-authority/00HY,Wiltshire Council,24/09/2014,5106562551,2747.20,Woodland Grove ,130367,BA1 ,Community Services,OVA South Locality,Adult Residential Placements - Spot Purchase,Third Party Payments,REVENUE
http://statistics.data.gov.uk/id/local-authority/00HY,Wiltshire Council,24/09/2014,5106565745,2348.80,Critchill Court Care Home ,129075,BA11,Community Services,West Locality OP,Adult Residential Placements - Spot Purchase,Third Party Payments,REVENUE
http://statistics.data.gov.uk/id/local-authority/00HY,Wiltshire Council,19/09/2014,5106560877,889.00,DNA Worldwide Group ,134880,BA11,Children & Education,HQ Social Care,Witness / Jurors' / Justice's Expenses,Supplies and Services,REVENUE
http://statistics.data.gov.uk/id/local-authority/00HY,Wiltshire Council,19/09/2014,5106560948,505.00,DNA Worldwide Group ,134880,BA11,Children & Education,HQ Social Care,Witness / Jurors' / Justice's Expenses,Supplies and Services,REVENUE
http://statistics.data.gov.uk/id/local-authority/00HY,Wiltshire Council,23/09/2014,5106561849,774.00,DNA Worldwide Group ,134880,BA11,Children & Education,HQ Social Care,Witness / Jurors' / Justice's Expenses,Supplies and Services,REVENUE
http://statistics.data.gov.uk/id/local-authority/00HY,Wiltshire Council,05.09.2014,1901345758,3241.42,Frome Minibuses ,100601,BA11,Neighbourhood & Planning,Public Transport,Transport Contracts,Third Party Payments,REVENUE
http://statistics.data.gov.uk/id/local-authority/00HY,Wiltshire Council,05.09.2014,1901345759,8765.68,Frome Minibuses ,100601,BA11,Neighbourhood & Planning,Public Transport,Transport Contracts,Third Party Payments,REVENUE
http://statistics.data.gov.uk/id/local-authority/00HY,Wiltshire Council,05.09.2014,1901345761,1396.51,Frome Minibuses ,100601,BA11,Neighbourhood & Planning,Public Transport,Transport Contracts,Third Party Payments,REVENUE
http://statistics.data.gov.uk/id/local-authority/00HY,Wiltshire Council,05.09.2014,1901345761,2653.56,Frome Minibuses ,100601,BA11,Neighbourhood & Planning,Mainstream Primary,Transport Contracts,Third Party Payments,REVENUE
http://statistics.data.gov.uk/id/local-authority/00HY,Wiltshire Council,05.09.2014,1901345767,9661.29,Frome Minibuses ,100601,BA11,Neighbourhood & Planning,Public Transport,Transport Contracts,Third Party Payments,REVENUE
http://statistics.data.gov.uk/id/local-authority/00HY,Wiltshire Council,05.09.2014,1901345768,6259.34,Frome Minibuses ,100601,BA11,Neighbourhood & Planning,Public Transport,Transport Contracts,Third Party Payments,REVENUE
http://statistics.data.gov.uk/id/local-authority/00HY,Wiltshire Council,05.09.2014,1901345769,3698.39,Frome Minibuses ,100601,BA11,Neighbourhood & Planning,Public Transport,Transport Contracts,Third Party Payments,REVENUE
http://statistics.data.gov.uk/id/local-authority/00HY,Wiltshire Council,05.09.2014,1901345769,6311.25,Frome Minibuses ,100601,BA11,Neighbourhood & Planning,Mainstream Secondary,Transport Contracts,Third Party Payments,REVENUE
http://statistics.data.gov.uk/id/local-authority/00HY,Wiltshire Council,08.09.2014,1901345905,1250.38,Frome Minibuses ,100601,BA11,Neighbourhood & Planning,Mainstream Secondary,Transport Contracts,Third Party Payments,REVENUE
http://statistics.data.gov.uk/id/local-authority/00HY,Wiltshire Council,08.09.2014,1901345905,15134.63,Frome Minibuses ,100601,BA11,Neighbourhood & Planning,Public Transport,Transport Contracts,Third Party Payments,REVENUE
http://statistics.data.gov.uk/id/local-authority/00HY,Wiltshire Council,26.09.2014,1901352891,9000.00,Frome Minibuses ,100601,BA11,Neighbourhood & Planning,Concessionary Fares,Compensation for Concessionary fares,Third Party Payments,REVENUE
http://statistics.data.gov.uk/id/local-authority/00HY,Wiltshire Council,10/09/2014,5106557759,375.00,Frome Minibuses ,100601,BA11,Neighbourhood & Planning,Pass Transport Group,Public Transport,Transport Related,REVENUE
http://statistics.data.gov.uk/id/local-authority/00HY,Wiltshire Council,26/09/2014,5106566527,1811.75,Frome Minibuses ,100601,BA11,Neighbourhood & Planning,Pass Transport Group,Public Transport,Transport Related,REVENUE
http://statistics.data.gov.uk/id/local-authority/00HY,Wiltshire Council,29/09/2014,5106569855,380.90,GARSTON VETERINARY GROUP ,110991,BA11,Health & Wellbeing,Gambling & Other,Other Professional Fees,Supplies and Services,REVENUE
http://statistics.data.gov.uk/id/local-authority/00HY,Wiltshire Council,24/09/2014,5106562934,1820.40,Gracewell Healthcare 1 Ltd ,136694,BA11,Community Services,West Locality OP,Adult Care Nursing Placements- Spot Purchase,Third Party Payments,REVENUE
http://statistics.data.gov.uk/id/local-authority/00HY,Wiltshire Council,24/09/2014,5106563131,3160.84,Gracewell Healthcare 1 Ltd ,136694,BA11,Community Services,Home Loans,Adult Care Loans,Capital charges and Expenditure,REVENUE
http://statistics.data.gov.uk/id/local-authority/00HY,Wiltshire Council,24.09.2014,1901351968,7365.00,HG & AP  Vaughan Ltd - DFG Only ,116244,BA11,Wiltshire Council,Wiltshire Council,Payments to Contractors - Other,Third Party Payments,CAPITAL
http://statistics.data.gov.uk/id/local-authority/00HY,Wiltshire Council,30.09.2014,1901353595,1780.00,HG & AP  Vaughan Ltd - DFG Only ,116244,BA11,Wiltshire Council,Wiltshire Council,Payments to Contractors - Other,Third Party Payments,CAPITAL
http://statistics.data.gov.uk/id/local-authority/00HY,Wiltshire Council,12/09/2014,5106558928,420.53,Imperial Commercials Limited ,111185,BA11,Neighbourhood & Planning,Fleet Operations,Vehicle Parts,Transport Related,REVENUE
http://statistics.data.gov.uk/id/local-authority/00HY,Wiltshire Council,08.09.2014,1901345908,1918.62,Libra Travel ,101347,BA11,Neighbourhood & Planning,Mainstream 16+ FE,Transport Contracts,Third Party Payments,REVENUE
http://statistics.data.gov.uk/id/local-authority/00HY,Wiltshire Council,08.09.2014,1901345908,5142.80,Libra Travel ,101347,BA11,Neighbourhood & Planning,Public Transport,Transport Contracts,Third Party Payments,REVENUE
http://statistics.data.gov.uk/id/local-authority/00HY,Wiltshire Council,08.09.2014,1901345909,5087.22,Libra Travel ,101347,BA11,Neighbourhood & Planning,Public Transport,Transport Contracts,Third Party Payments,REVENUE
http://statistics.data.gov.uk/id/local-authority/00HY,Wiltshire Council,08.09.2014,1901345910,2769.76,Libra Travel ,101347,BA11,Neighbourhood & Planning,Public Transport,Transport Contracts,Third Party Payments,REVENUE
http://statistics.data.gov.uk/id/local-authority/00HY,Wiltshire Council,08.09.2014,1901345910,3029.40,Libra Travel ,101347,BA11,Neighbourhood & Planning,Mainstream Secondary,Transport Contracts,Third Party Payments,REVENUE
http://statistics.data.gov.uk/id/local-authority/00HY,Wiltshire Council,26.09.2014,1901352894,1300.00,Libra Travel ,101347,BA11,Neighbourhood & Planning,Concessionary Fares,Compensation for Concessionary fares,Third Party Payments,REVENUE
http://statistics.data.gov.uk/id/local-authority/00HY,Wiltshire Council,09.09.2014,1901346024,1811.72,A G Minibuses ,100878,BA12,Neighbourhood & Planning,Mainstream Primary,Transport Contracts,Third Party Payments,REVENUE
http://statistics.data.gov.uk/id/local-authority/00HY,Wiltshire Council,09.09.2014,1901346025,1854.20,A G Minibuses ,100878,BA12,Neighbourhood & Planning,Mainstream Secondary,Transport Contracts,Third Party Payments,REVENUE
http://statistics.data.gov.uk/id/local-authority/00HY,Wiltshire Council,09.09.2014,1901346032,916.48,A G Minibuses ,100878,BA12,Community Services,OP East Locality,Transport Contracts,Third Party Payments,REVENUE
http://statistics.data.gov.uk/id/local-authority/00HY,Wiltshire Council,09.09.2014,1901346032,992.85,A G Minibuses ,100878,BA12,Community Services,MH OP East Locality,Transport Contracts,Third Party Payments,REVENUE
http://statistics.data.gov.uk/id/local-authority/00HY,Wiltshire Council,09.09.2014,1901346034,1212.50,A G Minibuses ,100878,BA12,Community Services,CTPLD County CIC U65,Transport Contracts,Third Party Payments,REVENUE
http://statistics.data.gov.uk/id/local-authority/00HY,Wiltshire Council,15.09.2014,1901348262,430.37,A G Minibuses ,100878,BA12,Community Services,CTPLD County CIC U65,Transport Contracts,Third Party Payments,REVENUE
http://statistics.data.gov.uk/id/local-authority/00HY,Wiltshire Council,15.09.2014,1901348262,922.33,A G Minibuses ,100878,BA12,Community Services,PI East Locality,Transport Contracts,Third Party Payments,REVENUE
http://statistics.data.gov.uk/id/local-authority/00HY,Wiltshire Council,15.09.2014,1901348268,1132.64,A G Minibuses ,100878,BA12,Community Services,CTPLD County CIC U65,Transport Contracts,Third Party Payments,REVENUE
http://statistics.data.gov.uk/id/local-authority/00HY,Wiltshire Council,25.09.2014,1901352473,12620.23,A G Minibuses ,100878,BA12,Neighbourhood & Planning,Connect 2 Wiltshire,Transport Contracts,Third Party Payments,REVENUE
http://statistics.data.gov.uk/id/local-authority/00HY,Wiltshire Council,25.09.2014,1901352474,846.48,A G Minibuses ,100878,BA12,Neighbourhood & Planning,Connect 2 Wiltshire,Transport Contracts,Third Party Payments,REVENUE
http://statistics.data.gov.uk/id/local-authority/00HY,Wiltshire Council,25.09.2014,1901352474,997.50,A G Minibuses ,100878,BA12,Neighbourhood & Planning,Mainstream Primary,Transport Contracts,Third Party Payments,REVENUE
http://statistics.data.gov.uk/id/local-authority/00HY,Wiltshire Council,25.09.2014,1901352474,1588.52,A G Minibuses ,100878,BA12,Neighbourhood & Planning,Public Transport,Transport Contracts,Third Party Payments,REVENUE
http://statistics.data.gov.uk/id/local-authority/00HY,Wiltshire Council,25.09.2014,1901352475,1583.33,A G Minibuses ,100878,BA12,Neighbourhood & Planning,Mainstream Secondary,Transport Contracts,Third Party Payments,REVENUE
http://statistics.data.gov.uk/id/local-authority/00HY,Wiltshire Council,25.09.2014,1901352475,4125.00,A G Minibuses ,100878,BA12,Neighbourhood & Planning,Connect 2 Wiltshire,Transport Contracts,Third Party Payments,REVENUE
http://statistics.data.gov.uk/id/local-authority/00HY,Wiltshire Council,16/09/2014,5106557761,395.00,Aid Training  and  Operations Ltd ,110075,BA12,Resources,Centralised Training,Staff Training Course Costs,Employee Related,REVENUE
http://statistics.data.gov.uk/id/local-authority/00HY,Wiltshire Council,16/09/2014,5106557762,395.00,Aid Training  and  Operations Ltd ,110075,BA12,Resources,Centralised Training,Staff Training Course Costs,Employee Related,REVENUE
http://statistics.data.gov.uk/id/local-authority/00HY,Wiltshire Council,16/09/2014,5106557763,395.00,Aid Training  and  Operations Ltd ,110075,BA12,Resources,Centralised Training,Staff Training Course Costs,Employee Related,REVENUE
http://statistics.data.gov.uk/id/local-authority/00HY,Wiltshire Council,16.09.2014,1901266257,1368.00,Avenue Surgery ,110214,BA12,Community Services,STARR Scheme,Other Professional Fees,Supplies and Services,REVENUE
http://statistics.data.gov.uk/id/local-authority/00HY,Wiltshire Council,03.09.2014,1901337155,525.41,Barchester Healthcare Ltd (Henford ,111113,BA12,Community Services,BCF-Intermediate Cr,Adult Nursing Placements - transitional beds,Third Party Payments,REVENUE
http://statistics.data.gov.uk/id/local-authority/00HY,Wiltshire Council,03.09.2014,1901337156,342.86,Barchester Healthcare Ltd (Henford ,111113,BA12,Community Services,BCF-Intermediate Cr,Adult Nursing Placements - transitional beds,Third Party Payments,REVENUE
http://statistics.data.gov.uk/id/local-authority/00HY,Wiltshire Council,03.09.2014,1901337157,630.49,Barchester Healthcare Ltd (Henford ,111113,BA12,Community Services,BCF-Intermediate Cr,Adult Nursing Placements - transitional beds,Third Party Payments,REVENUE
http://statistics.data.gov.uk/id/local-authority/00HY,Wiltshire Council,03.09.2014,1901337158,342.86,Barchester Healthcare Ltd (Henford ,111113,BA12,Community Services,BCF-Intermediate Cr,Adult Nursing Placements - transitional beds,Third Party Payments,REVENUE
http://statistics.data.gov.uk/id/local-authority/00HY,Wiltshire Council,04/09/2014,5106556786,2101.60,Barchester Healthcare Ltd (Henford ,111113,BA12,Community Services,BCF-Intermediate Cr,Adult Nursing Respite - Spot,Third Party Payments,REVENUE
http://statistics.data.gov.uk/id/local-authority/00HY,Wiltshire Council,04/09/2014,5106556792,840.64,Barchester Healthcare Ltd (Henford ,111113,BA12,Community Services,BCF-Intermediate Cr,Adult Nursing Respite - Spot,Third Party Payments,REVENUE
http://statistics.data.gov.uk/id/local-authority/00HY,Wiltshire Council,04/09/2014,5106556894,1786.36,Barchester Healthcare Ltd (Henford ,111113,BA12,Community Services,BCF-Intermediate Cr,Adult Nursing Respite - Spot,Third Party Payments,REVENUE
http://statistics.data.gov.uk/id/local-authority/00HY,Wiltshire Council,04/09/2014,5106556895,1681.28,Barchester Healthcare Ltd (Henford ,111113,BA12,Community Services,BCF-Intermediate Cr,Adult Nursing Respite - Spot,Third Party Payments,REVENUE
http://statistics.data.gov.uk/id/local-authority/00HY,Wiltshire Council,04/09/2014,5106556897,1576.20,Barchester Healthcare Ltd (Henford ,111113,BA12,Community Services,BCF-Intermediate Cr,Adult Nursing Respite - Spot,Third Party Payments,REVENUE
http://statistics.data.gov.uk/id/local-authority/00HY,Wiltshire Council,04/09/2014,5106556907,1050.80,Barchester Healthcare Ltd (Henford ,111113,BA12,Community Services,BCF-Intermediate Cr,Adult Nursing Respite - Spot,Third Party Payments,REVENUE
http://statistics.data.gov.uk/id/local-authority/00HY,Wiltshire Council,04/09/2014,5106556973,1438.44,Barchester Healthcare Ltd (Henford ,111113,BA12,Community Services,Adult Care Gross Loa,Adult Care Loans,Capital charges and Expenditure,REVENUE
http://statistics.data.gov.uk/id/local-authority/00HY,Wiltshire Council,04/09/2014,5106556974,3356.44,Barchester Healthcare Ltd (Henford ,111113,BA12,Community Services,Adult Care Gross Loa,Adult Care Loans,Capital charges and Expenditure,REVENUE
http://statistics.data.gov.uk/id/local-authority/00HY,Wiltshire Council,04/09/2014,5106556975,3356.44,Barchester Healthcare Ltd (Henford ,111113,BA12,Community Services,Adult Care Gross Loa,Adult Care Loans,Capital charges and Expenditure,REVENUE
http://statistics.data.gov.uk/id/local-authority/00HY,Wiltshire Council,04/09/2014,5106556976,3356.44,Barchester Healthcare Ltd (Henford ,111113,BA12,Community Services,Adult Care Gross Loa,Adult Care Loans,Capital charges and Expenditure,REVENUE
http://statistics.data.gov.uk/id/local-authority/00HY,Wiltshire Council,04/09/2014,5106557060,1155.88,Barchester Healthcare Ltd (Henford ,111113,BA12,Community Services,BCF-Intermediate Cr,Adult Nursing Respite - Spot,Third Party Payments,REVENUE
http://statistics.data.gov.uk/id/local-authority/00HY,Wiltshire Council,04/09/2014,5106557061,1366.04,Barchester Healthcare Ltd (Henford ,111113,BA12,Community Services,BCF-Intermediate Cr,Adult Nursing Respite - Spot,Third Party Payments,REVENUE
http://statistics.data.gov.uk/id/local-authority/00HY,Wiltshire Council,24/09/2014,5106562219,2519.12,Barchester Healthcare Ltd (Henford ,111113,BA12,Community Services,MH OP South Locality,Adult Care Nursing Placements- Spot Purchase,Third Party Payments,REVENUE
http://statistics.data.gov.uk/id/local-authority/00HY,Wiltshire Council,24/09/2014,5106562220,443.56,Barchester Healthcare Ltd (Henford ,111113,BA12,Community Services,MH OA South FNC,Adult Care Funded Nursing Care - Loal Auth Clients,Third Party Payments,REVENUE
http://statistics.data.gov.uk/id/local-authority/00HY,Wiltshire Council,24/09/2014,5106562235,2041.72,Barchester Healthcare Ltd (Henford ,111113,BA12,Community Services,MH OP South Locality,Adult Care Nursing Placements- Spot Purchase,Third Party Payments,REVENUE
http://statistics.data.gov.uk/id/local-authority/00HY,Wiltshire Council,24/09/2014,5106562236,443.56,Barchester Healthcare Ltd (Henford ,111113,BA12,Community Services,MH OA South FNC,Adult Care Funded Nursing Care - Loal Auth Clients,Third Party Payments,REVENUE
http://statistics.data.gov.uk/id/local-authority/00HY,Wiltshire Council,24/09/2014,5106562253,2041.72,Barchester Healthcare Ltd (Henford ,111113,BA12,Community Services,West Locality OP,Adult Care Nursing Placements- Spot Purchase,Third Party Payments,REVENUE
http://statistics.data.gov.uk/id/local-authority/00HY,Wiltshire Council,24/09/2014,5106562254,443.56,Barchester Healthcare Ltd (Henford ,111113,BA12,Community Services,OP West FNC,Adult Care Funded Nursing Care - Loal Auth Clients,Third Party Payments,REVENUE
http://statistics.data.gov.uk/id/local-authority/00HY,Wiltshire Council,24/09/2014,5106562324,2041.72,Barchester Healthcare Ltd (Henford ,111113,BA12,Community Services,West Locality OP,Adult Care Nursing Placements- Spot Purchase,Third Party Payments,REVENUE
http://statistics.data.gov.uk/id/local-authority/00HY,Wiltshire Council,24/09/2014,5106562325,443.56,Barchester Healthcare Ltd (Henford ,111113,BA12,Community Services,OP West FNC,Adult Care Funded Nursing Care - Loal Auth Clients,Third Party Payments,REVENUE
http://statistics.data.gov.uk/id/local-authority/00HY,Wiltshire Council,24/09/2014,5106562565,2046.08,Barchester Healthcare Ltd (Henford ,111113,BA12,Community Services,West Locality OP,Adult Care Nursing Placements- Spot Purchase,Third Party Payments,REVENUE
http://statistics.data.gov.uk/id/local-authority/00HY,Wiltshire Council,24/09/2014,5106562566,443.56,Barchester Healthcare Ltd (Henford ,111113,BA12,Community Services,OP West FNC,Adult Care Funded Nursing Care - Loal Auth Clients,Third Party Payments,REVENUE
http://statistics.data.gov.uk/id/local-authority/00HY,Wiltshire Council,24/09/2014,5106562612,2760.84,Barchester Healthcare Ltd (Henford ,111113,BA12,Community Services,West Locality OP,Adult Care Nursing Placements- Spot Purchase,Third Party Payments,REVENUE
http://statistics.data.gov.uk/id/local-authority/00HY,Wiltshire Council,24/09/2014,5106562613,443.56,Barchester Healthcare Ltd (Henford ,111113,BA12,Community Services,OP West FNC,Adult Care Funded Nursing Care - Loal Auth Clients,Third Party Payments,REVENUE
http://statistics.data.gov.uk/id/local-authority/00HY,Wiltshire Council,24/09/2014,5106562772,2560.84,Barchester Healthcare Ltd (Henford ,111113,BA12,Community Services,Home Loans,Adult Care Loans,Capital charges and Expenditure,REVENUE
http://statistics.data.gov.uk/id/local-authority/00HY,Wiltshire Council,24/09/2014,5106563461,1786.36,Barchester Healthcare Ltd (Henford ,111113,BA12,Community Services,BCF-Intermediate Cr,Adult Nursing Respite - Spot,Third Party Payments,REVENUE
http://statistics.data.gov.uk/id/local-authority/00HY,Wiltshire Council,24/09/2014,5106563494,356.96,Barchester Healthcare Ltd (Henford ,111113,BA12,Community Services,BCF-Intermediate Cr,Adult Nursing Respite - Spot,Third Party Payments,REVENUE
http://statistics.data.gov.uk/id/local-authority/00HY,Wiltshire Council,24/09/2014,5106564434,2825.12,Barchester Healthcare Ltd (Henford ,111113,BA12,Community Services,MH AOWA South Locali,Adult Care Nursing Placements- Spot Purchase,Third Party Payments,REVENUE
http://statistics.data.gov.uk/id/local-authority/00HY,Wiltshire Council,24/09/2014,5106564435,443.56,Barchester Healthcare Ltd (Henford ,111113,BA12,Community Services,Section 117-PCT Clnt,Adult Care Nursing Placements- Spot Purchase,Third Party Payments,REVENUE
http://statistics.data.gov.uk/id/local-authority/00HY,Wiltshire Council,24/09/2014,5106564443,2498.72,Barchester Healthcare Ltd (Henford ,111113,BA12,Community Services,MH OP South Locality,Adult Care Nursing Placements- Spot Purchase,Third Party Payments,REVENUE
http://statistics.data.gov.uk/id/local-authority/00HY,Wiltshire Council,24/09/2014,5106564444,443.56,Barchester Healthcare Ltd (Henford ,111113,BA12,Community Services,MH OA South FNC,Adult Care Funded Nursing Care - Loal Auth Clients,Third Party Payments,REVENUE
http://statistics.data.gov.uk/id/local-authority/00HY,Wiltshire Council,24/09/2014,5106564699,2498.72,Barchester Healthcare Ltd (Henford ,111113,BA12,Community Services,West Locality OP,Adult Care Nursing Placements- Spot Purchase,Third Party Payments,REVENUE
http://statistics.data.gov.uk/id/local-authority/00HY,Wiltshire Council,24/09/2014,5106564700,443.56,Barchester Healthcare Ltd (Henford ,111113,BA12,Community Services,OP West FNC,Adult Care Funded Nursing Care - Loal Auth Clients,Third Party Payments,REVENUE
http://statistics.data.gov.uk/id/local-authority/00HY,Wiltshire Council,24/09/2014,5106565548,3356.44,Barchester Healthcare Ltd (Henford ,111113,BA12,Community Services,Home Loans,Adult Care Loans,Capital charges and Expenditure,REVENUE
http://statistics.data.gov.uk/id/local-authority/00HY,Wiltshire Council,24/09/2014,5106565549,2498.72,Barchester Healthcare Ltd (Henford ,111113,BA12,Community Services,West Locality OP,Adult Care Nursing Placements- Spot Purchase,Third Party Payments,REVENUE
http://statistics.data.gov.uk/id/local-authority/00HY,Wiltshire Council,24/09/2014,5106565550,443.56,Barchester Healthcare Ltd (Henford ,111113,BA12,Community Services,OP West FNC,Adult Care Funded Nursing Care - Loal Auth Clients,Third Party Payments,REVENUE
http://statistics.data.gov.uk/id/local-authority/00HY,Wiltshire Council,24/09/2014,5106565807,417.16,Barchester Healthcare Ltd (Henford ,111113,BA12,Community Services,West Locality OP,Adult Nursing Respite - Spot,Third Party Payments,REVENUE
http://statistics.data.gov.uk/id/local-authority/00HY,Wiltshire Council,24/09/2014,5106565810,2476.44,Barchester Healthcare Ltd (Henford ,111113,BA12,Community Services,West Locality OP,Adult Care Nursing Placements- Spot Purchase,Third Party Payments,REVENUE
http://statistics.data.gov.uk/id/local-authority/00HY,Wiltshire Council,24/09/2014,5106565811,443.56,Barchester Healthcare Ltd (Henford ,111113,BA12,Community Services,OP West FNC,Adult Care Funded Nursing Care - Loal Auth Clients,Third Party Payments,REVENUE
http://statistics.data.gov.uk/id/local-authority/00HY,Wiltshire Council,24/09/2014,5106566145,2942.28,Barchester Healthcare Ltd (Henford ,111113,BA12,Community Services,BCF-Intermediate Cr,Adult Nursing Respite - Spot,Third Party Payments,REVENUE
http://statistics.data.gov.uk/id/local-authority/00HY,Wiltshire Council,24/09/2014,5106566180,3356.44,Barchester Healthcare Ltd (Henford ,111113,BA12,Community Services,Adult Care Gross Loa,Adult Care Loans,Capital charges and Expenditure,REVENUE
http://statistics.data.gov.uk/id/local-authority/00HY,Wiltshire Council,24/09/2014,5106566421,525.40,Barchester Healthcare Ltd (Henford ,111113,BA12,Community Services,BCF-Intermediate Cr,Adult Nursing Respite - Spot,Third Party Payments,REVENUE
http://statistics.data.gov.uk/id/local-authority/00HY,Wiltshire Council,24/09/2014,5106566424,315.24,Barchester Healthcare Ltd (Henford ,111113,BA12,Community Services,BCF-Intermediate Cr,Adult Nursing Respite - Spot,Third Party Payments,REVENUE
http://statistics.data.gov.uk/id/local-authority/00HY,Wiltshire Council,01.09.2014,1901336896,298.98,Beeline Coaches ,101673,BA12,Neighbourhood & Planning,Mainstream Primary,Transport Contracts,Third Party Payments,REVENUE
